{"text_format":"1","workbook":"xlsx","n_sheets":9,"sheets":["Ficha_Jerarquia","Valores","Clas_AT","DPA","Jerarquia","Calculos","RESUMEN DE RESULTADOS","ficha_Accesibilidad","Validación-GAD"],"not_rendered":{"charts":0,"images":3,"macros":1,"external_links":0,"defined_names":287,"comments":0,"pivot_tables":0},"unopened":[],"bounds":{"document_bytes":16777216,"sheet_cells":100000,"rows_first":2000,"rows_last":500,"rows_between":2000,"halvings":0,"cell_chars":16384,"cell_head_chars":4096},"cells_cut":0,"cells_raw":0,"read":"whole","date_system":"1900"}

{"sheet":"Ficha_Jerarquia","index":0,"n_rows":331,"n_cols":22,"rows_kept":331,"cut":false,"hidden":false,"merged":[[267,1,267,6],[269,1,269,6],[269,8,269,9],[268,1,268,6],[263,8,263,9],[266,8,266,9],[264,8,264,9],[263,1,263,6],[293,1,293,5],[293,15,293,20],[57,1,57,3],[57,4,57,21],[213,15,213,20],[213,4,213,10],[224,20,224,21],[259,16,259,21],[260,18,260,21],[271,18,271,21],[219,1,219,4],[219,6,219,10],[220,12,220,15],[220,17,220,20],[219,12,219,15],[220,1,220,4],[219,17,219,20],[220,6,220,10],[290,1,290,3],[290,4,290,21],[190,13,190,14],[190,11,190,12],[204,1,204,5],[204,8,204,21],[205,1,205,5],[205,8,205,21],[206,1,206,5],[206,8,206,21],[238,1,238,3],[231,1,231,3],[231,4,231,21],[238,13,238,15],[238,19,238,21],[236,17,236,19],[259,1,259,9],[259,14,259,15],[260,1,260,11],[260,16,260,17],[241,13,241,14],[241,16,241,21],[257,1,257,15],[246,16,246,21],[253,15,253,20],[216,8,216,13],[216,15,216,20],[215,1,215,21],[212,18,212,20],[251,1,251,6],[246,5,246,7],[247,4,247,21],[252,1,252,6],[250,1,250,6],[253,1,253,6],[224,1,224,10],[227,1,227,13],[238,5,238,7],[32,17,32,18],[32,11,32,13],[32,14,32,16],[289,10,289,11],[289,13,289,14],[111,14,111,16],[111,17,111,18],[249,1,249,21],[32,19,32,21],[278,5,279,5],[101,14,102,16],[101,17,102,18],[103,11,103,13],[109,4,109,7],[106,14,106,16],[112,17,112,18],[106,9,106,10],[104,14,104,16],[108,17,108,18],[110,14,110,16],[254,15,254,20],[114,17,114,18],[115,11,115,13],[115,14,115,16],[151,1,151,21],[289,16,289,17],[289,19,289,20],[289,1,289,2],[268,8,268,9],[203,1,203,5],[203,7,206,7],[203,8,203,21],[28,1,29,3],[115,17,115,18],[112,11,112,13],[262,9,262,16],[114,14,114,16],[113,11,113,13],[117,17,117,18],[118,11,118,13],[118,14,118,16],[116,14,116,16],[211,18,211,20],[212,12,212,13],[289,7,289,8],[289,4,289,5],[287,5,287,12],[287,15,287,21],[278,18,278,21],[287,1,287,4],[286,1,286,21],[279,18,279,21],[279,1,279,3],[281,6,281,8],[31,1,31,2],[29,6,29,7],[28,4,28,7],[29,8,29,10],[208,1,208,21],[217,1,217,3],[30,17,30,18],[81,12,81,14],[31,11,31,13],[31,14,31,16],[0,1,0,21],[2,5,2,6],[2,7,2,8],[2,9,2,10],[2,11,2,12],[2,13,2,14],[2,15,2,16],[2,17,2,18],[2,19,2,21],[1,1,2,4],[33,7,34,8],[3,1,3,21],[22,15,22,19],[23,1,23,21],[30,1,30,2],[4,1,4,21],[5,1,5,21],[13,1,13,7],[21,1,21,21],[29,4,29,5],[27,1,27,21],[29,19,29,21],[28,8,28,21],[30,4,30,5],[31,6,31,7],[32,4,32,5],[32,6,32,7],[30,8,30,10],[31,8,31,10],[32,8,32,10],[31,4,31,5],[30,6,30,7],[6,1,6,7],[6,8,6,14],[6,15,6,21],[12,1,12,7],[11,1,11,7],[7,15,7,21],[9,1,9,7],[11,17,11,21],[11,13,11,16],[11,8,11,12],[13,8,13,13],[9,15,9,21],[10,8,10,14],[10,15,10,21],[8,1,8,21],[13,15,13,21],[12,13,12,16],[12,8,12,12],[12,17,12,21],[10,1,10,7],[7,1,7,7],[7,8,7,14],[9,8,9,14],[34,1,34,2],[14,1,14,7],[14,8,14,14],[14,15,14,21],[22,1,22,2],[32,1,32,2],[22,13,22,14],[22,10,22,12],[22,3,22,9],[22,20,22,21],[189,13,189,14],[189,15,189,18],[190,3,190,8],[190,9,190,10],[216,1,216,6],[31,17,31,18],[31,19,31,21],[30,14,30,16],[29,11,29,13],[29,14,29,16],[29,17,29,18],[30,11,30,13],[35,7,35,21],[40,1,40,3],[40,4,40,21],[36,1,36,3],[26,12,26,13],[26,14,26,15],[44,20,44,21],[48,12,48,13],[48,14,48,16],[189,1,190,2],[66,1,66,21],[45,17,45,19],[136,1,136,4],[52,1,52,3],[48,17,48,18],[45,5,45,7],[48,9,48,10],[45,9,45,11],[48,20,48,21],[185,3,185,8],[185,9,185,10],[185,11,185,12],[185,13,185,14],[117,11,117,13],[110,17,110,18],[116,17,116,18],[162,3,162,11],[101,4,102,8],[101,9,102,10],[106,4,106,7],[135,12,135,15],[111,4,111,7],[111,9,111,10],[115,9,115,10],[45,15,45,16],[79,5,79,7],[76,12,76,14],[52,4,52,21],[64,1,64,6],[64,7,64,9],[70,16,70,17],[70,12,70,13],[44,15,44,16],[44,17,44,19],[196,16,200,16],[196,1,196,3],[197,12,197,14],[198,12,198,14],[190,15,190,18],[197,6,197,11],[152,4,152,6],[117,14,117,16],[123,12,123,14],[123,16,123,18],[124,12,124,13],[124,14,124,21],[122,12,122,15],[126,1,126,15],[128,6,128,8],[118,17,118,18],[131,7,131,21],[118,1,118,3],[118,9,118,10],[117,4,117,7],[131,1,131,6],[130,1,130,21],[134,1,134,4],[134,5,134,6],[128,1,128,3],[128,20,128,21],[189,9,189,10],[192,3,192,21],[189,11,189,12],[45,12,45,14],[70,1,70,6],[137,7,137,8],[78,12,78,14],[136,5,136,6],[77,5,77,7],[101,1,102,3],[108,14,108,16],[109,9,109,10],[109,11,109,13],[109,14,109,16],[101,11,102,13],[68,1,68,3],[70,18,70,19],[70,10,70,11],[75,10,75,11],[75,5,75,7],[68,4,68,21],[111,11,111,13],[107,11,107,13],[110,4,110,7],[107,4,107,7],[107,9,107,10],[124,1,124,2],[137,1,137,4],[137,9,137,21],[70,8,70,9],[86,10,86,11],[87,5,87,7],[94,1,94,5],[83,1,83,3],[128,15,128,16],[133,1,133,4],[129,1,129,3],[133,7,133,10],[133,12,133,15],[135,7,135,10],[136,7,136,10],[136,12,136,15],[129,4,129,21],[136,17,136,20],[116,4,116,7],[116,9,116,10],[112,1,115,3],[112,4,112,7],[99,1,99,3],[103,9,103,10],[105,4,105,7],[104,4,104,7],[104,9,104,10],[105,9,105,10],[101,19,101,21],[108,1,111,3],[108,4,108,7],[108,9,108,10],[103,1,107,3],[103,4,103,7],[109,17,109,18],[110,11,110,13],[103,17,103,18],[104,11,104,13],[115,4,115,7],[112,9,112,10],[140,1,140,3],[140,4,140,5],[140,11,140,14],[146,1,146,4],[97,10,97,11],[148,17,148,20],[146,5,146,6],[145,5,145,6],[146,7,146,10],[140,20,140,21],[145,17,145,20],[146,17,146,20],[147,12,147,15],[148,7,148,10],[147,17,147,20],[142,1,142,21],[145,12,145,15],[128,9,128,10],[114,4,114,7],[117,9,117,10],[113,4,113,7],[113,9,113,10],[124,3,124,11],[127,1,127,21],[116,1,117,3],[116,11,116,13],[119,1,119,3],[119,4,119,21],[132,1,132,4],[132,5,132,6],[138,4,138,21],[133,5,133,6],[59,14,60,21],[133,17,133,20],[134,17,134,20],[125,1,125,3],[125,4,125,21],[135,1,135,4],[98,10,98,11],[135,17,135,20],[144,5,144,6],[143,1,143,6],[138,1,138,3],[132,7,132,10],[134,12,134,15],[128,11,128,14],[135,5,135,6],[144,1,144,4],[139,1,139,21],[144,12,144,15],[128,17,128,19],[106,17,106,18],[98,15,98,16],[98,17,98,18],[97,6,97,7],[97,8,97,9],[140,17,140,19],[63,7,63,9],[95,18,95,21],[83,8,83,9],[94,12,94,16],[86,18,86,19],[92,18,92,21],[93,12,93,16],[15,1,15,21],[98,1,98,2],[98,4,98,5],[98,6,98,7],[98,8,98,9],[44,12,44,14],[42,4,45,4],[45,20,45,21],[43,20,43,21],[70,20,70,21],[182,3,182,8],[160,14,160,21],[161,12,161,14],[162,12,162,13],[162,14,162,21],[161,16,161,21],[165,4,165,21],[160,3,160,11],[158,1,158,2],[174,13,174,14],[174,15,174,18],[180,3,180,8],[169,13,169,14],[159,5,159,11],[161,5,161,11],[159,16,159,21],[161,1,161,3],[153,4,153,21],[152,20,152,21],[152,1,152,3],[153,1,153,3],[152,15,152,17],[267,8,267,9],[275,1,275,6],[255,1,255,6],[255,8,255,13],[265,1,265,6],[265,8,265,9],[242,1,242,3],[242,4,242,21],[262,1,262,6],[97,1,97,2],[97,4,97,5],[245,9,245,11],[239,1,239,3],[239,4,239,21],[200,6,200,11],[189,3,189,8],[148,12,148,15],[156,12,156,21],[187,3,187,8],[144,7,144,10],[241,1,241,3],[241,5,241,7],[241,9,241,11],[240,1,240,21],[238,9,238,11],[195,1,195,11],[197,1,197,3],[198,1,198,3],[207,1,207,3],[207,4,207,21],[237,1,237,3],[237,5,237,7],[261,17,261,21],[43,9,43,11],[43,12,43,14],[252,15,252,20],[246,9,246,11],[258,1,258,21],[254,8,254,13],[245,17,245,19],[43,5,43,7],[145,1,145,4],[152,10,152,12],[158,12,158,13],[158,14,158,21],[160,12,160,13],[159,12,159,14],[155,1,155,21],[157,5,157,11],[157,16,157,21],[158,3,158,11],[157,12,157,14],[159,1,159,3],[43,17,43,19],[44,9,44,11],[177,1,188,2],[178,3,178,8],[217,4,217,21],[188,3,188,8],[183,3,183,8],[95,7,95,11],[43,15,43,16],[92,7,92,11],[154,1,154,15],[235,1,235,3],[225,1,225,11],[221,10,221,12],[237,9,237,11],[237,13,237,15],[228,1,228,21],[237,17,237,19],[44,5,44,7],[152,7,152,9],[229,1,229,13],[182,9,182,10],[212,4,212,6],[104,17,104,18],[105,11,105,13],[105,14,105,16],[105,17,105,18],[106,11,106,13],[152,13,152,14],[152,18,152,19],[156,1,156,11],[150,1,150,3],[150,4,150,21],[132,12,132,15],[149,7,149,8],[149,9,149,21],[140,6,140,8],[170,3,170,8],[170,9,170,10],[171,9,171,10],[172,9,172,10],[167,9,167,18],[168,9,168,10],[261,8,261,16],[272,1,272,3],[264,1,264,6],[271,16,271,17],[294,1,294,2],[278,17,279,17],[285,1,285,3],[285,4,285,21],[278,1,278,3],[266,1,266,6],[165,1,165,3],[146,12,146,15],[175,3,175,8],[281,1,281,5],[273,1,273,15],[279,6,279,16],[277,1,277,21],[278,6,278,16],[245,5,245,7],[261,1,261,7],[255,17,255,21],[244,17,244,19],[246,1,246,3],[244,5,244,7],[244,1,244,3],[246,13,246,14],[247,1,247,3],[245,13,245,15],[251,15,251,20],[252,8,252,13],[253,8,253,13],[254,1,254,6],[324,1,324,3],[303,1,303,21],[304,1,309,10],[304,11,309,21],[310,1,310,2],[310,3,310,21],[271,1,271,11],[270,1,270,3],[270,4,270,21],[282,1,284,3],[299,1,301,21],[297,1,297,3],[297,4,297,21],[296,15,296,16],[294,20,294,21],[295,20,295,21],[276,1,276,8],[287,13,287,14],[288,1,288,9],[288,10,288,21],[282,4,282,5],[282,6,282,8],[275,19,275,21],[274,1,274,21],[280,1,280,21],[296,20,296,21],[302,1,302,21],[298,1,298,21],[284,19,284,21],[283,4,283,5],[283,16,283,18],[283,19,283,21],[330,15,330,17],[329,18,329,21],[329,15,329,17],[326,15,326,17],[326,18,326,21],[330,1,330,3],[330,4,330,7],[330,8,330,10],[330,11,330,14],[329,4,329,7],[330,18,330,21],[329,1,329,3],[327,4,327,7],[329,8,329,10],[329,11,329,14],[328,1,328,3],[328,4,328,7],[328,8,328,10],[328,11,328,14],[327,18,327,21],[326,11,326,14],[327,1,327,3],[327,8,327,10],[327,11,327,14],[256,1,256,3],[256,4,256,21],[251,8,251,13],[328,18,328,21],[328,15,328,17],[325,18,325,21],[327,15,327,17],[326,1,326,3],[326,4,326,7],[326,8,326,10],[324,4,324,7],[324,8,324,10],[324,11,324,14],[324,15,324,17],[324,18,324,21],[325,1,325,3],[325,4,325,7],[325,8,325,10],[325,11,325,14],[325,15,325,17],[311,1,311,21],[312,1,320,21],[321,1,321,2],[321,3,321,21],[323,8,323,14],[323,15,323,21],[322,1,322,21],[323,1,323,7],[296,3,296,6],[294,4,294,5],[295,1,295,2],[295,4,295,5],[168,11,168,12],[245,1,245,3],[244,9,244,11],[244,13,244,15],[181,3,181,8],[167,19,167,21],[209,1,209,11],[209,12,209,21],[167,1,168,2],[171,3,171,8],[148,1,148,4],[148,5,148,6],[140,15,140,16],[147,1,147,4],[147,5,147,6],[141,1,141,3],[141,4,141,21],[192,1,192,2],[195,12,195,21],[193,4,193,21],[193,1,193,3],[196,6,196,11],[196,17,196,21],[169,15,169,18],[168,15,168,18],[169,9,169,10],[170,11,170,12],[169,11,169,12],[172,11,172,12],[172,13,172,14],[172,15,172,18],[171,11,171,12],[51,8,51,9],[120,1,120,21],[114,9,114,10],[171,15,171,18],[170,13,170,14],[170,15,170,18],[58,1,58,21],[55,13,55,14],[89,8,89,9],[54,20,54,21],[186,3,186,8],[181,15,181,18],[162,1,162,2],[140,9,140,10],[143,7,143,21],[169,3,169,8],[174,3,174,8],[174,9,174,10],[62,7,62,9],[145,7,145,10],[128,4,128,5],[64,14,64,21],[181,11,181,12],[90,18,90,19],[90,20,90,21],[95,1,95,5],[71,1,71,3],[75,12,75,14],[184,3,184,8],[132,17,132,20],[134,7,134,10],[149,1,149,4],[171,13,171,14],[168,13,168,14],[172,3,172,8],[167,3,168,8],[26,9,26,11],[62,14,62,21],[54,15,54,16],[147,7,147,10],[34,9,34,11],[34,13,34,16],[34,18,34,20],[89,15,89,17],[54,11,54,12],[59,10,59,13],[53,1,53,21],[47,12,47,13],[47,14,47,16],[47,17,47,18],[47,19,49,19],[47,20,47,21],[48,4,48,5],[48,7,48,8],[51,1,51,2],[55,11,55,12],[55,4,55,5],[78,5,78,7],[61,14,61,21],[63,14,63,21],[61,7,61,9],[59,7,60,9],[65,7,65,9],[65,14,65,21],[179,13,179,14],[179,15,179,18],[180,13,180,14],[182,13,182,14],[180,15,180,18],[182,15,182,18],[177,9,177,10],[177,11,177,12],[177,13,177,14],[177,15,177,18],[178,15,178,18],[179,9,179,10],[173,13,173,14],[176,9,176,10],[176,11,176,12],[176,13,176,14],[176,15,176,18],[173,9,173,10],[173,11,173,12],[175,9,175,10],[175,11,175,12],[175,13,175,14],[175,15,175,18],[174,11,174,12],[173,15,173,18],[182,11,182,12],[179,11,179,12],[183,11,183,12],[183,13,183,14],[178,9,178,10],[178,11,178,12],[178,13,178,14],[181,13,181,14],[55,20,55,21],[88,15,88,17],[96,15,96,21],[73,1,73,21],[84,18,84,19],[180,9,180,10],[90,5,90,7],[83,5,83,7],[65,1,65,6],[180,11,180,12],[183,15,183,18],[98,19,98,20],[86,12,86,13],[81,5,81,7],[87,15,87,17],[87,18,87,19],[121,12,121,21],[87,1,87,3],[82,1,82,3],[82,5,82,7],[84,8,84,9],[83,10,83,11],[84,10,84,11],[86,8,86,9],[85,12,85,14],[81,1,81,3],[35,1,35,6],[36,4,36,21],[47,1,49,3],[47,4,47,5],[42,17,42,19],[236,9,236,11],[236,13,236,15],[234,1,234,21],[233,1,233,21],[42,15,42,16],[56,4,56,5],[177,3,177,8],[188,9,188,10],[47,7,47,8],[42,12,42,14],[42,9,42,11],[42,1,45,3],[42,5,42,8],[169,1,176,2],[166,1,166,21],[110,9,110,10],[56,1,56,2],[144,17,144,20],[123,5,123,7],[38,1,38,14],[188,11,188,12],[188,13,188,14],[188,15,188,18],[187,9,187,10],[173,3,173,8],[89,5,89,7],[89,10,89,11],[229,18,229,21],[230,1,230,21],[51,15,51,16],[56,7,56,8],[99,4,99,11],[61,1,61,6],[63,1,63,6],[83,12,83,14],[84,12,84,14],[83,20,83,21],[47,9,47,10],[47,11,49,11],[39,20,39,21],[250,8,250,13],[250,15,250,20],[235,5,235,7],[235,9,235,11],[235,13,235,15],[235,17,235,19],[236,5,236,7],[88,5,88,7],[88,8,88,9],[88,10,88,11],[88,12,88,14],[54,13,54,14],[123,1,123,3],[59,1,60,6],[69,1,69,21],[62,1,62,6],[71,4,71,21],[122,17,122,20],[87,20,87,21],[38,15,38,21],[41,1,41,21],[55,1,55,2],[55,18,55,19],[54,18,54,19],[191,3,191,8],[88,1,88,3],[89,1,89,3],[122,1,122,4],[96,1,96,3],[118,4,118,8],[91,4,91,11],[123,9,123,10],[191,11,191,12],[191,9,191,10],[187,11,187,12],[187,13,187,14],[187,15,187,18],[99,12,99,14],[179,3,179,8],[191,1,191,2],[183,9,183,10],[83,18,83,19],[122,7,122,10],[70,14,70,15],[84,5,84,7],[85,4,85,11],[54,1,54,2],[54,4,54,5],[107,14,107,16],[107,17,107,18],[108,11,108,13],[281,11,281,15],[281,16,281,18],[281,19,281,21],[282,16,282,18],[281,9,281,10],[282,9,282,10],[282,11,284,13],[42,20,42,21],[282,14,282,15],[283,6,283,8],[283,9,283,10],[283,14,283,15],[227,18,227,21],[225,18,225,21],[226,1,226,21],[243,1,243,21],[272,4,272,21],[49,14,49,16],[100,1,100,21],[99,15,99,21],[49,17,49,18],[85,15,85,21],[87,8,87,9],[87,10,87,11],[49,7,49,8],[95,12,95,16],[191,13,191,14],[96,4,96,11],[97,19,97,20],[88,18,88,19],[89,18,89,19],[121,1,121,11],[296,7,296,9],[296,13,296,14],[293,7,293,14],[294,11,294,12],[295,11,295,12],[294,13,294,14],[295,13,295,14],[37,1,37,15],[72,1,72,15],[232,1,232,15],[248,1,248,21],[291,1,291,15],[268,10,268,16],[46,4,46,21],[49,20,49,21],[49,4,49,5],[218,1,218,21],[282,19,282,21],[49,9,49,10],[295,18,295,19],[294,18,294,19],[295,15,295,16],[294,15,294,16],[294,7,294,9],[295,7,295,9],[97,17,97,18],[264,10,264,16],[284,4,284,5],[284,6,284,8],[284,9,284,10],[284,14,284,15],[284,16,284,18],[24,1,24,6],[24,8,24,13],[24,15,24,20],[33,9,33,10],[33,12,33,13],[33,15,33,16],[26,1,26,2],[26,3,26,4],[26,5,26,6],[26,20,26,21],[18,1,18,4],[18,5,18,10],[18,11,18,14],[18,15,18,21],[19,1,19,3],[19,4,19,21],[16,1,16,4],[16,5,16,10],[16,11,16,14],[16,15,16,21],[17,1,17,4],[17,5,17,10],[17,11,17,14],[17,15,17,21],[33,18,33,20],[26,16,26,17],[26,18,26,19],[26,7,26,8],[25,1,25,21],[33,1,33,6],[20,1,20,21],[30,19,30,21]],"merged_total":1192,"flags":["merged_cut"]}
[null,"FICHA  PARA EL LEVANTAMIENTO Y JERARQUIZACIÓN DE ATRACTIVOS TURÍSTICOS"]
[null,"Código del atractivo:",null,null,null,{"$f":"INDEX(DPA!A2:C26,MATCH(B11,DPA!A2:A26,0),2)","v":1},{"$f":"INDEX(DPA!A2:C26,MATCH(B11,DPA!A2:A26,0),3)","v":0},{"$f":"INDEX(DPA!A29:C255,MATCH(I11,DPA!A29:A255,0),2)","v":0},{"$f":"INDEX(DPA!A29:C255,MATCH(I11,DPA!A29:A255,0),3)","v":1},{"$f":"INDEX(DPA!A258:C1507,MATCH(P11,DPA!A258:A1507,0),2)","v":5},{"$f":"INDEX(DPA!A258:C1507,MATCH(P11,DPA!A258:A1507,0),3)","v":1},{"$f":"IF(B8=\"ATRACTIVOS_NATURALES\",\"A\",IF(B8=\"MANIFESTACIONES_CULTURALES\",\"M\",0))","v":"M"},{"$f":"IF(B8=\"ATRACTIVOS_NATURALES\",\"N\",IF(B8=\"MANIFESTACIONES_CULTURALES\",\"C\",0))","v":"C"},{"$f":"INDEX(Clas_AT!A2:C16,MATCH(I8,Clas_AT!A2:A16,0),2)","v":"0"},{"$f":"INDEX(Clas_AT!A2:C16,MATCH(I8,Clas_AT!A2:A16,0),3)","v":4},{"$f":"INDEX(Clas_AT!A19:C97,MATCH(P8,Clas_AT!A19:A97,0),2)","v":"0"},{"$f":"INDEX(Clas_AT!A19:C97,MATCH(P8,Clas_AT!A19:A97,0),3)","v":1},{"$f":"IF(M2=\"SITIOS\",1,0)","v":0},{"$f":"IF(AND(Jerarquia!C1>=11,Jerarquia!C1<=35),1,IF(AND(Jerarquia!C1>=36,Jerarquia!C1<=60),2,IF(AND(Jerarquia!C1>=61,Jerarquia!C1<=85),3,IF(AND(Jerarquia!C1>=86,Jerarquia!C1<=100),4,0))))","v":1},0,0,1]
[null,null,null,null,null,"Provincia",null,"Cantón",null,"Parroquia",null,"Categoría",null,"Tipo",null,"Subtipo",null,"Jerarquía",null,"Atractivo"]
[null,"1. DATOS GENERALES"]
[null,"1.1 Nombre del Atractivo Turístico"]
[null,"CARNAVAL OLAS DEL RÍO"]
[null,"1.2 Categoría",null,null,null,null,null,null,"1.3 Tipo",null,null,null,null,null,null,"1.4 Subtipo"]
[null,"MANIFESTACIONES_CULTURALES",null,null,null,null,null,null,"ACONTECIMIENTOS_PROGRAMADOS",null,null,null,null,null,null,"EVENTOS ARTÍSTICOS"]
[null,"2. UBICACIÓN DEL ATRACTIVO"]
[null,"2.1 Provincia",null,null,null,null,null,null,"2.2 Cantón ",null,null,null,null,null,null,"2.3 Parroquia"]
[null,"IMBABURA",null,null,null,null,null,null,"IBARRA",null,null,null,null,null,null,"AMBUQUI"]
[null,"2.4 Barrio, Sector o Comuna",null,null,null,null,null,null,"2.5 Calle Principal",null,null,null,null,"2.6 Número",null,null,null,"2.7 Transversal"]
[null,"Comunidad del Juncal",null,null,null,null,null,null,"E35, Panamericana Norte (debajo del Puente el Juncal)",null,null,null,null,"SN",null,null,null,"SN"]
[null,"2.8 Latitud (grados decimales)",null,null,null,null,null,null,"2.9 Longitud (grados decimales)",null,null,null,null,null,{"$f":"HYPERLINK(Jerarquia!C96,\"Click\")","v":"Click"},"2.10 Altura (msnm)"]
[null,"0.434330",null,null,null,null,null,null,"-77.963530",null,null,null,null,null,null,3018]
[null,"2.11 Información del administrador"]
[null,"a. Tipo de Administrador:",null,null,null,"Comunidad",null,null,null,null,null,"b. Nombre de la Institución:",null,null,null,"Comunidad Juncal"]
[null,"c. Nombre del Administrador:",null,null,null,"Leidy Rodriguez",null,null,null,null,null,"d. Cargo que ocupa:",null,null,null,"Vicepresidenta"]
[null,"e. Teléfono / Celular:",null,null,null,"(+593)",null,null,null,null,null,"f. Correo Electrónico:",null,null,null,"No existe"]
[null,"Observaciones:",null,null,"Comité organizador de la comunidad."]
[null,"3. CARACTERISTICAS DEL ATRACTIVO"]
[null,"3.1 Características climatológicas"]
[null,"a. Clima:",null,"Cálido Seco",null,null,null,null,null,null,"b. Temperatura(ºC):",null,null,"12° a 20°",null,"c. Precipitación Pluviométrica (mm):",null,null,null,null,"300 - 400"]
[null,"3.2 Línea de producto al que pertenece el atractivo (U)"]
[null,"a. Cultura",null,null,null,null,null,null,"b. Naturaleza",null,null,null,null,null,null,"c. Aventura"]
[null,"3.3 Escenario donde se localiza el atractivo turístico"]
[null,"a. Prístino",null,null,null,"b. Primitivo",null,null,null,"c. Rústico Natural",null,null,null,null,"d. Rural",null,null,null,"e. Urbano"]
[null,"3.4 Ingreso al atractivo (U)"]
[null,"a. Tipo de Ingreso",null,null,"b. Horario de Atención",null,null,null,"c. Atención"]
[null,null,null,null,"Ingreso",null,"Salida",null,"Todos los días",null,null,"Fines de semana y feriados",null,null,"Solo días hábiles",null,null,"Otro",null,"Especificar"]
[null,"Libre",null,null,"00:00:00",null,"23:59:00",null,null,null,null,null,null,null,null,null,null,null,null,"1 Vez al año"]
[null,"Restringido",null,null,"00:00:00",null,"00:00:00",null,null,null,null,null,null,null,null,null,null,null,null,"No Aplica"]
[null,"Pagado",null,null,"00:00:00",null,"00:00:00",null,null,null,null,null,null,null,null,null,null,null,null,"No Aplica"]
[null,"d. Maneja un sistema de reservas:",null,null,null,null,null,"f. Forma de Pago:",null,"Efectivo",null,null,"Dinero Electrónico",null,null,"Depósito Bancario",null,null,"Tarjeta de Débito"]
[null,"e. Precio:",null,"Desde",0,"Hasta",0,null,null,"Tarjeta de Crédito",null,null,null,"Transferencia Bancaria",null,null,null,null,"Cheque"]
[null,"g. Meses recomendables de visita:",null,null,null,null,null,"Mes de febrero de cada año"]
[null,"Observaciones:",null,null,"Evento programado anualmente"]
[null,"4. ACCESIBILIDAD Y CONECTIVIDAD AL ATRACTIVO",null,null,null,null,null,null,null,null,null,null,null,null,null,null,"SI",null,"NO",null,"S/I"]
[null,"a. Nombre de la ciudad o poblado más cercano (Que presente condiciones mínimas de servicios):",null,null,null,null,null,null,null,null,null,null,null,null,null,"Pimapiro"]
[null,"b. Distancia desde la ciudad o poblado más cercano:",null,null,null,8,"km","c. Tiempo  estimado de desplazamiento en auto:",null,null,null,"12:00:00","h/min","d. Coordenadas (grados decimales):",null,null,"Lat.:","0.393359",null,"Long.:","-77.940381"]
[null,"Observaciones:",null,null,"Considerado como ciudad más cercano el Cantón Pimampiro"]
[null,"4.2 Vías de Acceso (M)"]
[null,"a. Terrestre (M)",null,null,null,"Tipo de vía",null,null,null,"Coordenada de inicio",null,null,"Coordenada de fin",null,null,"Distancia (km)",null,"Tipo de material",null,null,"Estado"]
[null,null,null,null,null,"a. Primer orden",null,null,null,"0.393359 / -77.940381",null,null,"0.434330 / -77.963530",null,null,8,null,"Asfaltado",null,null,"Bueno"]
[null,null,null,null,null,"b. Segundo orden",null,null,null,"0",null,null,"0",null,null,0,null,"No aplica"]
[null,null,null,null,null,"c. Tercer orden",null,null,null,"0",null,null,"0",null,null,0,null,"No aplica"]
[null,"Observaciones:",null,null,"No aplica"]
[null,"b. Acuático (U)",null,null,"Marítimo",null,null,"Puerto / Muelle de partida",null,"No Aplica",null,"Estado",null,null,"Puerto / Muelle de Llegada",null,null,"texto",null,"Estado"]
[null,null,null,null,"Lacustre",null,null,"Puerto / Muelle de partida",null,"No Aplica",null,null,null,null,"Puerto / Muelle de Llegada",null,null,"texto"]
[null,null,null,null,"Fluvial",null,null,"Puerto / Muelle de partida",null,"No Aplica",null,null,null,null,"Puerto / Muelle de Llegada",null,null,"texto"]
[null,"Observaciones:",null,null,"texto"]
[null,"c. Aéreo (U)",null,null,null,null,null,null,"Nacional:",null,null,null,null,null,null,"Internacional:"]
[null,"Observaciones:",null,null,"texto"]
[null,"4.3 Servicio de transporte (M)"]
[null,"a. Bus",null,null,"b. Buseta",null,null,"c. Transporte 4x4",null,null,null,"d. Taxi",null,null,null,"e. Moto taxi",null,null,"f. Teleférico"]
[null,"g. Lancha",null,null,"h. Bote",null,null,"i. Barco",null,null,null,"j. Canoa",null,null,null,"k. Avión",null,null,"l. Avioneta"]
[null,"m. Helicóptero",null,null,"n. Otro",null,null,"Especifique"]
[null,"Observaciones:",null,null,"Busetas, son interprovinciales, intracantonales, etc."]
[null,"4.3.1 Detalle de transporte hacia el atractivo (M)"]
[null,"a. Nombre de la cooperativa o asociación que presta el servicio",null,null,null,null,null,"b. Estación / terminal",null,null,"c. Frecuencia",null,null,null,"d. Detalle (Traslado origen / destino)"]
[null,null,null,null,null,null,null,null,null,null,"Diaria","Semanal","Mensual","Eventual"]
[null,"Oriental",null,null,null,null,null,"Terminal",null,null,null,null,null,null,"Pimanpiro a Ibarra"]
[null,"Pullman Carchi",null,null,null,null,null,"texto",null,null,null,null,null,null,"texto"]
[null,"Velotax",null,null,null,null,null,"texto",null,null,null,null,null,null,"texto"]
[null,"texto",null,null,null,null,null,"texto",null,null,null,null,null,null,"texto"]
[null,"texto",null,null,null,null,null,"texto",null,null,null,null,null,null,"texto"]
[null,"4.4 Condiciones de accesibilidad del atractivo turístico al medio físico para personas con discapacidad (M)"]
[null,"General",null,null,"Discapacidad Física",null,null,"Discapacidad Visual",null,null,"Dicapacidad Auditiva",null,null,"Discapacidad Intelectual o Psicosocial",null,null,null,null,null,"d. No es accesible"]
[null,"Observaciones:",null,null,"Siempre con ayuda técnica"]
[null,"4.5 Señalización"]
[null,"a. Señalización de aproximación al atractivo",null,null,null,null,null,null,"Estado (U)",null,"Bueno",null,null,null,"Regular ",null,null,null,"Malo "]
[null,"Observaciones:",null,null,"texto"]
[null,"5. PLANTA TURÍSTICA / COMPLEMENTARIOS",null,null,null,null,null,null,null,null,null,null,null,null,null,null,"SI",null,"NO",null,"S/I"]
[null,"5.1 Planta turística (M)"]
[null,"a. En el Atractivo",null,null,null,null,null,null,null,null,null,null,"b. En la ciudad o poblado cercano"]
[null,"Alojamiento",null,null,null,"Establecimientos registrados",null,null,"Número de Habitaciones",null,"Número de Plazas",null,"Alojamiento",null,null,null,"Establecimientos registrados",null,"Número de Habitaciones",null,"Número de Plazas"]
[null,"Hotel",null,null,null,1,null,null,15,null,40,null,"Hotel",null,null,null,3,null,60,null,150]
[null,"Hostal",null,null,null,0,null,null,0,null,0,null,"Hostal",null,null,null,0,null,0,null,0]
[null,"Hostería",null,null,null,0,null,null,0,null,0,null,"Hostería",null,null,null,0,null,0,null,0]
[null,"Hacienda Turística",null,null,null,0,null,null,0,null,0,null,"Hacienda Turística",null,null,null,0,null,0,null,0]
[null,"Lodge",null,null,null,0,null,null,0,null,0,null,"Lodge",null,null,null,0,null,0,null,0]
[null,"Resort",null,null,null,0,null,null,0,null,0,null,"Resort",null,null,null,0,null,0,null,0]
[null,"Refugio",null,null,null,0,null,null,0,null,0,null,"Refugio",null,null,null,0,null,0,null,0]
[null,"Campamento Turístico",null,null,null,0,null,null,0,null,0,null,"Campamento Turístico",null,null,null,0,null,0,null,0]
[null,"Casa de Huéspedes",null,null,null,0,null,null,0,null,0,null,"Casa de Huéspedes",null,null,null,0,null,0,null,0]
[null,"Observaciones:",null,null,"texto",null,null,null,null,null,null,null,"Observaciones:",null,null,"texto"]
[null,"Alimentos y bebidas ",null,null,null,"Establecimientos registrados",null,null,"Número de Mesas",null,"Número de Plazas",null,"Alimentos y bebidas ",null,null,"Establecimientos registrados",null,null,"Número de Mesas",null,"Número de Plazas"]
[null,"Restaurantes",null,null,null,3,null,null,60,null,200,null,"Restaurantes",null,null,0,null,null,0,null,0]
[null,"Cafeterías",null,null,null,0,null,null,0,null,0,null,"Cafeterías",null,null,0,null,null,0,null,0]
[null,"Bares",null,null,null,0,null,null,0,null,0,null,"Bares",null,null,0,null,null,0,null,0]
[null,"Fuentes de soda",null,null,null,0,null,null,0,null,0,null,"Fuentes de soda",null,null,0,null,null,0,null,0]
[null,"Observaciones:",null,null,"texto",null,null,null,null,null,null,null,"Observaciones:",null,null,"texto"]
[null,"Agencias de Viaje",null,null,null,null,null,"Establecimientos registrados",null,null,null,null,"Agencias de Viaje",null,null,null,null,null,"Establecimientos registrados"]
[null,"Mayoristas",null,null,null,null,null,0,null,null,null,null,"Mayoristas",null,null,null,null,null,0]
[null,"Internacionales",null,null,null,null,null,0,null,null,null,null,"Internacionales",null,null,null,null,null,0]
[null,"Operadoras",null,null,null,null,null,1,null,null,null,null,"Operadoras",null,null,null,null,null,0]
[null,"Observaciones:",null,null,"texto",null,null,null,null,null,null,null,"Observaciones:",null,null,"texto"]
[null,"Guía",null,"Local","Nacional",null,"Nacional Especializado",null,"Cultura",null,0,null,"Guía",null,"Local","Nacional",null,"Nacional Especializado",null,"Cultura",null,0]
[null,null,null,5,0,null,0,null,"Aventura",null,0,null,null,null,0,0,null,0,null,"Aventura",null,0]
[null,"Observaciones:",null,null,"texto",null,null,null,null,null,null,null,"Observaciones:",null,null,"texto"]
[null,"5.2 Facilidades en el entorno al atractivo"]
[null,"Categoría (M)",null,null,"Tipo (M)",null,null,null,null,"Cantidad",null,"Coordenadas",null,null,"Administrador",null,null,"Accesibilidad universal",null,"Estado (U)"]
[null,null,null,null,null,null,null,null,null,null,null,null,null,null,null,null,null,null,null,"B","R","M"]
[null,"a. De apoyo a la gestión turística",null,null,"Punto de Información",null,null,null,null,0,null,"0",null,null,"texto"]
[null,null,null,null,"I-Tur",null,null,null,null,0,null,"0",null,null,"texto"]
[null,null,null,null,"Centro de interpretación",null,null,null,null,0,null,"0",null,null,"texto"]
[null,null,null,null,"Centro de facilitación turística",null,null,null,null,0,null,"0",null,null,"texto"]
[null,null,null,null,"Centro de recepción de visitantes",null,null,null,null,0,null,"0",null,null,"texto"]
[null,"b. De observación y vigilancia",null,null,"Garitas de guardianía",null,null,null,null,0,null,"0",null,null,"texto"]
[null,null,null,null,"Miradores",null,null,null,null,0,null,"0",null,null,"texto"]
[null,null,null,null,"Torres de avistamiento de aves",null,null,null,null,0,null,"0",null,null,"texto"]
[null,null,null,null,"Torres de vigilancia para salvavidas",null,null,null,null,0,null,"0",null,null,"texto"]
[null,"c. De recorrido y descanso",null,null,"Senderos",null,null,null,null,0,null,"0",null,null,"texto"]
[null,null,null,null,"Estaciones de sombra y descanso",null,null,null,null,0,null,"0",null,null,"texto"]
[null,null,null,null,"Áreas de acampar",null,null,null,null,0,null,"0",null,null,"texto"]
[null,null,null,null,"Refugio de alta montaña",null,null,null,null,0,null,"0",null,null,"texto"]
[null,"d. De servicio",null,null,"Baterías sanitarias",null,null,null,null,0,null,"0",null,null,"texto"]
[null,null,null,null,"Estacionamientos",null,null,null,null,0,null,"0",null,null,"texto"]
[null,"e. Otros",null,null,null,null,null,null,null,0,null,"0",null,null,"texto"]
[null,"Observaciones:",null,null,"texto"]
[null,"5.3 Complementarios a la actividad turística (M)"]
[null,"a. En el Atractivo",null,null,null,null,null,null,null,null,null,null,"b. En la ciudad o poblado cercano"]
[null," Alquiler y venta de equipo especializado",null,null,null,null,null,"Venta de artesanías y merchandising",null,null,null,null,"Alquiler y venta de equipo especializado",null,null,null,null,"Venta de artesanías y merchandising"]
[null,"Casa de cambio",null,null,null,"Cajero automático",null,null,null,"Otro",null,null,"Casa de cambio",null,null,null,"Cajero automático",null,null,null,"Otro"]
[null,"Especifique:",null,"texto",null,null,null,null,null,null,null,null,"Especifique:",null,"texto"]
[null,"Observaciones:",null,null,"texto"]
[null,"6. ESTADO DE CONSERVACIÓN E INTEGRACIÓN ATRACTIVO / ENTORNO",null,null,null,null,null,null,null,null,null,null,null,null,null,null,"SI",null,"NO",null,"S/I"]
[null,"6.1 Atractivo (U)"]
[null,"a. Conservado",null,null,null,null,"b. Alterado ",null,null,null,null,"c. En proceso de deterioro",null,null,null,null,null,"d. Deteriorado"]
[null,"Observaciones:"]
[null,"6.1.1 Factores de alteración y deterioro (M)"]
[null,"6.1.1.1 Naturales (M)",null,null,null,null,null,"6.1.1.2 Antrópicos / Antropogénicos (M)"]
[null,"a. Erosión ",null,null,null,null,null,"a. Actividades agrícolas y ganaderas",null,null,null,null,"b. Actividades forestales",null,null,null,null,"c. Actividades extractivas / minería"]
[null,"b. Humedad ",null,null,null,null,null,"d. Actividades  industriales",null,null,null,null,"e. Negligencia / abandono",null,null,null,null,"f. Huaquearía"]
[null,"c. Desastres naturales",null,null,null,null,null,"g. Conflicto de tenencia",null,null,null,null,"h. Condiciones de uso y exposición",null,null,null,null,"i. Falta de mantenimiento "]
[null,"d. Flora/Fauna",null,null,null,null,null,"j. Contaminación del ambiente",null,null,null,null,"k. Generación de residuos",null,null,null,null,"l. Expansión urbana"]
[null,"e. Clima",null,null,null,null,null,"m. Conflicto político / social",null,null,null,null,"n. Desarrollo industrial / comercial",null,null,null,null,"o. Vandalismo"]
[null,"Otro",null,null,null,null,null,"Especifique:",null,"texto"]
[null,"Observaciones:",null,null,"texto"]
[null,"6.2 Entorno (U)"]
[null,"a. Conservado",null,null,null,null,"b. Alterado ",null,null,null,null,"c. En proceso de deterioro",null,null,null,null,null,"d. Deteriorado"]
[null,"Observaciones:",null,null,"No conservan las adecuaciones tradicionales"]
[null,"6.2.1 Factores de alteración y deterioro (M)"]
[null,"6.2.1.1 Naturales (M)",null,null,null,null,null,"6.2.1.2 Antrópicos / Antropogénicos (M)"]
[null,"a. Erosión ",null,null,null,null,null,"a. Actividades agrícolas y ganaderas",null,null,null,null,"b. Actividades forestales",null,null,null,null,"c. Actividades extractivas / minería"]
[null,"b. Humedad ",null,null,null,null,null,"d. Actividades  industriales",null,null,null,null,"e. Negligencia / abandono",null,null,null,null,"f. Huaquearía"]
[null,"c. Desastres naturales",null,null,null,null,null,"g. Conflicto de tenencia",null,null,null,null,"h. Condiciones de uso y exposición",null,null,null,null,"i. Falta de mantenimiento "]
[null,"d. Flora/Fauna",null,null,null,null,null,"j. Contaminación del ambiente",null,null,null,null,"k. Generación de residuos",null,null,null,null,"l. Expansión urbana"]
[null,"e. Clima",null,null,null,null,null,"m. Conflicto político / social",null,null,null,null,"n. Desarrollo industrial / comercial",null,null,null,null,"o. Vandalismo"]
[null,"Otro",null,null,null,null,null,"Especifique:",null,"No se conservan la chosas tradicionales"]
[null,"Observaciones:",null,null,"texto"]
[null,"6.3. Declaratoria del espacio turístico asociado al atractivo"]
[null,"a. Declarante:",null,null,null,null,null,"b. Denominación:",null,null,"texto",null,null,"b. Fecha de declaración:",null,"texto",null,null,"c. Alcance: ",null,"texto"]
[null,"Observaciones:",null,null,"texto"]
[null,"7. HIGIENE Y SEGURIDAD TURÍSTICA",null,null,null,null,null,null,null,null,null,null,null,null,null,null,"SI",null,"NO",null,"S/I"]
[null,"7.1 Servicios Básicos"]
[null,"a. En el atractivo",null,null,null,null,null,null,null,null,null,null,"b. En la ciudad o poblado mas cercano"]
[null,"Agua:",null,null,null,null,null,null,null,null,null,null,"Agua "]
[null,"Especifique:",null,"texto",null,null,null,null,null,null,null,null,"Especifique:",null,"texto"]
[null,"Energía eléctrica:",null,null,null,null,null,null,null,null,null,null,"Energía eléctrica"]
[null,"Especifique:",null,"texto",null,null,null,null,null,null,null,null,"Especifique:",null,"texto"]
[null,"Saneamiento:",null,null,null,null,null,null,null,null,null,null,"Saneamiento:"]
[null,"Especifique:",null,"texto",null,null,null,null,null,null,null,null,"Especifique:",null,"texto"]
[null,"Disposición de desechos",null,null,null,null,null,null,null,null,null,null,"Disposición de desechos"]
[null,"Especifique:",null,"texto",null,null,null,null,null,null,null,null,"Especifique:",null,"texto"]
[null,"Observaciones:",null,null,"texto"]
[null,"7.2 Señalética en el atractivo"]
[null,"7.2.1 Ambiente",null,"7.2.2. Tipo",null,null,null,null,null,"7.2.3. Materialidad",null,null,null,null,null,null,null,null,null,"7.2.4. Estado"]
[null,null,null,null,null,null,null,null,null,"a. Madera",null,"b.Aluminio",null,"c.Otro",null,"Especifique",null,null,null,"B","R","M"]
[null,"En áreas urbanas",null,"Pictograma de atractivos naturales",null,null,null,null,null,0,null,0,null,0,null,"texto"]
[null,null,null,"Pictograma de atractivos culturales",null,null,null,null,null,0,null,0,null,0,null,"texto"]
[null,null,null,"Pictograma de actividades turísticas",null,null,null,null,null,0,null,0,null,0,null,"texto"]
[null,null,null,"Pictograma de servicios de apoyo",null,null,null,null,null,0,null,0,null,0,null,"texto"]
[null,null,null,"Pictogramas de restricción",null,null,null,null,null,0,null,0,null,0,null,"texto"]
[null,null,null,"Tótems de atractivos turísticos",null,null,null,null,null,0,null,0,null,0,null,"texto"]
[null,null,null,"Tótems de sitio",null,null,null,null,null,0,null,0,null,0,null,"texto"]
[null,null,null,"Tótems direccionales",null,null,null,null,null,0,null,0,null,0,null,"texto"]
[null,"En áreas naturales",null,"Pictograma de atractivos naturales",null,null,null,null,null,0,null,0,null,0,null,"texto"]
[null,null,null,"Pictograma de atractivos culturales",null,null,null,null,null,0,null,0,null,0,null,"texto"]
[null,null,null,"Pictograma de actividades turísticas",null,null,null,null,null,0,null,0,null,0,null,"texto"]
[null,null,null,"Pictograma de servicios de apoyo",null,null,null,null,null,0,null,0,null,0,null,"texto"]
[null,null,null,"Pictogramas de restricción",null,null,null,null,null,0,null,0,null,0,null,"texto"]
[null,null,null,"Señales turísticas de aproximación",null,null,null,null,null,0,null,0,null,0,null,"texto"]
[null,null,null,"Paneles de direccionamiento hacia atractivos",null,null,null,null,null,0,null,0,null,0,null,"texto"]
[null,null,null,"Panel informativo de atractivos",null,null,null,null,null,0,null,0,null,0,null,"texto"]
[null,null,null,"Panel informativo de direccionamiento hacia atractivos, servicios y actividades",null,null,null,null,null,0,null,0,null,0,null,"texto"]
[null,null,null,"Mesas interpretativas",null,null,null,null,null,0,null,0,null,0,null,"texto"]
[null,null,null,"Tótem de sitio",null,null,null,null,null,0,null,0,null,0,null,"texto"]
[null,null,null,"Tótem de direccionamiento",null,null,null,null,null,0,null,0,null,0,null,"texto"]
[null,"Letreros informativos",null,"De información botánica",null,null,null,null,null,0,null,0,null,0,null,"texto"]
[null,null,null,"Normativos de concienciación",null,null,null,null,null,0,null,0,null,0,null,"texto"]
[null,"Señalética interna de seguridad",null,"Protección de los elementos del atractivo",null,null,null,null,null,0,null,0,null,0,null,"texto"]
[null,"Otros",null,"texto"]
[null,"Observaciones:",null,null,"texto"]
[null,"7.3 Salud (más cercano) (M)"]
[null,"a. En el atractivo",null,null,null,null,null,null,null,null,null,null,"b. En la ciudad o poblado mas cercano"]
[null,"Hospital o Clínica",null,null,null,"Cantidad",0,null,null,null,null,null,"Hospital o Clínica",null,null,null,"Cantidad",0]
[null,"Puesto / Centro de salud",null,null,null,null,0,null,null,null,null,null,"Puesto / Centro de salud",null,null,null,null,0]
[null,"Dispensario médico",null,null,null,null,0,null,null,null,null,null,"Dispensario médico",null,null,null,null,0]
[null,"Botiquín de primeros auxilios",null,null,null,null,0,null,null,null,null,null,"Botiquín de primeros auxilios",null,null,null,null,0]
[null,"Otros",null,null,null,null,0,null,null,null,null,null,"Otros",null,null,null,null,0]
[null,"Observaciones:",null,null,"texto"]
[null,"7.4 Seguridad (M)"]
[null,"a. Privada",null,null,null,null,null,"Detalle","texto"]
[null,"b. Policía nacional",null,null,null,null,null,null,"texto"]
[null,"c. Policía metropolitana / Municipal",null,null,null,null,null,null,"texto"]
[null,"d. Otra",null,null,null,null,null,null,"texto"]
[null,"Observaciones:",null,null,"texto"]
[null,"7.5 Servicio de comunicación de uso público (M)"]
[null,"a. En el atractivo",null,null,null,null,null,null,null,null,null,null,"b. En la ciudad o poblado mas cercano"]
[null,"Telefonía (M)",null,null,"Conexión a internet (M)",null,null,null,null,null,null,null,"Telefonía (M)",null,null,"Conexión a internet (M)"]
[null,"Fija",null,null,"Línea telefónica",null,null,null,"Fibra óptica",null,null,null,"Fija",null,null,"Línea telefónica",null,null,"Fibra óptica"]
[null,"Móvil",null,null,"Satélite",null,null,null,"Redes inalámbricas",null,null,null,"Móvil",null,null,"Satélite",null,null,"Redes inalámbricas"]
[null,"Satelital",null,null,"Telefonía móvil",null,null,null,null,null,null,null,"Satelital",null,null,"Telefonía móvil"]
[null,"Observaciones:",null,null,"texto"]
[null,"Radio portátil (U)"]
[null,"De uso exclusivo para el visitante",null,null,null,null,null,null,"De uso exclusivo para comunicación interna",null,null,null,null,null,null,"De uso exclusivo en caso de emergencia"]
[null,"Observaciones:",null,null,"texto"]
[null,"7.6 Multiamenzazas (M)"]
[null,"Deslaves",null,null,null,null,"Sismos",null,null,null,null,null,"Erupciones volcánicas",null,null,null,null,"Incendios forestales"]
[null,"Sequía",null,null,null,null,"Inundaciones",null,null,null,null,null,"Aguajes",null,null,null,null,"Tsunami"]
[null,"¿Existe un plan de contingencia en caso de catástrofes?",null,null,null,null,null,"Institución que elaboró el documento.",null,null,"texto",null,null,"Nombre del documento:",null,"texto",null,null,"Año de elaboración:",null,0]
[null,"Observaciones:",null,null,"texto"]
[null,"8. POLÍTICAS Y REGULACIONES",null,null,null,null,null,null,null,null,null,null,null,null,null,null,"SI",null,"NO",null,"S/I"]
[null,"a. ¿El GAD cuenta con el Plan de Desarrollo Turístico Territorial?",null,null,null,null,null,null,null,null,null,"SI",null,"NO",null,null,null,"Año de elaboración:"]
[null,"b. ¿El atractivo se encuentra dentro de la planificación turística territorial (GAD´S)?",null,null,null,null,null,null,null,null,null,null,null,null,"SI",null,"NO",null,"Especifique:"]
[null,"texto"]
[null,"c. ¿Existen normativas que se apliquen para el desarrollo de la actividad turística en el atractivo?",null,null,null,null,null,null,null,null,null,null,null,null,"SI",null,"NO",null,"Especifique:"]
[null,"texto"]
[null,"d. ¿Existen ordenanzas que se apliquen para el desarrollo de la actividad turística en el atractivo?",null,null,null,null,null,null,null,null,null,null,null,null,"SI",null,"NO",null,"Especifique:"]
[null,"texto"]
[null,"Observaciones:",null,null,"texto"]
[null,"9. ACTIVIDADES QUE SE PRACTICAN (U)",null,null,null,null,null,null,null,null,null,null,null,null,null,null,"SI",null,"NO",null,"S/I"]
[null,"9.1 ATRACTIVOS NATURALES (M)"]
[null,"9.1.1 En el Agua (M)"]
[null,"a. Buceo",null,null,null,"b. Kayak de mar",null,null,null,"c. Kayak lacustre",null,null,null,"d. Kayak de Río",null,null,null,"e. Surf"]
[null,"f. Kite surf",null,null,null,"g. Rafting",null,null,null,"h. Snorkel",null,null,null,"i. Tubing",null,null,null,"j. Regata"]
[null,"k. Paseo en panga",null,null,null,"l. Paseo en bote",null,null,null,"m. Paseo en lancha",null,null,null,"n. Paseo en moto acuática",null,null,null,"o. Parasailing"]
[null,"p. Esquí acuático",null,null,null,"q. Banana flotante",null,null,null,"r. Boya",null,null,null,"s. Pesca deportiva",null,null,null,"Otro",null,"texto"]
[null,"Observaciones:",null,null,"texto"]
[null,"9.1.2 En el Aire (M)"]
[null,"a. Alas Delta",null,null,null,"b. Canopy",null,null,null,"c. Parapente",null,null,null,"d Otro",null,null,"texto"]
[null,"Observaciones:",null,null,"texto"]
[null,"9.1.3 En Superficie Terrestre (M)"]
[null,"a. Montañismo",null,null,null,"b. Escalada",null,null,null,"c. Senderismo",null,null,null,"d. Cicloturismo",null,null,null,"e. Canyoning"]
[null,"f.  Exploración de cuevas",null,null,null,"g. Actividades Recreativas",null,null,null,"h. Cabalgata",null,null,null,"i. Caminata",null,null,null,"j. Camping"]
[null,"k. Picnic",null,null,null,"l. Observación de flora y fauna",null,null,null,"m. Observación de astros",null,null,null,"n. Otro",null,null,"texto"]
[null,"Observaciones:",null,null,"texto"]
[null,"9.2 ATRACTIVOS CULTURALES (U)"]
[null,"9.2.1 Tangibles e intangibles"]
[null,"a. Recorridos guiados",null,null,null,null,null,null,"b. Recorrido autoguiados",null,null,null,null,null,null,"c. Visita a talleres artísticos"]
[null,"h. Participación en talleres artísticos",null,null,null,null,null,null,"d. Visita a talleres artesanales",null,null,null,null,null,null,"i. Participación en talleres artesanales"]
[null,"e. Exposiciones temáticas permanentes, temporales y eventuales",null,null,null,null,null,null,"f. Exhibición de piezas, muestras, obras, etc., originales.",null,null,null,null,null,null,"i. Actividades vivenciales y/o lúdicas"]
[null,"g. Presentaciones o representaciones en vivo",null,null,null,null,null,null,"h. Muestras audiovisuales",null,null,null,null,null,null,"g. Fotografía"]
[null,"j. Degustación de platos tradicionales",null,null,null,null,null,null,"l. Participación de la celebración",null,null,null,null,null,null,"m. Compra de artesanías"]
[null,"n. Convivencia",null,null,null,null,null,null,"o. Medicina ancestral",null,null,null,null,null,null,"Otro",null,"texto"]
[null,"Observaciones:",null,null,"texto"]
[null,"10. PROMOCIÓN Y COMERCIALIZACIÓN DEL ATRACTIVO",null,null,null,null,null,null,null,null,null,null,null,null,null,null,"SI",null,"NO",null,"S/I"]
[null,"10.1. Medios de Promoción del Atractivo (M)"]
[null,"¿Existe un plan de promoción turística cantonal?",null,null,null,null,null,null,null,null,"SI",null,"NO",null,"Especifique:",null,"texto"]
[null,"¿El Atractivo se encuentra incluido en el plan de promoción turístico cantonal?",null,null,null,null,null,null,null,null,null,null,"SI",null,"NO"]
[null,"Medio Promocional",null,null,null,null,null,null,"Dirección y nombre de los medios promocionales",null,null,null,null,null,null,null,null,"Periodicidad de la promoción"]
[null,"a. Página WEB ",null,null,null,null,null,null,"URL:","texto",null,null,null,null,null,null,null,"Ninguna"]
[null,"b. Red Social ",null,null,null,null,null,null,"Nombre:",null,"texto",null,null,null,null,null,null,"Ninguna"]
[null,"c. Revistas Especializadas",null,null,null,null,null,null,"Nombre:",null,"texto",null,null,null,null,null,null,"Ninguna"]
[null,"d. Material POP ",null,null,null,null,null,null,"Nombre:",null,"texto",null,null,null,null,null,null,"Ninguna"]
[null,"e. Oficina de Información Turística ",null,null,null,null,null,null,"Nombre:",null,"texto",null,null,null,null,null,null,"Ninguna"]
[null,"f. Medios de comunicación (radio, tv, prensa)",null,null,null,null,null,null,"Nombre:",null,"texto",null,null,null,null,null,null,"Ninguna"]
[null,"g. Asistencia a ferias turísticas",null,null,null,null,null,null,"Nombre:",null,"texto",null,null,null,null,null,null,"Ninguna"]
[null,"h. Otro ",null,null,null,null,null,null,"Nombre:",null,"texto",null,null,null,null,null,null,"Ninguna"]
[null,"Observaciones:",null,null,"texto"]
[null,"10.2. El atractivo forma parte de una oferta establecida (paquete turístico)",null,null,null,null,null,null,null,null,null,null,"SI",null,"NO",null,"Especifique:",null,"texto"]
[null,"Observaciones:",null,null,"texto"]
[null,"11. REGISTRO DE VISITANTES Y AFLUENCIA (M)",null,null,null,null,null,null,null,null,null,null,null,null,null,null,"SI",null,"NO",null,"S/I"]
[null,"11.1. Frecuencia de visita según datos estadísticos"]
[null,"a. ¿Posee un sistema de registro de visitantes?",null,null,null,null,null,"SI",null,"NO",null,"Tipo:","Digital",null,"Papel",null,"Años de registro",null,null,0]
[null,"b. ¿Se genera reporte de estadísticas de visita al atractivo?",null,null,null,null,null,null,null,"SI",null,"NO",null,"Frecuencia de los reportes:",null,null,null,"Ninguna"]
[null,"c. Temporalidad de visita al atractivo"]
[null,"Alta (meses)",null,null,null,"Especifique","texto",null,null,null,null,null,null,null,null,null,null,"Número de visitantes",0]
[null,"Baja (meses)",null,null,null,null,"texto",null,null,null,null,null,null,null,null,null,null,null,0]
[null,"d. Llegada de turistas"]
[null,"Turista nacional",null,null,null,null,"Llegadas mensuales",null,null,"Total anual",null," Turista extranjero",null,null,null,null,"Llegadas mensuales",null,null,"Total Anual"]
[null,"Ciudades de origen",null,null,"texto",null,0,null,null,0,null,"Países de origen",null,null,"texto",null,0,null,null,0]
[null,null,null,null,"texto",null,0,null,null,0,null,null,null,null,"texto",null,0,null,null,0]
[null,null,null,null,"texto",null,0,null,null,0,null,null,null,null,"texto",null,0,null,null,0]
[null,"Observaciones:",null,null,"texto"]
[null,"11.2. Frecuencia de visita según informantes clave"]
[null,"Nombre del Informante Clave:",null,null,null,"texto",null,null,null,null,null,null,null,"Contactos:",null,"(+593)"]
[null,"Demanda según  días de visita",null,null,null,null,null,null,null,null,"Demanda según frecuencia de visita"]
[null,"Lunes a viernes",null,0,"Fines de semana",null,0,"Días feriados",null,0,"Permanente",null,null,"Estacional",null,null,"Esporádica",null,null,"Inexistente"]
[null,"Observaciones:",null,null,"texto"]
[null,"12. RECURSO HUMANO",null,null,null,null,null,null,null,null,null,null,null,null,null,null,"SI",null,"NO",null,"S/I"]
[null,"a. Número de personas a cargo de la administración y operación del atractivo",null,null,null,null,null,null,null,null,null,0,"d. Número de personas especializadas en turismo",null,null,null,null,null,null,null,0]
[null,"e. Número de personas con nivel de instrucción (M):",null,null,null,null,null,"f. Número de personas capacitadas por temática (M)",null,null,null,null,null,null,null,"g. Número de personas que manejan algún de Idiomas (M)"]
[null,"Primaria",null,0,"Secundaria",null,0,"Primeros Auxilios",null,null,0,"Hospitalidad",null,0,null,"Inglés",null,0,"Alemán",null,0]
[null,"Tercer Nivel",null,0,"Cuarto Nivel",null,0,"Atención al Cliente",null,null,0,"Guianza",null,0,null,"Francés",null,0,"Italiano",null,0]
[null,"Otro",null,"texto",null,null,null,"Sensibilización de discapacidades",null,null,0,"Otro",null,"texto",null,"Chino",null,0,"Otro",null,"texto"]
[null,"Observaciones: ",null,null,"texto"]
[null,"13. DESCRIPCION DEL ATRACTIVO (500 caracteres)"]
[null,"texto"]
[]
[]
[null,"14. ANEXOS "]
[null,"a. Archivo Fotográfico (dos) (HD)"]
[]
[]
[]
[]
[]
[]
[null,"Fuente:",null,"texto"]
[null,"b. Ubicación gráfica del Atractivo"]
[]
[]
[]
[]
[]
[]
[]
[]
[]
[null,"Fuente:",null,"https://maps.app.goo.gl/AbHZrna1GyJPBPTP7"]
[null,"FIRMAS DE RESPONSABILIDAD (Obligatorio)"]
[null,"ELABORADO POR:",null,null,null,null,null,null,"VALIDADO  POR:",null,null,null,null,null,null,"APROBADO POR:"]
[null,"Apellido y Nombre",null,null,"Leidy Rodriguez",null,null,null,"Apellido y Nombre",null,null,null,null,null,null,"Apellido y Nombre"]
[null,"Institución",null,null,"Comunidad",null,null,null,"Institución",null,null,null,null,null,null,"Institución"]
[null,"Cargo",null,null,"Vicepresidenta",null,null,null,"Cargo",null,null,null,null,null,null,"Cargo"]
[null,"Correo Electrónico",null,null,null,null,null,null,"Correo Electrónico",null,null,null,null,null,null,"Correo Electrónico"]
[null,"Teléfono",null,null,null,null,null,null,"Teléfono",null,null,null,null,null,null,"Teléfono"]
[null,"Firma",null,null,null,null,null,null,"Firma",null,null,null,null,null,null,"Firma"]
[null,"Fecha",null,null,"2026-02-22",null,null,null,"Fecha",null,null,null,null,null,null,"Fecha"]

{"sheet":"Valores","index":1,"n_rows":114,"n_cols":227,"rows_kept":114,"cut":false,"hidden":true,"merged":[]}
[]
["CATEGORIA","ATRACTIVOS_NATURALES","MANIFESTACIONES_CULTURALES","MONTAÑAS","PLANICIES","AMBIENTES_LACUSTRES","RÍOS","BOSQUES","AGUAS_SUBTERRÁNEAS","FENÓMENOS_ESPELEOLÓGICOS","FENÓMENOS_GEOLÓGICOS","COSTAS_O_LITORALES","AMBIENTES_MARINOS","TIERRAS_INSULARES","ARQUITECTURA","ACERVO_CULTURAL_Y_POPULAR","REALIZACIONES_TÉCNICAS_Y_CIENTÍFICAS","ACONTECIMIENTOS_PROGRAMADOS"]
["ATRACTIVOS_NATURALES","MONTAÑAS","ARQUITECTURA","ALTA MONTAÑA","COSTERO","LAGO","RÍO","EN PÁRAMO","MANANTIAL  DE AGUA MINERAL","CUEVA O CAVERNA","FLUJO DE LAVA","PLAYA","ARRECIFE DE CORAL","ISLA CONTINENTAL","HISTÓRICA / VERNÁCULA","PUEBLO Y/O NACIONALIDAD (ETNOGRAFÍA)","OBRAS DE INGENIERÍA","EVENTOS ARTÍSTICOS"]
["MANIFESTACIONES_CULTURALES","DESIERTOS","ACERVO_CULTURAL_Y_POPULAR","MEDIA MONTAÑA","DEL INTERIOR","LAGUNA","RIACHUELO ","CEJA DE SELVA","MANANTIAL DE AGUA TERMAL","RÍO SUBTERRÁNEO","TUBO DE LAVA","ACANTILADO","CUEVA","ISLA OCEÁNICA","INFRAESTRUCTURA CULTURAL","FIESTAS RELIGIOSAS, TRADICIONES Y CREENCIAS POPULARES","CENTROS ASTRONÓMICOS","CONVENCIONES, FERIAS (NO ARTESANALES) Y CONGRESOS"]
[null,"AMBIENTES_LACUSTRES","REALIZACIONES_TÉCNICAS_Y_CIENTÍFICAS","BAJA MONTAÑA",null,"PANTANO","RÁPIDO","NUBLADO",null,null,"ESCARPA DE FALLA (PLIEGUE)","GOLFO","CRÁTER","ISLOTE","INFRAESTRUCTURA RECREATIVA","ARTESANÍAS Y ARTES","CENTROS DE EXHIBICIÓN DE FLORA Y FAUNA","EVENTOS DEPORTIVOS"]
[null,"RÍOS","ACONTECIMIENTOS_PROGRAMADOS",null,null,"POZA","CASCADA","MONTANO BAJO",null,null,"CAÑÓN","BAHÍA","ACANTILADO","ROCA","OTRAS INFRAESTRUCTURAS SOCIALES","MEDICINA ANCESTRAL","CENTROS DE RECATE DE FAUNA SILVESTRE","EVENTOS GASTRONÓMICOS"]
[null,"BOSQUES",null,null,null,"HUMEDAL","RIBERA","HÚMEDO TROPICAL",null,null,"QUEBRADA","ENSENADA",null,null,"ÁREA HISTÓRICA","FERIAS Y MERCADOS","CENTROS AGROPECUARIOS Y PESQUEROS"]
[null,"AGUAS_SUBTERRÁNEAS",null,null,null,"VADO","PLAYA DE RÍO","MANGLAR",null,null,"GRIETA","CANAL",null,null,"ÁREA ARQUEOLÓGICA","MÚSICA Y DANZA","CENTROS INDUSTRIALES"]
[null,"FENÓMENOS_ESPELEOLÓGICOS",null,null,null,"PLAYA DE LAGUNA","DELTA","SECO",null,null,null,"ESTUARIO",null,null,"MONUMENTOS","GASTRONOMÍA"]
[null,"FENÓMENOS_GEOLÓGICOS",null,null,null,null,null,"PETRIFICADO",null,null,null,"ESTERO",null,null,"ESPACIO PÚBLICO"]
[null,"COSTAS_O_LITORALES",null,null,null,null,null,"INUNDABLE / INUNDADO"]
[null,"AMBIENTES_MARINOS"]
[null,"TIERRAS_INSULARES"]
[]
[]
[]
[]
["PROVINCIA","AZUAY","BOLIVAR","CAÑAR","CARCHI","COTOPAXI","CHIMBORAZO","EL_ORO","ESMERALDAS ","GUAYAS","IMBABURA","LOJA","LOS_RIOS","MANABI","MORONA_SANTIAGO","NAPO","PASTAZA","PICHINCHA","TUNGURAHUA","ZAMORA_CHINCHIPE","GALAPAGOS","SUCUMBIOS","ORELLANA","SANTO_DOMINGO_DE_LOS_TSACHILAS","SANTA_ELENA","ZONAS_EN_ESTUDIO"]
["AZUAY","CUENCA","GUARANDA","AZOGUES","TULCAN","LATACUNGA","RIOBAMBA","MACHALA","ESMERALDAS.","GUAYAQUIL","IBARRA","LOJA.","BABAHOYO","PORTOVIEJO","MORONA","TENA","PASTAZA.","DISTRITO_METROPOLITANO_DE_QUITO","AMBATO","ZAMORA","SAN_CRISTOBAL","LAGO_AGRIO","ORELLANA.","SANTO_DOMINGO","SANTA_ELENA.","LAS_GOLONDRINAS"]
["BOLIVAR","GIRON","CHILLANES","BIBLIAN","BOLIVAR.","LA_MANA","ALAUSI","ARENILLAS","ELOY_ALFARO","ALFREDO_BAQUERIZO_MORENO_JUJAN","ANTONIO_ANTE","CALVAS","BABA","BOLIVAR_","GUALAQUIZA","ARCHIDONA","MERA","CAYAMBE","BAÑOS_DE_AGUA_SANTA","CHINCHIPE","ISABELA","GONZALO_PIZARRO","AGUARICO","LA_CONCORDIA","LA_LIBERTAD","EL_PIEDRERO"]
["CAÑAR","GUALACEO","CHIMBO","CAÑAR.","ESPEJO","PANGUA","COLTA","ATAHUALPA","MUISNE","BALAO","COTACACHI","CATAMAYO","MONTALVO","CHONE","LIMON_INDANZA","EL_CHACO","SANTA_CLARA","MEJIA","CEVALLOS","NANGARITZA","SANTA_CRUZ","PUTUMAYO","LA_JOYA_DE_LOS_SACHAS",null,"SALINAS","SANTA_ROSA_DE_AGUA_CLARA"]
["CARCHI","NABON","ECHEANDIA","LA_TRONCAL","MIRA","PUJILI","CHAMBO","BALSAS","QUININDE","BALZAR","OTAVALO","CELICA","PUEBLOVIEJO","EL_CARMEN","PALORA","QUIJOS","ARAJUNO","PEDRO_MONCAYO","MOCHA","YACUAMBI",null,"SHUSHUFINDI","LORETO",null,null,"JUVAL"]
["COTOPAXI","PAUTE","SAN_MIGUEL","EL_TAMBO","MONTUFAR","SALCEDO","CHUNCHI","CHILLA","SAN_LORENZO","COLIMES","PIMAMPIRO","CHAGUARPAMBA","QUEVEDO","FLAVIO_ALFARO","SANTIAGO","CARLOS_JULIO_AROSEMENA_TOLA",null,"RUMIÑAHUI","PATATE","YANTZAZA",null,"SUCUMBIOS.",null,null,null,"ABDON_CALDERON"]
["CHIMBORAZO","PUCARA","CALUMA","DELEG","SAN_PEDRO_DE_HUACA","SAQUISILI","GUAMOTE","EL_GUABO","ATACAMES","DAULE","SAN_MIGUEL_DE_URCUQUI","ESPINDOLA","URDANETA","JIPIJAPA","SUCUA",null,null,"SAN_MIGUEL_DE_LOS_BANCOS","QUERO","EL_PANGUI",null,"CASCALES",null,null,null,"MATILDE_ESTHER"]
["EL_ORO","SAN_FERNANDO","LAS_NAVES","SUSCAL",null,"SIGCHOS","GUANO","HUAQUILLAS","RIOVERDE","DURAN",null,"GONZANAMA","VENTANAS","JUNIN","HUAMBOYA",null,null,"PEDRO_VICENTE_MALDONADO","PELILEO","CENTINELA_DEL_CONDOR",null,"CUYABENO"]
["ESMERALDAS ","SANTA_ISABEL",null,null,null,null,"PALLATANGA","MARCABELI",null,"EL_EMPALME",null,"MACARA","VINCES","MANTA","SAN_JUAN_BOSCO",null,null,"PUERTO_QUITO","PILLARO","PALANDA"]
["GUAYAS","SIGSIG",null,null,null,null,"PENIPE","PASAJE",null,"EL_TRIUNFO",null,"PALTAS","PALENQUE","MONTECRISTI","TAISHA",null,null,null,"TISALEO","PAQUISHA"]
["IMBABURA","OÑA",null,null,null,null,"CUMANDA","PIÑAS",null,"MILAGRO",null,"PUYANGO","BUENA_FE","PAJAN","LOGROÑO"]
["LOJA","CHORDELEG",null,null,null,null,null,"PORTOVELO",null,"NARANJAL",null,"SARAGURO","VALENCIA","PICHINCHA.","PABLO_SEXTO"]
["LOS_RIOS","EL_PAN",null,null,null,null,null,"SANTA_ROSA",null,"NARANJITO",null,"SOZORANGA","MOCACHE","ROCAFUERTE","TIWINTZA"]
["MANABI","SEVILLA_DE_ORO",null,null,null,null,null,"ZARUMA",null,"PALESTINA",null,"ZAPOTILLO","QUINSALOMA","SANTA_ANA"]
["MORONA_SANTIAGO","GUACHAPALA",null,null,null,null,null,"LAS_LAJAS",null,"PEDRO_CARBO",null,"PINDAL",null,"SUCRE"]
["NAPO","CAMILO_PONCE_ENRIQUEZ",null,null,null,null,null,null,null,"SAMBORONDON",null,"QUILANGA",null,"TOSAGUA"]
["PASTAZA",null,null,null,null,null,null,null,null,"SANTA_LUCIA",null,"OLMEDO",null,"_24_DE_MAYO"]
["PICHINCHA",null,null,null,null,null,null,null,null,"URBINA_JADO",null,null,null,"PEDERNALES"]
["TUNGURAHUA",null,null,null,null,null,null,null,null,"YAGUACHI",null,null,null,"OLMEDO."]
["ZAMORA_CHINCHIPE",null,null,null,null,null,null,null,null,"PLAYAS",null,null,null,"PUERTO_LOPEZ"]
["GALAPAGOS",null,null,null,null,null,null,null,null,"SIMON_BOLIVAR",null,null,null,"JAMA"]
["SUCUMBIOS",null,null,null,null,null,null,null,null,"CORONEL_MARCELINO_MARIDUEÑA",null,null,null,"JARAMIJO"]
["ORELLANA",null,null,null,null,null,null,null,null,"LOMAS_DE_SARGENTILLO",null,null,null,"SAN_VICENTE"]
["SANTO_DOMINGO_DE_LOS_TSACHILAS",null,null,null,null,null,null,null,null,"NOBOL"]
["SANTA_ELENA",null,null,null,null,null,null,null,null,"GENERAL__ANTONIO_ELIZALDE"]
["ZONAS_EN_ESTUDIO",null,null,null,null,null,null,null,null,"ISIDRO_AYORA"]
[]
[]
[]
[]
[]
["CUENCA","GIRON","GUALACEO","NABON","PAUTE","PUCARA","SAN_FERNANDO","SANTA_ISABEL","SIGSIG","OÑA","CHORDELEG","EL_PAN","SEVILLA_DE_ORO","GUACHAPALA","CAMILO_PONCE_ENRIQUEZ","GUARANDA","CHILLANES","CHIMBO","ECHEANDIA","SAN_MIGUEL","CALUMA","LAS_NAVES","AZOGUES","BIBLIAN","CAÑAR.","LA_TRONCAL","EL_TAMBO","DELEG","SUSCAL","TULCAN","BOLIVAR.","ESPEJO","MIRA","MONTUFAR","SAN_PEDRO_DE_HUACA","LATACUNGA","LA_MANA","PANGUA","PUJILI","SALCEDO","SAQUISILI","SIGCHOS","RIOBAMBA","ALAUSI","COLTA","CHAMBO","CHUNCHI","GUAMOTE","GUANO","PALLATANGA","PENIPE","CUMANDA","MACHALA","ARENILLAS","ATAHUALPA","BALSAS","CHILLA","EL_GUABO","HUAQUILLAS","MARCABELI","PASAJE","PIÑAS","PORTOVELO","SANTA_ROSA","ZARUMA","LAS_LAJAS","ESMERALDAS.","ELOY_ALFARO","MUISNE","QUININDE","SAN_LORENZO","ATACAMES","RIOVERDE","GUAYAQUIL","ALFREDO_BAQUERIZO_MORENO_JUJAN","BALAO","BALZAR","COLIMES","DAULE","DURAN","EL_EMPALME","EL_TRIUNFO","MILAGRO","NARANJAL","NARANJITO","PALESTINA","PEDRO_CARBO","SAMBORONDON","SANTA_LUCIA","URBINA_JADO","YAGUACHI","PLAYAS","SIMON_BOLIVAR","CORONEL_MARCELINO_MARIDUEÑA","LOMAS_DE_SARGENTILLO","NOBOL","GENERAL__ANTONIO_ELIZALDE","ISIDRO_AYORA","IBARRA","ANTONIO_ANTE","COTACACHI","OTAVALO","PIMAMPIRO","SAN_MIGUEL_DE_URCUQUI","LOJA.","CALVAS","CATAMAYO","CELICA","CHAGUARPAMBA","ESPINDOLA","GONZANAMA","MACARA","PALTAS","PUYANGO","SARAGURO","SOZORANGA","ZAPOTILLO","PINDAL","QUILANGA","OLMEDO","BABAHOYO","BABA","MONTALVO","PUEBLOVIEJO","QUEVEDO","URDANETA","VENTANAS","VINCES","PALENQUE","BUENA_FE","VALENCIA","MOCACHE","QUINSALOMA","PORTOVIEJO","BOLIVAR_","CHONE","EL_CARMEN","FLAVIO_ALFARO","JIPIJAPA","JUNIN","MANTA","MONTECRISTI","PAJAN","PICHINCHA.","ROCAFUERTE","SANTA_ANA","SUCRE","TOSAGUA","24_DE_MAYO","PEDERNALES","OLMEDO.","PUERTO_LOPEZ","JAMA","JARAMIJO","SAN_VICENTE","MORONA","GUALAQUIZA","LIMON_INDANZA","PALORA","SANTIAGO","SUCUA","HUAMBOYA","SAN_JUAN_BOSCO","TAISHA","LOGROÑO","PABLO_SEXTO","TIWINTZA","TENA","ARCHIDONA","EL_CHACO","QUIJOS","CARLOS_JULIO_AROSEMENA_TOLA","PASTAZA.","MERA","SANTA_CLARA","ARAJUNO","DISTRITO_METROPOLITANO_DE_QUITO","CAYAMBE","MEJIA","PEDRO_MONCAYO","RUMIÑAHUI","SAN_MIGUEL_DE_LOS_BANCOS","PEDRO_VICENTE_MALDONADO","PUERTO_QUITO","AMBATO","BAÑOS_DE_AGUA_SANTA","CEVALLOS","MOCHA","PATATE","QUERO","PELILEO","PILLARO","TISALEO","ZAMORA","CHINCHIPE","NANGARITZA","YACUAMBI","YANTZAZA","EL_PANGUI","CENTINELA_DEL_CONDOR","PALANDA","PAQUISHA","SAN_CRISTOBAL","ISABELA","SANTA_CRUZ","LAGO_AGRIO","GONZALO_PIZARRO","PUTUMAYO","SHUSHUFINDI","SUCUMBIOS.","CASCALES","CUYABENO","ORELLANA.","AGUARICO","LA_JOYA_DE_LOS_SACHAS","LORETO","SANTO_DOMINGO","LA_CONCORDIA","SANTA_ELENA.","LA_LIBERTAD","SALINAS","LAS_GOLONDRINAS","EL_PIEDRERO","SANTA_ROSA_DE_AGUA_CLARA","JUVAL","ABDON_CALDERON","MATILDE_ESTHER"]
["BELLAVISTA"," GIRON"," GUALACEO","NABÓN","PAUTE.","PUCARÁ","SAN FERNANDO","SANTA ISABEL (CHAGUARURCO)","SIGSIG.","SAN FELIPE DE OÑA","CHORDELEG.","EL PAN","SEVILLA DE ORO","GUACHAPALA.","CAMILO PONCE ENRIQUEZ","ÁNGEL POLIBIO CHÁVES","CHILLANES.","SAN JOSE DE CHIMBO","ECHEANDIA.","SAN MIGUEL","CALUMA.","LAS MERCEDES","AURELIO BAYAS MARTÍNEZ","BIBLIAN.","CAÑAR ","LA TRONCAL","EL TAMBO","DELEG.","SUSCAL.","GONZÁLEZ SUÁREZ"," BOLIVAR","EL ÁNGEL","MIRA (CHONTAHUASI)","GONZÁLEZ SUÁREZ.","HUACA","ELOY ALFARO  (SAN FELIPE) ","EL CARMEN","EL CORAZON","PUJILI.","SAN  MIGUEL","SAQUISILI.","SIGCHOS.","LIZARZABURU","ALAUSI.","CAJABAMBA","CHAMBO.","CHUNCHI.","GUAMOTE.","EL ROSARIO","PALLATANGA.","PENIPE.","CUMANDA.","LA  PROVIDENCIA","ARENILLAS.","PACCHA.","BALSAS.","CHILLA.","EL GUABO","ECUADOR","MARCABELI.","BOLÍVAR","LA  MATRIZ","PORTOVELO.","SANTA ROSA","ZARUMA.","LA VICTORIA.","BARTOLOMÉ RUIZ (CÉSAR FRANCO CARRIÓN) ","VALDEZ (LIMONES)","MUISNE.","ROSA ZARATE (QUININDE)","SAN LORENZO.","ATACAMES.","RIOVERDE.","AYACUCHO","ALFREDO BAQUERIZO MORENO (JUJAN)","BALAO.","BALZAR.","COLIMES.","DAULE ","ELOY ALFARO (DURÁN)","VELASCO IBARRA (CAB. EL EMPALME)","EL  TRIUNFO","CAMILO ANDRADE","NARANJAL.","NARANJITO.","PALESTINA.","PEDRO CARBO","SAMBORONDÓN","SANTA LUCIA","BOCANA","SAN JACINTO DE YAGUACHI","GENERAL VILLAMIL (PLAYAS)","SIMON BOLIVAR","CORONEL MARCELINO MARIDUEÑA (SAN CARLOS)","LOMAS DE SARGENTILLO","NARCISA DE JESUS","GENERAL ANTONIO ELIZALDE (BUCAY)","ISIDRO AYORA","CARANQUI","ANDRADE MARÍN  (LOURDES) ","SAGRARIO.","JORDÁN","PIMAMPIRO.","URCUQUI","EL  SAGRARIO.","CARIAMANGA","CATAMAYO.","CELICA.","CHAGUARPAMBA.","AMALUZA.","GONZANAMA.","GENERAL ELOY ALFARO (SAN SEBASTIÁN) ","CATACOCHA","ALAMOR","SARAGURO.","SOZORANGA.","ZAPOTILLO.","PINDAL.","QUILANGA.","OLMEDO ","CLEMENTE BAQUERIZO","BABA.","MONTALVO.","PUEBLOVIEJO.","QUEVEDO.","CATARAMA","10 DE NOVIEMBRE","BALZAR DE VINCES","PALENQUE.","SAN JACINTO DE BUENA FÉ","VALENCIA.","MOCACHE.","QUINSALOMA.","PORTOVIEJO.","CALCETA","CHONE.","EL  CARMEN","FLAVIO ALFARO","DOCTOR MIGUEL MORÁN LUCIO ","JUNIN.","LOS ESTEROS","ANÍBAL SAN ANDRÉS","PAJAN.","PICHINCHA "," ROCAFUERTE","SANTA ANA.","BAHÍA DE CARÁQUEZ","TOSAGUA."," SUCRE ","PEDERNALES."," OLMEDO","PUERTO LOPEZ","JAMA.","JARAMIJO.","SAN VICENTE ","MACAS","GUALAQUIZA.","GENERAL LEONIDAS PLAZA GUTIERREZ","PALORA (METZERA)","SANTIAGO DE MENDEZ","SUCUA.","HUAMBOYA.","SAN JUAN BOSCO","TAISHA.","LOGROÑO.","PABLO SEXTO"," SANTIAGO","TENA.","ARCHIDONA.","EL CHACO","BAEZA","CARLOS JULIO AROSEMENA TOLA","PUYO","MERA.","SANTA  CLARA","ARAJUNO.","BELISARIO QUEVEDO","CAYAMBE.","MACHACHI","TABACUNDO","SANGOLQUÍ","SAN MIGUEL DE LOS BANCOS","PEDRO VICENTE MALDONADO","PUERTO QUITO","ATOCHA – FICOA","BAÑOS DE AGUA SANTA","CEVALLOS.","MOCHA.","PATATE.","QUERO.","PELILEO.","CIUDAD NUEVA","TISALEO.","EL LIMÓN","ZUMBA","GUAYZIMI","28 DE MAYO (SAN JOSE DE YACUAMBI)","YANTZAZA (YANZATZA)","EL PANGUI","ZUMBI","PALANDA.","PAQUISHA.","PUERTO BAQUERIZO MORENO","PUERTO VILLAMIL","PUERTO AYORA","NUEVA LOJA","LUMBAQUI","PUERTO EL CARMEN DEL PUTUMAYO","SHUSHUFINDI.","LA BONITA","EL DORADO DE CASCALES","TARAPOA","PUERTO FRANCISCO DE ORELLANA (EL COCA)","NUEVO ROCAFUERTE","LA JOYA DE LOS SACHAS","LORETO.","ABRAHAM CALAZACÓN","LA CONCORDIA","BALLENITA","LA  LIBERTAD","CARLOS ESPINOZA LARREA","LAS GOLONDRINAS","EL PIEDRERO","SANTA ROSA DE AGUA CLARA","JUVAL.","ABDON CALDERON","MATILDE ESTHER"]
["CAÑARIBAMBA","ASUNCION","DANIEL CORDOVA TORAL (EL ORIENTE)","COCHAPATA","BULAN (JOSE VICTOR IZQUIERDO)","SAN RAFAEL DE SHARUG","CHUMBLIN","ABDON CALDERON (LA UNION)","CUCHIL (CUTCHIL)","SUSUDEL","PRINCIPAL","SAN VICENTE","AMALUZA",null,null,"GABRIEL IGNACIO VEINTIMILLA","SAN JOSE DEL TAMBO (TAMBOPAMBA)","ASUNCION (ASANCOTO)",null,"BALSAPAMBA",null,"LAS NAVES","AZOGUES.","NAZON (CAB. EN PAMPA DE DOMINGUEZ)","CHONTAMARCA","MANUEL J. CALLE",null,"SOLANO",null,"TULCÁN","GARCIA MORENO","27 DE SEPTIEMBRE","CONCEPCION","SAN JOSÉ","MARISCAL SUCRE","IGNACIO FLORES (PARQUE FLORES) ","LA MANÁ ","MORASPUNGO","ANGAMARCA","ANTONIO JOSE HOLGUIN (SANTA LUCIA)","CANCHAGUA","CHUGCHILLAN","MALDONADO.","ACHUPALLAS","SICALPA",null,"CAPZOL","CEBADAS","LA MATRIZ ",null,"EL ALTAR",null,"MACHALA.","CHACRAS","AYAPAMBA","BELLAMARIA",null,"BARBONES (SUCRE)","EL PARAÍSO","EL INGENIO","LOMA DE FRANCO","LA SUSAYA","CURTINCAPA","PUERTO JELÍ","ABAÑIN","PLATANILLOS","5 DE AGOSTO","ANCHAYACU"," BOLIVAR ","CUBE","ALTO TAMBO (CAB EN GUADUAL)","LA UNION ","CHONTADURO","BOLÍVAR  (SAGRARIO) ",null,null,null,"SAN JACINTO","LA AURORA (SATÉLITE)","EL RECREO","GUAYAS (PUEBLO NUEVO)",null,"ELOY ALFARO","JESUS MARIA",null,null,"VALLE DE LA VIRGEN","LA PUNTILLA (SATÉLITE)",null,"CANDILEJOS","GENERAL PEDRO J. MONTERO (BOLICHE)",null,"CORONEL LORENZO DE GARAICOA (PEDREGAL)",null,null,null,null,null,"GUAYAQUIL DE ALPACHACA","ATUNTAQUI","SAN  FRANCISCO.","SAN LUIS.","CHUGA","CAHUASQUI","SAN  SEBASTIÁN","CHILE","SAN JOSÉ.","CRUZPAMBA (CAB EN CARLOS BUSTAMANTE)","BUENAVISTA.","BELLAVISTA ","CHANGAIMINA (LA LIBERTAD)","MACARÁ  (MANUEL ENRIQUE RENGEL SUQUILANDA)","LOURDES","CIANO","EL PARAISO DE CELEN","NUEVA FATIMA","MANGAHURCO","CHAQUINAL","FUNDOCHAMBA","LA TINGUE","DOCTOR CAMILO PONCE ","GUARE","LA ESMERALDA","PUERTO PECHICHE","SAN CAMILO","RICAURTE.","VENTANAS.","VINCES CENTRAL",null,"7 DE AGOSTO"," LA UNION ",null,null,"12 DE MARZO","MEMBRILLO","SANTA RITA.","4 DE DICIEMBRE","SAN FRANCISCO DE NOVILLO (CAB. EN NOVILLO)","MANUEL INOCENCIO PARRALES Y GUALE",null,"MANTA.","MONTECRISTI.","CAMPOZANO (LA PALMA DE PAJAN)","BARRAGANETE",null,"LODANA","LEONIDAS PLAZA GUTIÉRREZ","BACHILLERO"," BELLAVISTA","COJIMIES",null,"MACHALILLA",null,null,"CANOA","ALSHI (CAB EN 9 DE OCTUBRE)","MERCEDES MOLINA","INDANZA","ARAPICOS","COPAL","ASUNCION.","CHIGUAZA","PAN DE AZUCAR","HUASAGA (CAB EN WAMPUIK)","YAUPI",null,"SAN JOSE DE MORONA","AHUANO","COTUNDO","GONZALO DIAZ DE PINEDA (EL BOMBON)","COSANGA",null,"CANELOS","MADRE TIERRA","SAN JOSE.","CURARAY","CARCELÉN","JUAN MONTALVO","ALOAG","LA  ESPERANZA","SAN PEDRO DE TABOADA","MINDO",null,null,"CELIANO MONGE","LLIGUA",null,"PINGUILI","EL TRIUNFO ","RUMIPAMBA ","PELILEO GRANDE","PÍLLARO","QUINCHICOTO","ZAMORA.","CHITO","ZURMI","LA PAZ.","CHICAÑA","EL GUISME","TRIUNFO-DORADO","EL PORVENIR DEL CARMEN"," BELLAVISTA ","EL PROGRESO","TOMAS DE BERLANGA (SANTO TOMAS)"," BELLAVISTA.","DURENO","EL REVENTADOR","PALMA ROJA","LIMONCOCHA","EL PLAYON DE SAN FRANCISCO","SANTA ROSA DE SUCUMBIOS","CUYABENO.","DAYUMA","CAPITAN AUGUSTO RIVADENEYRA","ENOKANQUI","AVILA (CAB. EN HUIRUNO)","BOMBOLÍ","MONTERREY","SANTA  ELENA",null,"GENERAL ALBERTO ENRÍQUEZ GALLO"]
["EL BATÁN","SAN GERARDO","JADAN","EL PROGRESO (CAB. EN ZHOTA)","CHICAN (GUILLERMO ORTEGA)",null,null,"EL CARMEN DE PIJILI","GIMA",null,"LA UNION",null,"PALMAS",null,null,"GUANUJO",null,"MAGDALENA (CHAPACOTO)",null,"BILOVAN",null,null,"BORRERO","SAN FRANCISCO DE SAGEO","CHOROCOPTE","PANCHO NEGRO",null,null,null,"EL CARMELO (EL PUN)","LOS ANDES","EL GOALTAL","JIJON Y CAAMAÑO (CAB. EN RIO BLANCO)","CRISTOBAL COLON",null,"JUAN MONTALVO (SAN SEBASTIÁN)","EL TRIUNFO","PINLLOPATA","GUANGAJE","CUSUBAMBA","CHANTILIN","ISINLIVI","VELASCO","GUASUNTOS","CAÑI",null,"COMPUD","PALMIRA","GUANANDO",null,"MATUS",null,"PUERTO BOLÍVAR","PALMALES","CORDONCILLO",null,null,"LA IBERIA","HUALTACO",null,"OCHOA LEÓN (MATRIZ)","PIÑAS GRANDE","MORALES","BALNEARIO JAMBELÍ (SATÉLITE)","ARCAPAMBA","VALLE HERMOSO"," ESMERALDAS ","ATAHUALPA (CAB. EN CAMARONES)","DAULE.","CHURA (CHANCAMA) (CAB. EN EL YERBERO)","ANCON (PICHANGAL) (CAB. EN PALMA REAL)","SUA (CAB. EN LA BOCANA)","CHUMUNDE","CARBO (CONCEPCIÓN) ",null,null,null,null,"BANIFE","DIVINO NIÑO","EL ROSARIO.",null,"CHIRIJOS","SAN CARLOS",null,null,"SABANILLA","TARIFA",null,"CENTRAL","YAGUACHI VIEJO (CONE)",null,null,null,null,null,null,null,"SAGRARIO","IMBAYA (SAN LUIS DE COBUENDO)","APUELA","DOCTOR MIGUEL EGAS CABEZAS (PEGUCHE)","MARIANO ACOSTA","LA MERCED DE BUENOS AIRES"," SUCRE","SAN  VICENTE","EL TAMBO.","POZUL (SAN JUAN DE POZUL)","EL ROSARIO ","JIMBURA","NAMBACOLA","LARAMA","CANGONAMA","EL ARENAL","EL TABLON","TACAMOROS","GARZAREAL","12 DE DICIEMBRE (CAB. EN ACHIOTES)","SAN ANTONIO DE LAS ARADAS (CAB. EN LAS ARADAS)",null,"BARREIRO","ISLA DE BEJUCAL",null,"SAN  JUAN","GUAYACÁN",null,"ZAPOTAL","SAN LORENZO DE VINCES",null,"11 DE OCTUBRE","LA NUEVA UNION",null,null,"COLÓN","QUIROGA.","BOYACA","WILFRIDO LOOR MOREIRA (MAICITO)","ZAPALLO","SAN LORENZO DE JIPIJAPA",null,"SAN  MATEO","EL COLORADO","CASCOL","SAN SEBASTIAN.",null,"AYACUCHO.","CHARAPOTO","ANGEL PEDRO GILER (LA ESTANCILLA)","NOBOA","DIEZ DE AGOSTO",null,"SALANGO",null,null,null,"GENERAL PROAÑO","AMAZONAS (ROSARIO DE CUYES)","SAN ANTONIO (CAB EN SAN ANTONIO CENTRO)","CUMANDA (CAB EN COLONIA AGRICOLA SEVILLA DEL ORO)","CHUPIANZA","HUAMBI",null,"SAN CARLOS DE LIMON","MACUMA","SHIMPIS",null,null,"CHONTAPUNTA","SAN PABLO DE USHPAYACU","LINARES","CUYUJA",null,"DIEZ DE  AGOSTO","SHELL",null,null,"CENTRO HISTÓRICO","ASCAZUBI","ALOASI","MALCHINGUI","SAN  RAFAEL",null,null,null,"HUACHI CHICO","RIO NEGRO",null,null,"LOS ANDES (CAB. EN POATUG)","YANAYACU- MOCHAPATA (CAB. EN YANAYACU)","BENITEZ (PACHANLICA)","BAQUERIZO MORENO",null,"CUMBARATZA","EL CHORRO","NUEVO PARAISO","TUTUPALI","LOS ENCUENTROS","PACHICUTZA","PANGUINTZA","SAN FRANCISCO DEL VERGEL","NUEVO QUITO","ISLA SANTA MAR═A (FLOREANA) (CAB. EN  PTO. VELASCO IBARRA)",null,"SANTA  ROSA","GENERAL FARFAN","GONZALO PIZARRO","PUERTO BOLIVAR (PUERTO MONTUFAR)","PAÑACOCHA","LA SOFIA","SEVILLA.","AGUAS NEGRAS","TARACOA (NUEVA ESPERANZA: YUCA)","CONONACO","POMPEYA","PUERTO MURIALDO","CHIGUILPE","LA VILLEGAS","ATAHUALPA ",null,"VICENTE  ROCAFUERTE"]
["EL SAGRARIO",null,"MARIANO MORENO","LAS NIEVES (CHAYA)","EL CABO",null,null,"ZHAGLLI (SHAGLLI )","GUEL",null,"LUIS GALARZA ORELLANA (CAB. EN DELEGSOL)",null,null,null,null,"FACUNDO VELA",null,"SAN SEBASTIAN",null,"REGULO DE MORA",null,null,"SAN FRANCISCO","TURUPAMBA","GENERAL MORALES (SOCARTE)",null,null,null,null,"JULIO ANDRADE (OREJUELA)","MONTE OLIVO","LA LIBERTAD (ALIZO)","JUAN MONTALVO (SAN IGNACIO DE QUIL)","CHITAN DE NAVARRETE",null,"LA MATRIZ","GUASAGANDA (CAB. EN GUASAGANDA CENTRO)","RAMON CAMPAÑA","LA VICTORIA","MULALILLO","COCHAPAMBA","LAS PAMPAS","VELOZ","HUIGRA","COLUMBE",null,"GONZOL",null,"ILAPO",null,"PUELA",null,"NUEVE DE MAYO","CARCABON","MILAGRO.",null,null,"TENDALES (CAB. EN PUERTO TENDALES)","MILTON REYES",null,"TRES CERRITOS","CAPIRO (CAB. EN LA CAPILLA DE CAPIRO)","SALATI","JUMÓN (SATÉLITE)","GUANAZAN","LA LIBERTAD","LUIS TELLO  (LAS PALMAS)","BORBON","GALERA","MALIMPIA","CALDERON","TONCHIGUE","LAGARTO","FEBRES CORDERO",null,null,null,null,"EMILIANO CAICEDO MARCOS",null,null,null,"CORONEL ENRIQUE VALDEZ","SANTA ROSA DE FLANDES",null,null,null,null,null,"PARAÍSO","VIRGEN DE FATIMA",null,null,null,null,null,null,null,"SAN  FRANCISCO","SAN FRANCISCO DE NATABUELA","GARCIA MORENO (LLURIMAGUA)","EUGENIO ESPEJO (CALPAQUI)","SAN FRANCISCO DE SIGSIPAMBA","PABLO ARENAS","VALLE.","COLAISACA","GUAYQUICHUMA","SABANILLA.","SANTA RUFINA","SANTA TERESITA","PURUNUMA (EGUIGUREN)","LA  VICTORIA","GUACHANAMA","EL LIMO (MARIANA DE JESUS)","LLUZHAPA",null,"LIMONES","MILAGROS",null,null,"EL SALTO",null,null,null,"NICOLÁS INFANTE DÍAZ",null,"CHACARITA","ANTONIO SOTOMAYOR (CAB. EN PLAYAS DE VINCES)",null,"PATRICIA PILAR",null,null,null,"PICOAZÁ",null,"CANUTO","SAN PEDRO DE SUMA",null,"AMERICA",null,"TARQUI ","GENERAL ELOY ALFARO","GUALE",null,null,"HONORATO VASQUEZ (CAB EN VASQUEZ)","SAN  ISIDRO",null,"ARQUITECTO SIXTO DURAN BALLEN","ATAHUALPA.",null,null,null,null,null," SAN ISIDRO","BERMEJOS","SAN MIGUEL DE CONCHAY","SANGAY (CAB EN NAYAMANACA)","PATUCA","SANTA MARIANITA DE JESUS",null,"SAN JACINTO DE WAKAMBEIS","TUUTINENTZA",null,null,null,"PANO","HATUN SUMAKU","OYACACHI","PAPALLACTA",null,"FATIMA",null,null,null,"COCHAPAMBA.","CANGAHUA","CUTUGLAHUA","TOCACHI","COTOGCHOA",null,null,null,"HUACHI LORETO","RIO VERDE",null,null,"SUCRE (CAB. EN SUCRE-PATATE URCU)",null," BOLIVAR.","EMILIO MARIA TERAN (RUMIPAMBA)",null,"GUADALUPE","LA CHONTA",null,null,null,"TUNDAYME",null,"VALLADOLID",null,null,null,null,"EL ENO","PUERTO LIBRE","PUERTO RODRIGUEZ","SAN ROQUE (CAB. EN SAN VICENTE)","ROSA FLORIDA",null,null,"ALEJANDRO LABAKA","SANTA MARIA DE HUIRIRIMA","SAN  CARLOS","SAN JOSE DE PAYAMINO","RÍO TOACHI","PLAN PILOTO","COLONCHE",null," SANTA ROSA"]
["EL VECINO",null,"REMIGIO CRESPO TORAL (GULAG)",null,"GUARAINAG",null,null,"SAN SALVADOR DE CAÑARIBAMBA","LUDO",null,"SAN MARTIN DE PUZHIO",null,null,null,null,"JULIO MORENO (CATANAHUAN GRANDE)",null,"TELIMBELA",null,"SAN PABLO (SAN PABLO DE ATENAS)",null,null,"COJITAMBO","JERUSALEN","GUALLETURO",null,null,null,null,"MALDONADO","SAN VICENTE DE PUSIR","SAN ISIDRO",null,"FERNANDEZ SALVADOR",null,"SAN BUENAVENTURA","PUCAYACU",null,"PILALO","MULLIQUINDIL (SANTA ANA)",null,"PALO QUEMADO","YARUQUÍES","MULTITUD","JUAN DE VELASCO (PANGOR)",null,"LLAGOS",null,"LA PROVIDENCIA",null,"SAN ANTONIO DE BAYUSHIG",null,"EL CAMBIO",null,"SAN JOSE",null,null,"RIO BONITO","UNIÓN LOJANA",null,"BUENAVISTA","LA BOCANA",null,"NUEVO SANTA ROSA","GUIZHAGUIÑA","EL PARAISO","SIMÓN PLATA TORRES","LA TOLA","QUINGUE (OLMEDO PERDOMO FRANCO)","VICHE","CARONDELET","TONSUPA","MONTALVO (CAB EN HORQUETA)","GARCÍA MORENO",null,null,null,null,"MAGRO",null,null,null,"ROSA MARIA","TAURA",null,null,null,null,null,"SAN MATEO ",null,null,null,null,null,null,null,null,"LA DOLOROSA DEL PRIORATO","SAN JOSE DE CHALTURA","IMANTAG","GONZALEZ SUAREZ",null,"SAN  BLAS","CARIGÁN","EL LUCERO","SAN PEDRO DE LA BENDITA","TENIENTE MAXIMILIANO RODRIGUEZ LOAIZA","AMARILLOS","27 DE ABRIL (CAB. EN LA NARANJA)","SACAPALCA","SABIANGO (LA CAPILLA)","LAURO GUERRERO","MERCADILLO","MANU",null,"PALETILLAS",null,null,null,"CARACOL",null,null,null,"SAN CRISTÓBAL",null,"LOS ANGELES",null,null,null,null,null,null,"SAN  PABLO",null,"CONVENTO",null,null,"EL ANEGADO (CAB. EN ELOY ALFARO)",null,"ELOY  ALFARO","LEONIDAS PROAÑO","LASCANO",null,null," LA  UNION ",null,null,null,null,null,null,null,null,null,"SEVILLA DON BOSCO","BOMBOIZA","STA SUSANA DE CHIVIAZA (CAB EN CHIVIAZA)","16 DE AGOSTO","SAN LUIS DE EL ACHO (CAB EN EL ACHO)",null,null,"SANTIAGO DE PANANZA","PUMPUENTSA",null,null,null,"PUERTO MISAHUALLI",null,"SANTA ROSA.","SAN FRANCISCO DE BORJA (VIRGILIO DAVILA)",null,"MONTALVO (ANDOAS)",null,null,null,"COMITÉ DEL PUEBLO","OLMEDO (PESILLO)","EL CHAUPI","TUPIGACHI","RUMIPAMBA.",null,null,null,"LA  MERCED","ULBA",null,null,null,null,"COTALO","MARCOS ESPINEL (CHACATA)",null,"IMBANA (LA VICTORIA DE IMBANA)","PUCAPAMBA",null,null,null,null,null,"LA CANELA",null,null,null,null,"PACAYACU",null,"SANTA ELENA","SAN PEDRO DE LOS COFANES","SANTA BARBARA",null,null,"EL DORADO","TIPUTINI","SAN SEBASTIAN DEL COCA","SAN JOSE DE DAHUANO","RÍO VERDE",null,"CHANDUY",null,"ANCONCITO"]
["GIL RAMÍREZ DÁVALOS",null,"SAN JUAN",null,"SAN CRISTOBAL (CARLOS ORDOÑEZ LAZO)",null,null,null,"SAN BARTOLOME",null,null,null,null,null,null,"SALINAS.",null,null,null,"SANTIAGO.",null,null,"GUAPAN",null,"HONORATO VASQUEZ (TAMBO VIEJO)",null,null,null,null,"PIOTER","SAN RAFAEL",null,null,"LA PAZ",null,"ALAQUES (ALAQUEZ)",null,null,"TINGO","PANSALEO",null,null,"CACHA (CAB. EN MACHANGARA)","PISTISHI (NARIZ DEL DIABLO)","SANTIAGO DE QUITO (CAB. EN SAN ANTONIO DE QUITO)",null,null,null,"SAN ANDRES",null,"LA CANDELARIA",null,"EL RETIRO",null,"SAN JUAN DE CERRO AZUL",null,null,null,null,null,"CASACAY","MOROMORO (CAB. EN EL VADO)",null,"BELLAVISTA.","HUERTAS","SAN ISIDRO.","CAMARONES (CAB. EN SAN VICENTE)","LUIS VARGAS TORRES (CAB. EN PLAYA DE ORO)","SALIMA","LA UNION.","5 DE JUNIO (CAB. EN UIMBI)",null,"ROCAFUERTE.","LETAMENDI",null,null,null,null,"PADRE JUAN BAUTISTA AGUIRRE",null,null,null,"JOSE MARIA VELASCO IBARRA",null,null,null,null,null,null,"GENERAL VERNAZA (DOS ESTEROS)",null,null,null,null,null,null,null,null,"AMBUQUI","SAN ROQUE","PEÑAHERRERA","PATAQUI",null,"TUMBABIRO","PUNZARA","UTUANA","ZAMBI",null,null,"EL INGENIO.",null,null,"ORIANGA","VICENTINO","SAN ANTONIO DE QUMBE (CUMBE)",null,"BOLASPAMBA",null,null,null,"FEBRES CORDERO (LAS JUNTAS)",null,null,null,"SIETE DE OCTUBRE",null,null,null,null,null,null,null,null,"ANDRÉS DE VERA",null,"CHIBUNGA",null,null,"JULCUY",null,"SAN  LORENZO","LA PILA",null,null,null,"SAN PABLO (CAB EN PUEBLO NUEVO)",null,null,null,null,null,null,null,null,null,"SINAI","CHIGUINDA","YUNGANZA (CAB EN EL ROSARIO)",null,"TAYUZA",null,null,null,null,null,null,null,"PUERTO NAPO",null,"SARDINAS","SUMACO",null,"POMONA",null,null,null,"COTOCOLLAO","OTON","MANUEL CORNEJO ASTORGA (TANDAPI)",null,null,null,null,null,"LA PENÍNSULA",null,null,null,null,null,"CHIQUICHA (CAB. EN CHIQUICHA GRANDE)","PRESIDENTE URBINA (CHAGRAPAMBA -PATZUCUL)",null,"SABANILLA ","SAN  ANDRES",null,null,null,null,null,null,null,null,null,null,"JAMBELÍ",null,null,"SIETE DE JULIO",null,null,null,"EL EDEN","YASUNI","LAGO SAN PEDRO","SAN VICENTE DE HUATICOCHA","SANTO DOMINGO DE LOS COLORADOS",null,"MANGLARALTO",null,"JOSE LUIS TAMAYO (MUEY)"]
["HUAYNACÁPAC",null,"ZHIDMAD",null,"TOMEBAMBA",null,null,null,"SAN JOSE DE RARANGA",null,null,null,null,null,null,"SAN LORENZO",null,null,null,"SAN VICENTE.",null,null,"JAVIER LOYOLA (CHUQUIPATA)",null,"INGAPIRCA",null,null,null,null,"TOBAR DONOSO (LA BOCANA DE CAMUMBI)",null,null,null,"PIARTAL",null,"BELISARIO QUEVEDO (GUANAILIN)",null,null,"ZUMBAHUA",null,null,null,"CALPI","PUMALLACTA",null,null,null,null,"SAN GERARDO DE PACAICAGUAN",null,"BILBAO (CAB. EN QUILLUYACU)",null,null,null,null,null,null,null,null,null,"LA PEAÑA","PIEDRAS",null,"JAMBELI","MALVAS",null,"CORONEL CARLOS CONCHA TORRES (CAB. EN HUELE)","MALDONADO ","SAN FRANCISCO.",null,"CONCEPCION.",null,null,"NUEVE DE OCTUBRE",null,null,null,null,"SANTA CLARA",null,null,null,"VICENTE ROCAFUERTE",null,null,null,null,null,null,"LA VICTORIA (ÑAUZA)",null,null,null,null,null,null,null,null,"ANGOCHAGUA",null,"PLAZA GUTIERREZ (CALVARIO)","SAN JOSE DE QUICHINCHE",null,null,"CHANTACO","SANGUILLIN",null,null,null,"EL AIRO",null,null,"SAN  ANTONIO",null,"SAN PABLO DE TENTA",null,"CAZADEROS",null,null,null,"PIMOCHA",null,null,null,"24 DE MAYO",null,null,null,null,null,null,null,null,"FRANCISCO PACHECO",null,"ELOY ALFARO.",null,null,"LA  UNION.",null,"SANTA MARIANITA (BOCA DE PACOCHE)",null,null,null,null,null,null,null,null,null,null,null,null,null,null,"ZUÑA (ZUÑAC)","EL  ROSARIO",null,null,"SAN FRANCISCO DE CHINIMBIMI",null,null,null,null,null,null,null,"TALAG",null,null,null,null,"RIO CORRIENTES",null,null,null,"CHILIBULO","SANTA ROSA DE CUZUBAMBA","TAMBILLO.",null,null,null,null,null,"MATRIZ",null,null,null,null,null,"EL ROSARIO (RUMICHACA)","SAN ANDRES ",null,"TIMBARA",null,null,null,null,null,null,null,null,null,null,null,"SANTA CECILIA",null,null,null,null,null,null,"GARCIA MORENO.",null," RUMIPAMBA",null,"ZARACAY",null,"SIMON BOLIVAR (JULIO MORENO)"]
["MACHÁNGARA",null,"LUIS CORDERO VEGA",null,"DUG DUG",null,null,null,null,null,null,null,null,null,null,"SAN SIMON (YACOTO)",null,null,null,null,null,null,"LUIS CORDERO",null,"JUNCAL",null,null,null,null,"TUFIÑO",null,null,null,null,null,"GUAITACAMA (GUAYTACAMA)",null,null,null,null,null,null,"CUBIJIES","SEVILLA",null,null,null,null,"SAN ISIDRO DE PATULU",null,null,null,null,null,null,null,null,null,null,null,"PROGRESO","SAN ROQUE (AMBROSIO MALDONADO)",null,"LA AVANZADA","MULUNCAY GRANDE",null,"CHINCA","PAMPANAL DE BOLIVAR","SAN GREGORIO",null,"MATAJE (CAB. EN SANTANDER)",null,null,"OLMEDO  (SAN ALEJO) ",null,null,null,null,"VICENTE PIEDRAHITA",null,null,null,"ERNESTO SEMINARIO",null,null,null,null,null,null,"JUNQUILLAL",null,null,null,null,null,null,null,null,"CAROLINA",null,"QUIROGA","SAN JUAN DE ILUMAN",null,null,"CHUQUIRIBAMBA",null,null,null,null,null,null,null,"CASANGA",null,"SAN SEBASTIAN DE YULUC",null,null,null,null,null," LA UNION",null,null,null,"VENUS DEL RÍO QUEVEDO",null,null,null,null,null,null,null,null,"18 DE OCTUBRE",null,"RICAURTE ",null,null,"MEMBRILLAL",null,null,null,null,null,null,null,null,null,null,null,null,null,null,null,null,"CUCHAENTZA","NUEVA TARQUI",null,null,null,null,null,null,null,null,null,null,"SAN JUAN DE MUYUNA",null,null,null,null,"RIO TIGRE",null,null,null,"CHILLOGALLO","SAN JOSE DE AYORA","UYUMBICHO",null,null,null,null,null,"PISHILATA",null,null,null,null,null,"GARCIA MORENO (CHUMAQUI)","SAN JOSE DE POALO",null,"SAN CARLOS DE LAS MINAS",null,null,null,null,null,null,null,null,null,null,null,"10 DE AGOSTO",null,null,null,null,null,null,"INES ARANGO (CAB. EN WESTERN)",null,"TRES DE NOVIEMBRE",null,"ALLURIQUIN",null,"SAN JOSE DE ANCON"]
["MONAY",null,"SIMON BOLIVAR (CAB. EN GAÑANZOL)",null,null,null,null,null,null,null,null,null,null,null,null,"SANTA FE (SANTA FE)",null,null,null,null,null,null,"PINDILIG",null,"SAN ANTONIO",null,null,null,null,"URBINA (TAYA)",null,null,null,null,null,"JOSEGUANGO BAJO",null,null,null,null,null,null,"FLORES","SIBAMBE",null,null,null,null,"SAN JOSE DEL CHAZO",null,null,null,null,null,null,null,null,null,null,null,"UZHCURRUMI","SARACAY",null,"SAN ANTONIO.","SINSAO",null,"MAJUA","SAN FRANCISCO DE ONZOLE","SAN JOSE DE CHAMANGA",null,"SAN JAVIER DE CACHAVI (CAB. EN SAN JAVIER)",null,null,"ROCA",null,null,null,null,"JUAN BAUTISTA AGUIRRE (LOS TINTOS)",null,null,null,"LAS PIÑAS",null,null,null,null,null,null,null,null,null,null,null,null,null,null,null,"LA ESPERANZA",null,"6 DE JULIO DE CUELLAJE (CAB. EN CUELLAJE)","SAN PABLO",null,null,"EL CISNE",null,null,null,null,null,null,null,"YAMANA",null,"SELVA ALEGRE.",null,null,null,null,null,null,null,null,null,"VIVA ALFARO",null,null,null,null,null,null,null,null,"SIMÓN BOLÍVAR",null," SAN ANTONIO",null,null,"PEDRO PABLO GOMEZ",null,null,null,null,null,null,null,null,null,null,null,null,null,null,null,null,"RIO BLANCO","SAN MIGUEL DE CUYES",null,null,null,null,null,null,null,null,null,null,null,null,null,null,null,"SARAYACU",null,null,null,"CHIMBACALLE",null,null,null,null,null,null,null," SAN FRANCISCO",null,null,null,null,null,"GUAMBALO (HUAMBALO)","SAN MIGUELITO",null,null,null,null,null,null,null,null,null,null,null,null,null,null,null,null,null,null,null,null,"LA BELLEZA",null,"UNION MILAGREÑA",null,"PUERTO LIMON"]
["SAN BLAS",null,null,null,null,null,null,null,null,null,null,null,null,null,null,"SIMIATUG",null,null,null,null,null,null,"RIVERA",null,"ZHUD",null,null,null,null,"EL CHICAL",null,null,null,null,null,"MULALO",null,null,null,null,null,null,"LICAN","TIXAN",null,null,null,null,"SANTA FE DE GALAN",null,null,null,null,null,null,null,null,null,null,null,"CAÑAQUEMADA",null,null,"TORATA","SALVIAS",null,"SAN MATEO","SANTO DOMINGO DE ONZOLE",null,null,"SANTA RITA",null,null,"ROCAFUERTE ",null,null,null,null,"LAUREL",null,null,null,"CHOBO",null,null,null,null,null,null,null,null,null,null,null,null,null,null,null,"LITA",null,"VACAS GALINDO (EL CHURO) (CAB. EN SAN MIGUEL ALTO)","SAN RAFAEL.",null,null,"GUALEL",null,null,null,null,null,null,null,null,null,"URDANETA (PAQUISHAPA)",null,null,null,null,null,null,null,null,null,"SAN CARLOS.",null,null,null,null,null,null,null,null,"ABDON CALDERON (SAN FRANCISCO)",null,null,null,null,"PUERTO DE CAYO",null,null,null,null,null,null,null,null,null,null,null,null,null,null,null,null,null,"EL IDEAL",null,null,null,null,null,null,null,null,null,null,null,null,null,null,null,"SIMON BOLIVAR (CAB. EN MUSHULLACTA)",null,null,null,"EL CONDADO",null,null,null,null,null,null,null,"AMBATILLO",null,null,null,null,null,"SALASACA",null,null,null,null,null,null,null,null,null,null,null,null,null,null,null,null,null,null,null,null,null,"NUEVO PARAISO (CAB. EN UNION )",null,null,null,"LUZ DE AMERICA"]
["SAN SEBASTIÁN",null,null,null,null,null,null,null,null,null,null,null,null,null,null,"SAN LUIS DE PAMBIL",null,null,null,null,null,null,"SAN MIGUEL.",null,"VENTURA",null,null,null,null,"SANTA MARTHA DE CUBA",null,null,null,null,null,"11 DE NOVIEMBRE (ILINCHISI)",null,null,null,null,null,null,"LICTO",null,null,null,null,null,"VALPARAISO",null,null,null,null,null,null,null,null,null,null,null,null,null,null,"VICTORIA",null,null,"TABIAZO","SELVA ALEGRE",null,null,"TAMBILLO",null,null,"SUCRE ",null,null,null,null,"LIMONAL",null,null,null,"MARISCAL SUCRE (HUAQUES)",null,null,null,null,null,null,null,null,null,null,null,null,null,null,null,"SALINAS ",null,null,"SELVA ALEGRE (CAB. EN SAN MIGUEL DE PAMPLONA)",null,null,"JIMBILLA",null,null,null,null,null,null,null,null,null,"SUMAYPAMBA",null,null,null,null,null,null,null,null,null,"LA ESPERANZA ",null,null,null,null,null,null,null,null,"ALHAJUELA (BAJO GRANDE)",null,null,null,null,null,null,null,null,null,null,null,null,null,null,null,null,null,null,null,null,null,null,null,null,null,null,null,null,null,null,null,null,null,null,null,null,null,null," TARQUI",null,null,null,"GUAMANÍ",null,null,null,null,null,null,null,"ATAHUALPA (CHISALATA)",null,null,null,null,null,null,null,null,null,null,null,null,null,null,null,null,null,null,null,null,null,null,null,null,null,null,null,"SAN JOSE DE GUAYUSA",null,null,null,"SAN JACINTO DEL BUA"]
["SUCRE.",null,null,null,null,null,null,null,null,null,null,null,null,null,null,null,null,null,null,null,null,null,"TADAY",null,"DUCUR",null,null,null,null,null,null,null,null,null,null,"POALO",null,null,null,null,null,null,"PUNGALA",null,null,null,null,null,null,null,null,null,null,null,null,null,null,null,null,null,null,null,null,"BELLAMARIA.",null,null,"TACHINA","TELEMBI",null,null,"TULULBI (CAB. EN RICAURTE)",null,null,"TARQUI.",null,null,null,null,"LOS LOJAS (ENRIQUE BAQUERIZO MORENO)",null,null,null,"ROBERTO ASTUDILLO (CAB. EN CRUCE DE VENECIA)",null,null,null,null,null,null,null,null,null,null,null,null,null,null,null,"SAN ANTONIO ",null,null,null,null,null,"MALACATOS (VALLADOLID)",null,null,null,null,null,null,null,null,null,null,null,null,null,null,null,null,null,null,null,null,null,null,null,null,null,null,null,null,"CRUCITA",null,null,null,null,null,null,null,null,null,null,null,null,null,null,null,null,null,null,null,null,null,null,null,null,null,null,null,null,null,null,null,null,null,null,null,null,null,null,"TENIENTE HUGO ORTIZ",null,null,null,"IÑAQUITO",null,null,null,null,null,null,null,"AUGUSTO N. MARTINEZ (MUNDUGLEO)",null,null,null,null,null,null,null,null,null,null,null,null,null,null,null,null,null,null,null,null,null,null,null,null,null,null,null,"SAN LUIS DE ARMENIA",null,null,null,"VALLE  HERMOSO"]
["TOTORACOCHA ",null,null,null,null,null,null,null,null,null,null,null,null,null,null,null,null,null,null,null,null,null,null,null,null,null,null,null,null,null,null,null,null,null,null,"SAN JUAN DE PASTOCALLE",null,null,null,null,null,null,"PUNIN",null,null,null,null,null,null,null,null,null,null,null,null,null,null,null,null,null,null,null,null,null,null,null,"VUELTA LARGA","COLON ELOY DEL MARIA",null,null,"URBINA",null,null,"URDANETA.",null,null,null,null,null,null,null,null,null,null,null,null,null,null,null,null,null,null,null,null,null,null,null,null,null,null,null,null,null,null,"SAN LUCAS",null,null,null,null,null,null,null,null,null,null,null,null,null,null,null,null,null,null,null,null,null,null,null,null,null,null,null,null,"PUEBLO NUEVO",null,null,null,null,null,null,null,null,null,null,null,null,null,null,null,null,null,null,null,null,null,null,null,null,null,null,null,null,null,null,null,null,null,null,null,null,null,null,"VERACRUZ (INDILLAMA) (CAB. EN INDILLAMA)",null,null,null,"ITCHIMBIA",null,null,null,null,null,null,null,"CONSTANTINO FERNANDEZ (CAB. EN CULLITAHUA)",null,null,null,null,null,null,null,null,null,null,null,null,null,null,null,null,null,null,null,null,null,null,null,null,null,null,null,null,null,null,null,"EL ESFUERZO"]
["YANUNCAY",null,null,null,null,null,null,null,null,null,null,null,null,null,null,null,null,null,null,null,null,null,null,null,null,null,null,null,null,null,null,null,null,null,null,"TANICUCHI",null,null,null,null,null,null,"QUIMIAG",null,null,null,null,null,null,null,null,null,null,null,null,null,null,null,null,null,null,null,null,null,null,null,null,"SAN JOSE DE CAYAPAS",null,null,null,null,null,"XIMENA",null,null,null,null,null,null,null,null,null,null,null,null,null,null,null,null,null,null,null,null,null,null,null,null,null,null,null,null,null,null,"SAN PEDRO DE VILCABAMBA",null,null,null,null,null,null,null,null,null,null,null,null,null,null,null,null,null,null,null,null,null,null,null,null,null,null,null,null,"RIOCHICO (RIO CHICO)",null,null,null,null,null,null,null,null,null,null,null,null,null,null,null,null,null,null,null,null,null,null,null,null,null,null,null,null,null,null,null,null,null,null,null,null,null,null," EL TRIUNFO",null,null,null,"JIPIJAPA.",null,null,null,null,null,null,null,"HUACHI GRANDE",null,null,null,null,null,null,null,null,null,null,null,null,null,null,null,null,null,null,null,null,null,null,null,null,null,null,null,null,null,null,null,"SANTA MARIA DEL TOACHI"]
["HERMANO MIGUEL",null,null,null,null,null,null,null,null,null,null,null,null,null,null,null,null,null,null,null,null,null,null,null,null,null,null,null,null,null,null,null,null,null,null,"TOACASO",null,null,null,null,null,null,"SAN JUAN.",null,null,null,null,null,null,null,null,null,null,null,null,null,null,null,null,null,null,null,null,null,null,null,null,"TIMBIRE",null,null,null,null,null,"PASCUALES",null,null,null,null,null,null,null,null,null,null,null,null,null,null,null,null,null,null,null,null,null,null,null,null,null,null,null,null,null,null,"SANTIAGO ",null,null,null,null,null,null,null,null,null,null,null,null,null,null,null,null,null,null,null,null,null,null,null,null,null,null,null,null,"SAN PLACIDO",null,null,null,null,null,null,null,null,null,null,null,null,null,null,null,null,null,null,null,null,null,null,null,null,null,null,null,null,null,null,null,null,null,null,null,null,null,null,null,null,null,null,"KENNEDY",null,null,null,null,null,null,null,"IZAMBA"]
["BAÑOS",null,null,null,null,null,null,null,null,null,null,null,null,null,null,null,null,null,null,null,null,null,null,null,null,null,null,null,null,null,null,null,null,null,null,null,null,null,null,null,null,null,"SAN LUIS",null,null,null,null,null,null,null,null,null,null,null,null,null,null,null,null,null,null,null,null,null,null,null,null,"SANTA LUCIA DE LAS PEÑAS",null,null,null,null,null,"JUAN GOMEZ RENDON (PROGRESO)",null,null,null,null,null,null,null,null,null,null,null,null,null,null,null,null,null,null,null,null,null,null,null,null,null,null,null,null,null,null,"TAQUIL (MIGUEL RIOFRIO)",null,null,null,null,null,null,null,null,null,null,null,null,null,null,null,null,null,null,null,null,null,null,null,null,null,null,null,null,"CHIRIJOS.",null,null,null,null,null,null,null,null,null,null,null,null,null,null,null,null,null,null,null,null,null,null,null,null,null,null,null,null,null,null,null,null,null,null,null,null,null,null,null,null,null,null,"LA ARGELIA",null,null,null,null,null,null,null,"JUAN BENIGNO VELA"]
["CUMBE",null,null,null,null,null,null,null,null,null,null,null,null,null,null,null,null,null,null,null,null,null,null,null,null,null,null,null,null,null,null,null,null,null,null,null,null,null,null,null,null,null,null,null,null,null,null,null,null,null,null,null,null,null,null,null,null,null,null,null,null,null,null,null,null,null,null,null,null,null,null,null,null,"MORRO",null,null,null,null,null,null,null,null,null,null,null,null,null,null,null,null,null,null,null,null,null,null,null,null,null,null,null,null,null,null,"VILCABAMBA (VICTORIA)",null,null,null,null,null,null,null,null,null,null,null,null,null,null,null,null,null,null,null,null,null,null,null,null,null,null,null,null,null,null,null,null,null,null,null,null,null,null,null,null,null,null,null,null,null,null,null,null,null,null,null,null,null,null,null,null,null,null,null,null,null,null,null,null,null,null,null,null,null,null,null,"LA CONCEPCIÓN",null,null,null,null,null,null,null,"MONTALVO "]
["CHAUCHA",null,null,null,null,null,null,null,null,null,null,null,null,null,null,null,null,null,null,null,null,null,null,null,null,null,null,null,null,null,null,null,null,null,null,null,null,null,null,null,null,null,null,null,null,null,null,null,null,null,null,null,null,null,null,null,null,null,null,null,null,null,null,null,null,null,null,null,null,null,null,null,null,"POSORJA",null,null,null,null,null,null,null,null,null,null,null,null,null,null,null,null,null,null,null,null,null,null,null,null,null,null,null,null,null,null,"YANGANA (ARSENIO CASTILLO)",null,null,null,null,null,null,null,null,null,null,null,null,null,null,null,null,null,null,null,null,null,null,null,null,null,null,null,null,null,null,null,null,null,null,null,null,null,null,null,null,null,null,null,null,null,null,null,null,null,null,null,null,null,null,null,null,null,null,null,null,null,null,null,null,null,null,null,null,null,null,null,"LA ECUATORIANA",null,null,null,null,null,null,null,"PASA"]
["CHECA (JIDCAY)",null,null,null,null,null,null,null,null,null,null,null,null,null,null,null,null,null,null,null,null,null,null,null,null,null,null,null,null,null,null,null,null,null,null,null,null,null,null,null,null,null,null,null,null,null,null,null,null,null,null,null,null,null,null,null,null,null,null,null,null,null,null,null,null,null,null,null,null,null,null,null,null,"PUNA",null,null,null,null,null,null,null,null,null,null,null,null,null,null,null,null,null,null,null,null,null,null,null,null,null,null,null,null,null,null,"QUINARA",null,null,null,null,null,null,null,null,null,null,null,null,null,null,null,null,null,null,null,null,null,null,null,null,null,null,null,null,null,null,null,null,null,null,null,null,null,null,null,null,null,null,null,null,null,null,null,null,null,null,null,null,null,null,null,null,null,null,null,null,null,null,null,null,null,null,null,null,null,null,null,"LA FERROVIARIA",null,null,null,null,null,null,null,"PICAIGUA"]
["CHIQUINTAD",null,null,null,null,null,null,null,null,null,null,null,null,null,null,null,null,null,null,null,null,null,null,null,null,null,null,null,null,null,null,null,null,null,null,null,null,null,null,null,null,null,null,null,null,null,null,null,null,null,null,null,null,null,null,null,null,null,null,null,null,null,null,null,null,null,null,null,null,null,null,null,null,"TENGUEL",null,null,null,null,null,null,null,null,null,null,null,null,null,null,null,null,null,null,null,null,null,null,null,null,null,null,null,null,null,null,null,null,null,null,null,null,null,null,null,null,null,null,null,null,null,null,null,null,null,null,null,null,null,null,null,null,null,null,null,null,null,null,null,null,null,null,null,null,null,null,null,null,null,null,null,null,null,null,null,null,null,null,null,null,null,null,null,null,null,null,null,null,null,null,null,null,null,null,null,null,null,null,"LA LIBERTAD  ",null,null,null,null,null,null,null,"PILAGUIN (PILAHUIN)"]
["LLACAO",null,null,null,null,null,null,null,null,null,null,null,null,null,null,null,null,null,null,null,null,null,null,null,null,null,null,null,null,null,null,null,null,null,null,null,null,null,null,null,null,null,null,null,null,null,null,null,null,null,null,null,null,null,null,null,null,null,null,null,null,null,null,null,null,null,null,null,null,null,null,null,null,null,null,null,null,null,null,null,null,null,null,null,null,null,null,null,null,null,null,null,null,null,null,null,null,null,null,null,null,null,null,null,null,null,null,null,null,null,null,null,null,null,null,null,null,null,null,null,null,null,null,null,null,null,null,null,null,null,null,null,null,null,null,null,null,null,null,null,null,null,null,null,null,null,null,null,null,null,null,null,null,null,null,null,null,null,null,null,null,null,null,null,null,null,null,null,null,null,null,null,null,null,null,null,"LA MAGDALENA",null,null,null,null,null,null,null,"QUISAPINCHA (QUIZAPINCHA)"]
["MOLLETURO",null,null,null,null,null,null,null,null,null,null,null,null,null,null,null,null,null,null,null,null,null,null,null,null,null,null,null,null,null,null,null,null,null,null,null,null,null,null,null,null,null,null,null,null,null,null,null,null,null,null,null,null,null,null,null,null,null,null,null,null,null,null,null,null,null,null,null,null,null,null,null,null,null,null,null,null,null,null,null,null,null,null,null,null,null,null,null,null,null,null,null,null,null,null,null,null,null,null,null,null,null,null,null,null,null,null,null,null,null,null,null,null,null,null,null,null,null,null,null,null,null,null,null,null,null,null,null,null,null,null,null,null,null,null,null,null,null,null,null,null,null,null,null,null,null,null,null,null,null,null,null,null,null,null,null,null,null,null,null,null,null,null,null,null,null,null,null,null,null,null,null,null,null,null,null,"LA MENA",null,null,null,null,null,null,null,"SAN BARTOLOME DE PINLLO"]
["NULTI",null,null,null,null,null,null,null,null,null,null,null,null,null,null,null,null,null,null,null,null,null,null,null,null,null,null,null,null,null,null,null,null,null,null,null,null,null,null,null,null,null,null,null,null,null,null,null,null,null,null,null,null,null,null,null,null,null,null,null,null,null,null,null,null,null,null,null,null,null,null,null,null,null,null,null,null,null,null,null,null,null,null,null,null,null,null,null,null,null,null,null,null,null,null,null,null,null,null,null,null,null,null,null,null,null,null,null,null,null,null,null,null,null,null,null,null,null,null,null,null,null,null,null,null,null,null,null,null,null,null,null,null,null,null,null,null,null,null,null,null,null,null,null,null,null,null,null,null,null,null,null,null,null,null,null,null,null,null,null,null,null,null,null,null,null,null,null,null,null,null,null,null,null,null,null,"MARISCAL SUCRE.",null,null,null,null,null,null,null,"SAN FERNANDO (PASA SAN FERNANDO)"]
["OCTAVIO CORDERO PALACIOS (STA. ROSA)",null,null,null,null,null,null,null,null,null,null,null,null,null,null,null,null,null,null,null,null,null,null,null,null,null,null,null,null,null,null,null,null,null,null,null,null,null,null,null,null,null,null,null,null,null,null,null,null,null,null,null,null,null,null,null,null,null,null,null,null,null,null,null,null,null,null,null,null,null,null,null,null,null,null,null,null,null,null,null,null,null,null,null,null,null,null,null,null,null,null,null,null,null,null,null,null,null,null,null,null,null,null,null,null,null,null,null,null,null,null,null,null,null,null,null,null,null,null,null,null,null,null,null,null,null,null,null,null,null,null,null,null,null,null,null,null,null,null,null,null,null,null,null,null,null,null,null,null,null,null,null,null,null,null,null,null,null,null,null,null,null,null,null,null,null,null,null,null,null,null,null,null,null,null,null,"PONCEANO",null,null,null,null,null,null,null,"SANTA ROSA "]
["PACCHA",null,null,null,null,null,null,null,null,null,null,null,null,null,null,null,null,null,null,null,null,null,null,null,null,null,null,null,null,null,null,null,null,null,null,null,null,null,null,null,null,null,null,null,null,null,null,null,null,null,null,null,null,null,null,null,null,null,null,null,null,null,null,null,null,null,null,null,null,null,null,null,null,null,null,null,null,null,null,null,null,null,null,null,null,null,null,null,null,null,null,null,null,null,null,null,null,null,null,null,null,null,null,null,null,null,null,null,null,null,null,null,null,null,null,null,null,null,null,null,null,null,null,null,null,null,null,null,null,null,null,null,null,null,null,null,null,null,null,null,null,null,null,null,null,null,null,null,null,null,null,null,null,null,null,null,null,null,null,null,null,null,null,null,null,null,null,null,null,null,null,null,null,null,null,null,"PUENGASÍ",null,null,null,null,null,null,null,"TOTORAS"]
["QUINGEO",null,null,null,null,null,null,null,null,null,null,null,null,null,null,null,null,null,null,null,null,null,null,null,null,null,null,null,null,null,null,null,null,null,null,null,null,null,null,null,null,null,null,null,null,null,null,null,null,null,null,null,null,null,null,null,null,null,null,null,null,null,null,null,null,null,null,null,null,null,null,null,null,null,null,null,null,null,null,null,null,null,null,null,null,null,null,null,null,null,null,null,null,null,null,null,null,null,null,null,null,null,null,null,null,null,null,null,null,null,null,null,null,null,null,null,null,null,null,null,null,null,null,null,null,null,null,null,null,null,null,null,null,null,null,null,null,null,null,null,null,null,null,null,null,null,null,null,null,null,null,null,null,null,null,null,null,null,null,null,null,null,null,null,null,null,null,null,null,null,null,null,null,null,null,null,"QUITUMBE",null,null,null,null,null,null,null,"CUNCHIBAMBA"]
["RICAURTE",null,null,null,null,null,null,null,null,null,null,null,null,null,null,null,null,null,null,null,null,null,null,null,null,null,null,null,null,null,null,null,null,null,null,null,null,null,null,null,null,null,null,null,null,null,null,null,null,null,null,null,null,null,null,null,null,null,null,null,null,null,null,null,null,null,null,null,null,null,null,null,null,null,null,null,null,null,null,null,null,null,null,null,null,null,null,null,null,null,null,null,null,null,null,null,null,null,null,null,null,null,null,null,null,null,null,null,null,null,null,null,null,null,null,null,null,null,null,null,null,null,null,null,null,null,null,null,null,null,null,null,null,null,null,null,null,null,null,null,null,null,null,null,null,null,null,null,null,null,null,null,null,null,null,null,null,null,null,null,null,null,null,null,null,null,null,null,null,null,null,null,null,null,null,null,"RUMIPAMBA",null,null,null,null,null,null,null,"UNAMUNCHO"]
["SAN JOAQUIN",null,null,null,null,null,null,null,null,null,null,null,null,null,null,null,null,null,null,null,null,null,null,null,null,null,null,null,null,null,null,null,null,null,null,null,null,null,null,null,null,null,null,null,null,null,null,null,null,null,null,null,null,null,null,null,null,null,null,null,null,null,null,null,null,null,null,null,null,null,null,null,null,null,null,null,null,null,null,null,null,null,null,null,null,null,null,null,null,null,null,null,null,null,null,null,null,null,null,null,null,null,null,null,null,null,null,null,null,null,null,null,null,null,null,null,null,null,null,null,null,null,null,null,null,null,null,null,null,null,null,null,null,null,null,null,null,null,null,null,null,null,null,null,null,null,null,null,null,null,null,null,null,null,null,null,null,null,null,null,null,null,null,null,null,null,null,null,null,null,null,null,null,null,null,null,"SAN BARTOLO"]
["SANTA ANA",null,null,null,null,null,null,null,null,null,null,null,null,null,null,null,null,null,null,null,null,null,null,null,null,null,null,null,null,null,null,null,null,null,null,null,null,null,null,null,null,null,null,null,null,null,null,null,null,null,null,null,null,null,null,null,null,null,null,null,null,null,null,null,null,null,null,null,null,null,null,null,null,null,null,null,null,null,null,null,null,null,null,null,null,null,null,null,null,null,null,null,null,null,null,null,null,null,null,null,null,null,null,null,null,null,null,null,null,null,null,null,null,null,null,null,null,null,null,null,null,null,null,null,null,null,null,null,null,null,null,null,null,null,null,null,null,null,null,null,null,null,null,null,null,null,null,null,null,null,null,null,null,null,null,null,null,null,null,null,null,null,null,null,null,null,null,null,null,null,null,null,null,null,null,null,"SAN ISIDRO DEL INCA"]
["SAYAUSI",null,null,null,null,null,null,null,null,null,null,null,null,null,null,null,null,null,null,null,null,null,null,null,null,null,null,null,null,null,null,null,null,null,null,null,null,null,null,null,null,null,null,null,null,null,null,null,null,null,null,null,null,null,null,null,null,null,null,null,null,null,null,null,null,null,null,null,null,null,null,null,null,null,null,null,null,null,null,null,null,null,null,null,null,null,null,null,null,null,null,null,null,null,null,null,null,null,null,null,null,null,null,null,null,null,null,null,null,null,null,null,null,null,null,null,null,null,null,null,null,null,null,null,null,null,null,null,null,null,null,null,null,null,null,null,null,null,null,null,null,null,null,null,null,null,null,null,null,null,null,null,null,null,null,null,null,null,null,null,null,null,null,null,null,null,null,null,null,null,null,null,null,null,null,null,"SAN JUAN "]
["SIDCAY",null,null,null,null,null,null,null,null,null,null,null,null,null,null,null,null,null,null,null,null,null,null,null,null,null,null,null,null,null,null,null,null,null,null,null,null,null,null,null,null,null,null,null,null,null,null,null,null,null,null,null,null,null,null,null,null,null,null,null,null,null,null,null,null,null,null,null,null,null,null,null,null,null,null,null,null,null,null,null,null,null,null,null,null,null,null,null,null,null,null,null,null,null,null,null,null,null,null,null,null,null,null,null,null,null,null,null,null,null,null,null,null,null,null,null,null,null,null,null,null,null,null,null,null,null,null,null,null,null,null,null,null,null,null,null,null,null,null,null,null,null,null,null,null,null,null,null,null,null,null,null,null,null,null,null,null,null,null,null,null,null,null,null,null,null,null,null,null,null,null,null,null,null,null,null,"SOLANDA"]
["SININCAY",null,null,null,null,null,null,null,null,null,null,null,null,null,null,null,null,null,null,null,null,null,null,null,null,null,null,null,null,null,null,null,null,null,null,null,null,null,null,null,null,null,null,null,null,null,null,null,null,null,null,null,null,null,null,null,null,null,null,null,null,null,null,null,null,null,null,null,null,null,null,null,null,null,null,null,null,null,null,null,null,null,null,null,null,null,null,null,null,null,null,null,null,null,null,null,null,null,null,null,null,null,null,null,null,null,null,null,null,null,null,null,null,null,null,null,null,null,null,null,null,null,null,null,null,null,null,null,null,null,null,null,null,null,null,null,null,null,null,null,null,null,null,null,null,null,null,null,null,null,null,null,null,null,null,null,null,null,null,null,null,null,null,null,null,null,null,null,null,null,null,null,null,null,null,null,"TURUBAMBA"]
["TARQUI",null,null,null,null,null,null,null,null,null,null,null,null,null,null,null,null,null,null,null,null,null,null,null,null,null,null,null,null,null,null,null,null,null,null,null,null,null,null,null,null,null,null,null,null,null,null,null,null,null,null,null,null,null,null,null,null,null,null,null,null,null,null,null,null,null,null,null,null,null,null,null,null,null,null,null,null,null,null,null,null,null,null,null,null,null,null,null,null,null,null,null,null,null,null,null,null,null,null,null,null,null,null,null,null,null,null,null,null,null,null,null,null,null,null,null,null,null,null,null,null,null,null,null,null,null,null,null,null,null,null,null,null,null,null,null,null,null,null,null,null,null,null,null,null,null,null,null,null,null,null,null,null,null,null,null,null,null,null,null,null,null,null,null,null,null,null,null,null,null,null,null,null,null,null,null,"ALANGASI"]
["TURI",null,null,null,null,null,null,null,null,null,null,null,null,null,null,null,null,null,null,null,null,null,null,null,null,null,null,null,null,null,null,null,null,null,null,null,null,null,null,null,null,null,null,null,null,null,null,null,null,null,null,null,null,null,null,null,null,null,null,null,null,null,null,null,null,null,null,null,null,null,null,null,null,null,null,null,null,null,null,null,null,null,null,null,null,null,null,null,null,null,null,null,null,null,null,null,null,null,null,null,null,null,null,null,null,null,null,null,null,null,null,null,null,null,null,null,null,null,null,null,null,null,null,null,null,null,null,null,null,null,null,null,null,null,null,null,null,null,null,null,null,null,null,null,null,null,null,null,null,null,null,null,null,null,null,null,null,null,null,null,null,null,null,null,null,null,null,null,null,null,null,null,null,null,null,null,"AMAGUAÑA"]
["VALLE",null,null,null,null,null,null,null,null,null,null,null,null,null,null,null,null,null,null,null,null,null,null,null,null,null,null,null,null,null,null,null,null,null,null,null,null,null,null,null,null,null,null,null,null,null,null,null,null,null,null,null,null,null,null,null,null,null,null,null,null,null,null,null,null,null,null,null,null,null,null,null,null,null,null,null,null,null,null,null,null,null,null,null,null,null,null,null,null,null,null,null,null,null,null,null,null,null,null,null,null,null,null,null,null,null,null,null,null,null,null,null,null,null,null,null,null,null,null,null,null,null,null,null,null,null,null,null,null,null,null,null,null,null,null,null,null,null,null,null,null,null,null,null,null,null,null,null,null,null,null,null,null,null,null,null,null,null,null,null,null,null,null,null,null,null,null,null,null,null,null,null,null,null,null,null,"ATAHUALPA (HABASPAMBA)"]
["VICTORIA DEL PORTETE (IRQUIS)",null,null,null,null,null,null,null,null,null,null,null,null,null,null,null,null,null,null,null,null,null,null,null,null,null,null,null,null,null,null,null,null,null,null,null,null,null,null,null,null,null,null,null,null,null,null,null,null,null,null,null,null,null,null,null,null,null,null,null,null,null,null,null,null,null,null,null,null,null,null,null,null,null,null,null,null,null,null,null,null,null,null,null,null,null,null,null,null,null,null,null,null,null,null,null,null,null,null,null,null,null,null,null,null,null,null,null,null,null,null,null,null,null,null,null,null,null,null,null,null,null,null,null,null,null,null,null,null,null,null,null,null,null,null,null,null,null,null,null,null,null,null,null,null,null,null,null,null,null,null,null,null,null,null,null,null,null,null,null,null,null,null,null,null,null,null,null,null,null,null,null,null,null,null,null,"CALACALI"]
[null,null,null,null,null,null,null,null,null,null,null,null,null,null,null,null,null,null,null,null,null,null,null,null,null,null,null,null,null,null,null,null,null,null,null,null,null,null,null,null,null,null,null,null,null,null,null,null,null,null,null,null,null,null,null,null,null,null,null,null,null,null,null,null,null,null,null,null,null,null,null,null,null,null,null,null,null,null,null,null,null,null,null,null,null,null,null,null,null,null,null,null,null,null,null,null,null,null,null,null,null,null,null,null,null,null,null,null,null,null,null,null,null,null,null,null,null,null,null,null,null,null,null,null,null,null,null,null,null,null,null,null,null,null,null,null,null,null,null,null,null,null,null,null,null,null,null,null,null,null,null,null,null,null,null,null,null,null,null,null,null,null,null,null,null,null,null,null,null,null,null,null,null,null,null,null,"CALDERON (CARAPUNGO)"]
[null,null,null,null,null,null,null,null,null,null,null,null,null,null,null,null,null,null,null,null,null,null,null,null,null,null,null,null,null,null,null,null,null,null,null,null,null,null,null,null,null,null,null,null,null,null,null,null,null,null,null,null,null,null,null,null,null,null,null,null,null,null,null,null,null,null,null,null,null,null,null,null,null,null,null,null,null,null,null,null,null,null,null,null,null,null,null,null,null,null,null,null,null,null,null,null,null,null,null,null,null,null,null,null,null,null,null,null,null,null,null,null,null,null,null,null,null,null,null,null,null,null,null,null,null,null,null,null,null,null,null,null,null,null,null,null,null,null,null,null,null,null,null,null,null,null,null,null,null,null,null,null,null,null,null,null,null,null,null,null,null,null,null,null,null,null,null,null,null,null,null,null,null,null,null,null,"CONOCOTO"]
["ORIGEN","PERIODICIDAD","ORGANIZACIÓN","PORTADORES","Estado",null,null,null,null,null,null,null,null,null,null,null,null,null,null,null,null,null,null,null,null,null,null,null,null,null,null,null,null,null,null,null,null,null,null,null,null,null,null,null,null,null,null,null,null,null,null,null,null,null,null,null,null,null,null,null,null,null,null,null,null,null,null,null,null,null,null,null,null,null,null,null,null,null,null,null,null,null,null,null,null,null,null,null,null,null,null,null,null,null,null,null,null,null,null,null,null,null,null,null,null,null,null,null,null,null,null,null,null,null,null,null,null,null,null,null,null,null,null,null,null,null,null,null,null,null,null,null,null,null,null,null,null,null,null,null,null,null,null,null,null,null,null,null,null,null,null,null,null,null,null,null,null,null,null,null,null,null,null,null,null,null,null,null,null,null,null,null,null,null,null,null,"CUMBAYA"]
["Ancestral","Anual","Bueno","Individuos","Bueno",null,null,null,null,null,null,null,null,null,null,null,null,null,null,null,null,null,null,null,null,null,null,null,null,null,null,null,null,null,null,null,null,null,null,null,null,null,null,null,null,null,null,null,null,null,null,null,null,null,null,null,null,null,null,null,null,null,null,null,null,null,null,null,null,null,null,null,null,null,null,null,null,null,null,null,null,null,null,null,null,null,null,null,null,null,null,null,null,null,null,null,null,null,null,null,null,null,null,null,null,null,null,null,null,null,null,null,null,null,null,null,null,null,null,null,null,null,null,null,null,null,null,null,null,null,null,null,null,null,null,null,null,null,null,null,null,null,null,null,null,null,null,null,null,null,null,null,null,null,null,null,null,null,null,null,null,null,null,null,null,null,null,null,null,null,null,null,null,null,null,null,"CHAVEZPAMBA"]
["Histórico","Ocasional","Regular","Colectivos","Regular",null,null,null,null,null,null,null,null,null,null,null,null,null,null,null,null,null,null,null,null,null,null,null,null,null,null,null,null,null,null,null,null,null,null,null,null,null,null,null,null,null,null,null,null,null,null,null,null,null,null,null,null,null,null,null,null,null,null,null,null,null,null,null,null,null,null,null,null,null,null,null,null,null,null,null,null,null,null,null,null,null,null,null,null,null,null,null,null,null,null,null,null,null,null,null,null,null,null,null,null,null,null,null,null,null,null,null,null,null,null,null,null,null,null,null,null,null,null,null,null,null,null,null,null,null,null,null,null,null,null,null,null,null,null,null,null,null,null,null,null,null,null,null,null,null,null,null,null,null,null,null,null,null,null,null,null,null,null,null,null,null,null,null,null,null,null,null,null,null,null,null,"CHECA (CHILPA)"]
["Contemporáneo","N/A","Malo","Instituciones","Malo",null,null,null,null,null,null,null,null,null,null,null,null,null,null,null,null,null,null,null,null,null,null,null,null,null,null,null,null,null,null,null,null,null,null,null,null,null,null,null,null,null,null,null,null,null,null,null,null,null,null,null,null,null,null,null,null,null,null,null,null,null,null,null,null,null,null,null,null,null,null,null,null,null,null,null,null,null,null,null,null,null,null,null,null,null,null,null,null,null,null,null,null,null,null,null,null,null,null,null,null,null,null,null,null,null,null,null,null,null,null,null,null,null,null,null,null,null,null,null,null,null,null,null,null,null,null,null,null,null,null,null,null,null,null,null,null,null,null,null,null,null,null,null,null,null,null,null,null,null,null,null,null,null,null,null,null,null,null,null,null,null,null,null,null,null,null,null,null,null,null,null,"EL QUINCHE"]
[null,null,null,"N/A",null,null,null,null,null,null,null,null,null,null,null,null,null,null,null,null,null,null,null,null,null,null,null,null,null,null,null,null,null,null,null,null,null,null,null,null,null,null,null,null,null,null,null,null,null,null,null,null,null,null,null,null,null,null,null,null,null,null,null,null,null,null,null,null,null,null,null,null,null,null,null,null,null,null,null,null,null,null,null,null,null,null,null,null,null,null,null,null,null,null,null,null,null,null,null,null,null,null,null,null,null,null,null,null,null,null,null,null,null,null,null,null,null,null,null,null,null,null,null,null,null,null,null,null,null,null,null,null,null,null,null,null,null,null,null,null,null,null,null,null,null,null,null,null,null,null,null,null,null,null,null,null,null,null,null,null,null,null,null,null,null,null,null,null,null,null,null,null,null,null,null,null,"GUALEA"]
["Agua","Energía","Saneamiento","Frecuencia","Desechos",null,null,null,null,null,null,null,null,null,null,null,null,null,null,null,null,null,null,null,null,null,null,null,null,null,null,null,null,null,null,null,null,null,null,null,null,null,null,null,null,null,null,null,null,null,null,null,null,null,null,null,null,null,null,null,null,null,null,null,null,null,null,null,null,null,null,null,null,null,null,null,null,null,null,null,null,null,null,null,null,null,null,null,null,null,null,null,null,null,null,null,null,null,null,null,null,null,null,null,null,null,null,null,null,null,null,null,null,null,null,null,null,null,null,null,null,null,null,null,null,null,null,null,null,null,null,null,null,null,null,null,null,null,null,null,null,null,null,null,null,null,null,null,null,null,null,null,null,null,null,null,null,null,null,null,null,null,null,null,null,null,null,null,null,null,null,null,null,null,null,null,"GUANGOPOLO"]
["Potable","Red eléctrica de servicio público","Red pública ","Mensual","Carro Recolector ",null,null,null,null,null,null,null,null,null,null,null,null,null,null,null,null,null,null,null,null,null,null,null,null,null,null,null,null,null,null,null,null,null,null,null,null,null,null,null,null,null,null,null,null,null,null,null,null,null,null,null,null,null,null,null,null,null,null,null,null,null,null,null,null,null,null,null,null,null,null,null,null,null,null,null,null,null,null,null,null,null,null,null,null,null,null,null,null,null,null,null,null,null,null,null,null,null,null,null,null,null,null,null,null,null,null,null,null,null,null,null,null,null,null,null,null,null,null,null,null,null,null,null,null,null,null,null,null,null,null,null,null,null,null,null,null,null,null,null,null,null,null,null,null,null,null,null,null,null,null,null,null,null,null,null,null,null,null,null,null,null,null,null,null,null,null,null,null,null,null,null,"GUAYLLABAMBA"]
["Pozo","Panel solar","Pozo ciego","Trimestral","Terreno baldío o quebrada",null,null,null,null,null,null,null,null,null,null,null,null,null,null,null,null,null,null,null,null,null,null,null,null,null,null,null,null,null,null,null,null,null,null,null,null,null,null,null,null,null,null,null,null,null,null,null,null,null,null,null,null,null,null,null,null,null,null,null,null,null,null,null,null,null,null,null,null,null,null,null,null,null,null,null,null,null,null,null,null,null,null,null,null,null,null,null,null,null,null,null,null,null,null,null,null,null,null,null,null,null,null,null,null,null,null,null,null,null,null,null,null,null,null,null,null,null,null,null,null,null,null,null,null,null,null,null,null,null,null,null,null,null,null,null,null,null,null,null,null,null,null,null,null,null,null,null,null,null,null,null,null,null,null,null,null,null,null,null,null,null,null,null,null,null,null,null,null,null,null,null,"LA MERCED"]
["Tanquero","Generador de corriente eléctrica","Pozo séptico","Semestral","Quema de basura",null,null,null,null,null,null,null,null,null,null,null,null,null,null,null,null,null,null,null,null,null,null,null,null,null,null,null,null,null,null,null,null,null,null,null,null,null,null,null,null,null,null,null,null,null,null,null,null,null,null,null,null,null,null,null,null,null,null,null,null,null,null,null,null,null,null,null,null,null,null,null,null,null,null,null,null,null,null,null,null,null,null,null,null,null,null,null,null,null,null,null,null,null,null,null,null,null,null,null,null,null,null,null,null,null,null,null,null,null,null,null,null,null,null,null,null,null,null,null,null,null,null,null,null,null,null,null,null,null,null,null,null,null,null,null,null,null,null,null,null,null,null,null,null,null,null,null,null,null,null,null,null,null,null,null,null,null,null,null,null,null,null,null,null,null,null,null,null,null,null,null,"LLANO CHICO"]
["Entubada","Otro","Con descarga directa al mar, río o quebrada","Anual","Basura enterrada",null,null,null,null,null,null,null,null,null,null,null,null,null,null,null,null,null,null,null,null,null,null,null,null,null,null,null,null,null,null,null,null,null,null,null,null,null,null,null,null,null,null,null,null,null,null,null,null,null,null,null,null,null,null,null,null,null,null,null,null,null,null,null,null,null,null,null,null,null,null,null,null,null,null,null,null,null,null,null,null,null,null,null,null,null,null,null,null,null,null,null,null,null,null,null,null,null,null,null,null,null,null,null,null,null,null,null,null,null,null,null,null,null,null,null,null,null,null,null,null,null,null,null,null,null,null,null,null,null,null,null,null,null,null,null,null,null,null,null,null,null,null,null,null,null,null,null,null,null,null,null,null,null,null,null,null,null,null,null,null,null,null,null,null,null,null,null,null,null,null,null,"LLOA"]
["Río, vertiente, acequia o canal",null,"Letrina","Ninguna","Basura arrojada al rio, acequia o canal",null,null,null,null,null,null,null,null,null,null,null,null,null,null,null,null,null,null,null,null,null,null,null,null,null,null,null,null,null,null,null,null,null,null,null,null,null,null,null,null,null,null,null,null,null,null,null,null,null,null,null,null,null,null,null,null,null,null,null,null,null,null,null,null,null,null,null,null,null,null,null,null,null,null,null,null,null,null,null,null,null,null,null,null,null,null,null,null,null,null,null,null,null,null,null,null,null,null,null,null,null,null,null,null,null,null,null,null,null,null,null,null,null,null,null,null,null,null,null,null,null,null,null,null,null,null,null,null,null,null,null,null,null,null,null,null,null,null,null,null,null,null,null,null,null,null,null,null,null,null,null,null,null,null,null,null,null,null,null,null,null,null,null,null,null,null,null,null,null,null,null,"NANEGAL"]
["Lluvia",null,"Otro","Todas","Otro",null,null,null,null,null,null,null,null,null,null,null,null,null,null,null,null,null,null,null,null,null,null,null,null,null,null,null,null,null,null,null,null,null,null,null,null,null,null,null,null,null,null,null,null,null,null,null,null,null,null,null,null,null,null,null,null,null,null,null,null,null,null,null,null,null,null,null,null,null,null,null,null,null,null,null,null,null,null,null,null,null,null,null,null,null,null,null,null,null,null,null,null,null,null,null,null,null,null,null,null,null,null,null,null,null,null,null,null,null,null,null,null,null,null,null,null,null,null,null,null,null,null,null,null,null,null,null,null,null,null,null,null,null,null,null,null,null,null,null,null,null,null,null,null,null,null,null,null,null,null,null,null,null,null,null,null,null,null,null,null,null,null,null,null,null,null,null,null,null,null,null,"NANEGALITO"]
["Otro",null,null,null,null,null,null,null,null,null,null,null,null,null,null,null,null,null,null,null,null,null,null,null,null,null,null,null,null,null,null,null,null,null,null,null,null,null,null,null,null,null,null,null,null,null,null,null,null,null,null,null,null,null,null,null,null,null,null,null,null,null,null,null,null,null,null,null,null,null,null,null,null,null,null,null,null,null,null,null,null,null,null,null,null,null,null,null,null,null,null,null,null,null,null,null,null,null,null,null,null,null,null,null,null,null,null,null,null,null,null,null,null,null,null,null,null,null,null,null,null,null,null,null,null,null,null,null,null,null,null,null,null,null,null,null,null,null,null,null,null,null,null,null,null,null,null,null,null,null,null,null,null,null,null,null,null,null,null,null,null,null,null,null,null,null,null,null,null,null,null,null,null,null,null,null,"NAYON"]
[null,null,null,null,null,null,null,null,null,null,null,null,null,null,null,null,null,null,null,null,null,null,null,null,null,null,null,null,null,null,null,null,null,null,null,null,null,null,null,null,null,null,null,null,null,null,null,null,null,null,null,null,null,null,null,null,null,null,null,null,null,null,null,null,null,null,null,null,null,null,null,null,null,null,null,null,null,null,null,null,null,null,null,null,null,null,null,null,null,null,null,null,null,null,null,null,null,null,null,null,null,null,null,null,null,null,null,null,null,null,null,null,null,null,null,null,null,null,null,null,null,null,null,null,null,null,null,null,null,null,null,null,null,null,null,null,null,null,null,null,null,null,null,null,null,null,null,null,null,null,null,null,null,null,null,null,null,null,null,null,null,null,null,null,null,null,null,null,null,null,null,null,null,null,null,null,"NONO"]
[null,null,null,null,null,null,null,null,null,null,null,null,null,null,null,null,null,null,null,null,null,null,null,null,null,null,null,null,null,null,null,null,null,null,null,null,null,null,null,null,null,null,null,null,null,null,null,null,null,null,null,null,null,null,null,null,null,null,null,null,null,null,null,null,null,null,null,null,null,null,null,null,null,null,null,null,null,null,null,null,null,null,null,null,null,null,null,null,null,null,null,null,null,null,null,null,null,null,null,null,null,null,null,null,null,null,null,null,null,null,null,null,null,null,null,null,null,null,null,null,null,null,null,null,null,null,null,null,null,null,null,null,null,null,null,null,null,null,null,null,null,null,null,null,null,null,null,null,null,null,null,null,null,null,null,null,null,null,null,null,null,null,null,null,null,null,null,null,null,null,null,null,null,null,null,null,"PACTO"]
[null,null,null,null,null,null,null,null,null,null,null,null,null,null,null,null,null,null,null,null,null,null,null,null,null,null,null,null,null,null,null,null,null,null,null,null,null,null,null,null,null,null,null,null,null,null,null,null,null,null,null,null,null,null,null,null,null,null,null,null,null,null,null,null,null,null,null,null,null,null,null,null,null,null,null,null,null,null,null,null,null,null,null,null,null,null,null,null,null,null,null,null,null,null,null,null,null,null,null,null,null,null,null,null,null,null,null,null,null,null,null,null,null,null,null,null,null,null,null,null,null,null,null,null,null,null,null,null,null,null,null,null,null,null,null,null,null,null,null,null,null,null,null,null,null,null,null,null,null,null,null,null,null,null,null,null,null,null,null,null,null,null,null,null,null,null,null,null,null,null,null,null,null,null,null,null,"PERUCHO"]
[null,null,null,null,null,null,null,null,null,null,null,null,null,null,null,null,null,null,null,null,null,null,null,null,null,null,null,null,null,null,null,null,null,null,null,null,null,null,null,null,null,null,null,null,null,null,null,null,null,null,null,null,null,null,null,null,null,null,null,null,null,null,null,null,null,null,null,null,null,null,null,null,null,null,null,null,null,null,null,null,null,null,null,null,null,null,null,null,null,null,null,null,null,null,null,null,null,null,null,null,null,null,null,null,null,null,null,null,null,null,null,null,null,null,null,null,null,null,null,null,null,null,null,null,null,null,null,null,null,null,null,null,null,null,null,null,null,null,null,null,null,null,null,null,null,null,null,null,null,null,null,null,null,null,null,null,null,null,null,null,null,null,null,null,null,null,null,null,null,null,null,null,null,null,null,null,"PIFO"]
[null,null,null,null,null,null,null,null,null,null,null,null,null,null,null,null,null,null,null,null,null,null,null,null,null,null,null,null,null,null,null,null,null,null,null,null,null,null,null,null,null,null,null,null,null,null,null,null,null,null,null,null,null,null,null,null,null,null,null,null,null,null,null,null,null,null,null,null,null,null,null,null,null,null,null,null,null,null,null,null,null,null,null,null,null,null,null,null,null,null,null,null,null,null,null,null,null,null,null,null,null,null,null,null,null,null,null,null,null,null,null,null,null,null,null,null,null,null,null,null,null,null,null,null,null,null,null,null,null,null,null,null,null,null,null,null,null,null,null,null,null,null,null,null,null,null,null,null,null,null,null,null,null,null,null,null,null,null,null,null,null,null,null,null,null,null,null,null,null,null,null,null,null,null,null,null,"PINTAG"]
[null,null,null,null,null,null,null,null,null,null,null,null,null,null,null,null,null,null,null,null,null,null,null,null,null,null,null,null,null,null,null,null,null,null,null,null,null,null,null,null,null,null,null,null,null,null,null,null,null,null,null,null,null,null,null,null,null,null,null,null,null,null,null,null,null,null,null,null,null,null,null,null,null,null,null,null,null,null,null,null,null,null,null,null,null,null,null,null,null,null,null,null,null,null,null,null,null,null,null,null,null,null,null,null,null,null,null,null,null,null,null,null,null,null,null,null,null,null,null,null,null,null,null,null,null,null,null,null,null,null,null,null,null,null,null,null,null,null,null,null,null,null,null,null,null,null,null,null,null,null,null,null,null,null,null,null,null,null,null,null,null,null,null,null,null,null,null,null,null,null,null,null,null,null,null,null,"POMASQUI"]
[null,null,null,null,null,null,null,null,null,null,null,null,null,null,null,null,null,null,null,null,null,null,null,null,null,null,null,null,null,null,null,null,null,null,null,null,null,null,null,null,null,null,null,null,null,null,null,null,null,null,null,null,null,null,null,null,null,null,null,null,null,null,null,null,null,null,null,null,null,null,null,null,null,null,null,null,null,null,null,null,null,null,null,null,null,null,null,null,null,null,null,null,null,null,null,null,null,null,null,null,null,null,null,null,null,null,null,null,null,null,null,null,null,null,null,null,null,null,null,null,null,null,null,null,null,null,null,null,null,null,null,null,null,null,null,null,null,null,null,null,null,null,null,null,null,null,null,null,null,null,null,null,null,null,null,null,null,null,null,null,null,null,null,null,null,null,null,null,null,null,null,null,null,null,null,null,"PUELLARO"]
[null,null,null,null,null,null,null,null,null,null,null,null,null,null,null,null,null,null,null,null,null,null,null,null,null,null,null,null,null,null,null,null,null,null,null,null,null,null,null,null,null,null,null,null,null,null,null,null,null,null,null,null,null,null,null,null,null,null,null,null,null,null,null,null,null,null,null,null,null,null,null,null,null,null,null,null,null,null,null,null,null,null,null,null,null,null,null,null,null,null,null,null,null,null,null,null,null,null,null,null,null,null,null,null,null,null,null,null,null,null,null,null,null,null,null,null,null,null,null,null,null,null,null,null,null,null,null,null,null,null,null,null,null,null,null,null,null,null,null,null,null,null,null,null,null,null,null,null,null,null,null,null,null,null,null,null,null,null,null,null,null,null,null,null,null,null,null,null,null,null,null,null,null,null,null,null,"PUEMBO"]
[null,null,null,null,null,null,null,null,null,null,null,null,null,null,null,null,null,null,null,null,null,null,null,null,null,null,null,null,null,null,null,null,null,null,null,null,null,null,null,null,null,null,null,null,null,null,null,null,null,null,null,null,null,null,null,null,null,null,null,null,null,null,null,null,null,null,null,null,null,null,null,null,null,null,null,null,null,null,null,null,null,null,null,null,null,null,null,null,null,null,null,null,null,null,null,null,null,null,null,null,null,null,null,null,null,null,null,null,null,null,null,null,null,null,null,null,null,null,null,null,null,null,null,null,null,null,null,null,null,null,null,null,null,null,null,null,null,null,null,null,null,null,null,null,null,null,null,null,null,null,null,null,null,null,null,null,null,null,null,null,null,null,null,null,null,null,null,null,null,null,null,null,null,null,null,null,"SAN  ANTONIO."]
[null,null,null,null,null,null,null,null,null,null,null,null,null,null,null,null,null,null,null,null,null,null,null,null,null,null,null,null,null,null,null,null,null,null,null,null,null,null,null,null,null,null,null,null,null,null,null,null,null,null,null,null,null,null,null,null,null,null,null,null,null,null,null,null,null,null,null,null,null,null,null,null,null,null,null,null,null,null,null,null,null,null,null,null,null,null,null,null,null,null,null,null,null,null,null,null,null,null,null,null,null,null,null,null,null,null,null,null,null,null,null,null,null,null,null,null,null,null,null,null,null,null,null,null,null,null,null,null,null,null,null,null,null,null,null,null,null,null,null,null,null,null,null,null,null,null,null,null,null,null,null,null,null,null,null,null,null,null,null,null,null,null,null,null,null,null,null,null,null,null,null,null,null,null,null,null,"SAN JOSE DE MINAS"]
[null,null,null,null,null,null,null,null,null,null,null,null,null,null,null,null,null,null,null,null,null,null,null,null,null,null,null,null,null,null,null,null,null,null,null,null,null,null,null,null,null,null,null,null,null,null,null,null,null,null,null,null,null,null,null,null,null,null,null,null,null,null,null,null,null,null,null,null,null,null,null,null,null,null,null,null,null,null,null,null,null,null,null,null,null,null,null,null,null,null,null,null,null,null,null,null,null,null,null,null,null,null,null,null,null,null,null,null,null,null,null,null,null,null,null,null,null,null,null,null,null,null,null,null,null,null,null,null,null,null,null,null,null,null,null,null,null,null,null,null,null,null,null,null,null,null,null,null,null,null,null,null,null,null,null,null,null,null,null,null,null,null,null,null,null,null,null,null,null,null,null,null,null,null,null,null,"TABABELA"]
[null,null,null,null,null,null,null,null,null,null,null,null,null,null,null,null,null,null,null,null,null,null,null,null,null,null,null,null,null,null,null,null,null,null,null,null,null,null,null,null,null,null,null,null,null,null,null,null,null,null,null,null,null,null,null,null,null,null,null,null,null,null,null,null,null,null,null,null,null,null,null,null,null,null,null,null,null,null,null,null,null,null,null,null,null,null,null,null,null,null,null,null,null,null,null,null,null,null,null,null,null,null,null,null,null,null,null,null,null,null,null,null,null,null,null,null,null,null,null,null,null,null,null,null,null,null,null,null,null,null,null,null,null,null,null,null,null,null,null,null,null,null,null,null,null,null,null,null,null,null,null,null,null,null,null,null,null,null,null,null,null,null,null,null,null,null,null,null,null,null,null,null,null,null,null,null,"TUMBACO"]
[null,null,null,null,null,null,null,null,null,null,null,null,null,null,null,null,null,null,null,null,null,null,null,null,null,null,null,null,null,null,null,null,null,null,null,null,null,null,null,null,null,null,null,null,null,null,null,null,null,null,null,null,null,null,null,null,null,null,null,null,null,null,null,null,null,null,null,null,null,null,null,null,null,null,null,null,null,null,null,null,null,null,null,null,null,null,null,null,null,null,null,null,null,null,null,null,null,null,null,null,null,null,null,null,null,null,null,null,null,null,null,null,null,null,null,null,null,null,null,null,null,null,null,null,null,null,null,null,null,null,null,null,null,null,null,null,null,null,null,null,null,null,null,null,null,null,null,null,null,null,null,null,null,null,null,null,null,null,null,null,null,null,null,null,null,null,null,null,null,null,null,null,null,null,null,null,"YARUQUI"]
[null,null,null,null,null,null,null,null,null,null,null,null,null,null,null,null,null,null,null,null,null,null,null,null,null,null,null,null,null,null,null,null,null,null,null,null,null,null,null,null,null,null,null,null,null,null,null,null,null,null,null,null,null,null,null,null,null,null,null,null,null,null,null,null,null,null,null,null,null,null,null,null,null,null,null,null,null,null,null,null,null,null,null,null,null,null,null,null,null,null,null,null,null,null,null,null,null,null,null,null,null,null,null,null,null,null,null,null,null,null,null,null,null,null,null,null,null,null,null,null,null,null,null,null,null,null,null,null,null,null,null,null,null,null,null,null,null,null,null,null,null,null,null,null,null,null,null,null,null,null,null,null,null,null,null,null,null,null,null,null,null,null,null,null,null,null,null,null,null,null,null,null,null,null,null,null,"ZAMBIZA"]

{"sheet":"Clas_AT","index":2,"n_rows":97,"n_cols":3,"rows_kept":97,"cut":false,"hidden":true,"merged":[]}
["TIPO","COD1","COD2"]
["MONTAÑAS","0",1]
["DESIERTOS","0","2"]
["AMBIENTES_LACUSTRES","0","3"]
["RÍOS","0","4"]
["BOSQUES","0","5"]
["AGUAS_SUBTERRÁNEAS","0","6"]
["FENÓMENOS_ESPELEOLÓGICOS","0","7"]
["FENÓMENOS_GEOLÓGICOS","0","8"]
["COSTAS_O_LITORALES","0","9"]
["AMBIENTES_MARINOS","1","0"]
["TIERRAS_INSULARES","1","1"]
["ARQUITECTURA","0",1]
["ACERVO_CULTURAL_Y_POPULAR","0",2]
["REALIZACIONES_TÉCNICAS_Y_CIENTÍFICAS","0",3]
["ACONTECIMIENTOS_PROGRAMADOS","0",4]
[]
["SUBTIPO","COD1","COD2"]
["ALTA MONTAÑA","0","1"]
["MEDIA MONTAÑA","0","2"]
["BAJA MONTAÑA","0","3"]
["COSTERO","0","1"]
["DEL INTERIOR","0","2"]
["LAGO","0","1"]
["LAGUNA","0","2"]
["PANTANO","0","3"]
["POZA","0","4"]
["HUMEDAL","0","5"]
["VADO","0","6"]
["PLAYA DE LAGUNA","0","7"]
["RÍO","0","1"]
["RIACHUELO","0","2"]
["RÁPIDO","0","3"]
["CASCADA","0","4"]
["RIBERA","0","5"]
["PLAYA DE RÍO","0","6"]
["DELTA","0","7"]
["EN PÁRAMO","0","1"]
["CEJA DE SELVA","0","2"]
["NUBLADO","0","3"]
["MONTANO BAJO","0","4"]
["HÚMEDO TROPICAL","0","5"]
["MANGLAR","0","6"]
["SECO","0","7"]
["PETRIFICADO","0","8"]
["INUNDABLE / INUNDADO","0","9"]
["MANANTIAL DE AGUA MINERAL","0","1"]
["MANANTIAL DE AGUA TERMAL","0","2"]
["CUEVA O CAVERNA","0","1"]
["RÍO SUBTERRÁNEO","0","2"]
["FLUJO DE LAVA","0","1"]
["TUBO DE LAVA","0","2"]
["ESCARPA DE FALLA (PLIEGE)","0","3"]
["CAÑÓN","0","4"]
["QUEBRADA","0","5"]
["GRIETA","0","6"]
["PLAYA","0","1"]
["ACANTILADO","0","2"]
["GOLFO","0","3"]
["BAHÍA","0","4"]
["ENSENADA","0","5"]
["CANAL","0","6"]
["ESTUARIO","0","7"]
["ESTERO","0","8"]
["ARRECIFE DE CORAL","0","1"]
["CUEVA","0","2"]
["CRÁTER","0","3"]
["ACANTILADO","0","4"]
["ISLA CONTINENTAL","0","1"]
["ISLA OCEÁNICA","0","2"]
["ISLOTE","0","3"]
["ROCA","0","4"]
["HISTÓRICA / VERNÁCULA","0",1]
["INFRAESTRUCTURA CULTURAL","0",2]
["INFRAESTRUCTURA RECREATIVA","0",3]
["OTRAS INFRAESTRUCTURAS SOCIALES","0",4]
["ÁREA HISTÓRICA","0",5]
["ÁREA ARQUEOLÓGICA","0",6]
["MONUMENTOS","0",7]
["ESPACIO PÚBLICO","0",8]
["PUEBLO Y/O NACIONALIDAD (ETNOGRAFÍA)","0",1]
["FIESTAS RELIGIOSAS, TRADICIONES Y CREENCIAS POPULARES","0",2]
["ARTESANÍAS Y ARTES","0",3]
["MEDICINA ANCESTRAL","0",4]
["FERIAS Y MERCADOS","0",5]
["MÚSICA Y DANZA","0",6]
["GASTRONOMÍA","0",7]
["OBRAS DE INGENIERÍA","0",1]
["CENTROS ASTRONÓMICOS","0",2]
["CENTROS DE EXHIBICIÓN DE FLORA Y FAUNA","0",3]
["CENTROS DE RECATE DE FAUNA SILVESTRE","0",4]
["CENTROS AGROPECUARIOS Y PESQUEROS","0",5]
["CENTROS INDUSTRIALES","0",6]
["EVENTOS ARTÍSTICOS","0",1]
["CONVENCIONES, FERIAS (NO ARTESANALES) Y CONGRESOS","0",2]
["EVENTOS DEPORTIVOS","0",3]
["EVENTOS GASTRONÓMICOS","0",4]

{"sheet":"DPA","index":3,"n_rows":1507,"n_cols":3,"rows_kept":1507,"cut":false,"hidden":true,"merged":[]}
["PROVINCIA","COD1","COD2"]
["AZUAY",0,1]
["BOLIVAR",0,2]
["CAÑAR",0,3]
["CARCHI",0,4]
["COTOPAXI",0,5]
["CHIMBORAZO",0,6]
["EL_ORO",0,7]
["ESMERALDAS ",0,8]
["GUAYAS",0,9]
["IMBABURA",1,0]
["LOJA",1,1]
["LOS_RIOS",1,2]
["MANABI",1,3]
["MORONA_SANTIAGO",1,4]
["NAPO",1,5]
["PASTAZA",1,6]
["PICHINCHA",1,7]
["TUNGURAHUA",1,8]
["ZAMORA_CHINCHIPE",1,9]
["GALAPAGOS",2,0]
["SUCUMBIOS",2,1]
["ORELLANA",2,2]
["SANTO_DOMINGO_DE_LOS_TSACHILAS",2,3]
["SANTA_ELENA",2,4]
["ZONAS_EN_ESTUDIO",9,0]
[]
["CANTÓN","COD1","COD2"]
["CUENCA",0,1]
["GIRON",0,2]
["GUALACEO",0,3]
["NABON",0,4]
["PAUTE",0,5]
["PUCARA",0,6]
["SAN_FERNANDO",0,7]
["SANTA_ISABEL",0,8]
["SIGSIG",0,9]
["OÑA",1,0]
["CHORDELEG",1,1]
["EL_PAN",1,2]
["SEVILLA_DE_ORO",1,3]
["GUACHAPALA",1,4]
["CAMILO_PONCE_ENRIQUEZ",1,5]
["GUARANDA",0,1]
["CHILLANES",0,2]
["CHIMBO",0,3]
["ECHEANDIA",0,4]
["SAN_MIGUEL",0,5]
["CALUMA",0,6]
["LAS_NAVES",0,7]
["AZOGUES",0,1]
["BIBLIAN",0,2]
["CAÑAR.",0,3]
["LA_TRONCAL",0,4]
["EL_TAMBO",0,5]
["DELEG",0,6]
["SUSCAL",0,7]
["TULCAN",0,1]
["BOLIVAR.",0,2]
["ESPEJO",0,3]
["MIRA",0,4]
["MONTUFAR",0,5]
["SAN_PEDRO_DE_HUACA",0,6]
["LATACUNGA",0,1]
["LA_MANA",0,2]
["PANGUA",0,3]
["PUJILI",0,4]
["SALCEDO",0,5]
["SAQUISILI",0,6]
["SIGCHOS",0,7]
["RIOBAMBA",0,1]
["ALAUSI",0,2]
["COLTA",0,3]
["CHAMBO",0,4]
["CHUNCHI",0,5]
["GUAMOTE",0,6]
["GUANO",0,7]
["PALLATANGA",0,8]
["PENIPE",0,9]
["CUMANDA",1,0]
["MACHALA",0,1]
["ARENILLAS",0,2]
["ATAHUALPA",0,3]
["BALSAS",0,4]
["CHILLA",0,5]
["EL_GUABO",0,6]
["HUAQUILLAS",0,7]
["MARCABELI",0,8]
["PASAJE",0,9]
["PIÑAS",1,0]
["PORTOVELO",1,1]
["SANTA_ROSA",1,2]
["ZARUMA",1,3]
["LAS_LAJAS",1,4]
["ESMERALDAS.",0,1]
["ELOY_ALFARO",0,2]
["MUISNE",0,3]
["QUININDE",0,4]
["SAN_LORENZO",0,5]
["ATACAMES",0,6]
["RIOVERDE",0,7]
["GUAYAQUIL",0,1]
["ALFREDO_BAQUERIZO_MORENO_JUJAN",0,2]
["BALAO",0,3]
["BALZAR",0,4]
["COLIMES",0,5]
["DAULE",0,6]
["DURAN",0,7]
["EL_EMPALME",0,8]
["EL_TRIUNFO",0,9]
["MILAGRO",1,0]
["NARANJAL",1,1]
["NARANJITO",1,2]
["PALESTINA",1,3]
["PEDRO_CARBO",1,4]
["SAMBORONDON",1,6]
["SANTA_LUCIA",1,8]
["URBINA_JADO",1,9]
["YAGUACHI",2,0]
["PLAYAS",2,1]
["SIMON_BOLIVAR",2,2]
["CORONEL_MARCELINO_MARIDUEÑA",2,3]
["LOMAS_DE_SARGENTILLO",2,4]
["NOBOL",2,5]
["GENERAL__ANTONIO_ELIZALDE",2,7]
["ISIDRO_AYORA",2,8]
["IBARRA",0,1]
["ANTONIO_ANTE",0,2]
["COTACACHI",0,3]
["OTAVALO",0,4]
["PIMAMPIRO",0,5]
["SAN_MIGUEL_DE_URCUQUI",0,6]
["LOJA.",0,1]
["CALVAS",0,2]
["CATAMAYO",0,3]
["CELICA",0,4]
["CHAGUARPAMBA",0,5]
["ESPINDOLA",0,6]
["GONZANAMA",0,7]
["MACARA",0,8]
["PALTAS",0,9]
["PUYANGO",1,0]
["SARAGURO",1,1]
["SOZORANGA",1,2]
["ZAPOTILLO",1,3]
["PINDAL",1,4]
["QUILANGA",1,5]
["OLMEDO",1,6]
["BABAHOYO",0,1]
["BABA",0,2]
["MONTALVO",0,3]
["PUEBLOVIEJO",0,4]
["QUEVEDO",0,5]
["URDANETA",0,6]
["VENTANAS",0,7]
["VINCES",0,8]
["PALENQUE",0,9]
["BUENA_FE",1,0]
["VALENCIA",1,1]
["MOCACHE",1,2]
["QUINSALOMA",1,3]
["PORTOVIEJO",0,1]
["BOLIVAR_",0,2]
["CHONE",0,3]
["EL_CARMEN",0,4]
["FLAVIO_ALFARO",0,5]
["JIPIJAPA",0,6]
["JUNIN",0,7]
["MANTA",0,8]
["MONTECRISTI",0,9]
["PAJAN",1,0]
["PICHINCHA.",1,1]
["ROCAFUERTE",1,2]
["SANTA_ANA",1,3]
["SUCRE",1,4]
["TOSAGUA",1,5]
["24_DE_MAYO",1,6]
["PEDERNALES",1,7]
["OLMEDO.",1,8]
["PUERTO_LOPEZ",1,9]
["JAMA",2,0]
["JARAMIJO",2,1]
["SAN_VICENTE",2,2]
["MORONA",0,1]
["GUALAQUIZA",0,2]
["LIMON_INDANZA",0,3]
["PALORA",0,4]
["SANTIAGO",0,5]
["SUCUA",0,6]
["HUAMBOYA",0,7]
["SAN_JUAN_BOSCO",0,8]
["TAISHA",0,9]
["LOGROÑO",1,0]
["PABLO_SEXTO",1,1]
["TIWINTZA",1,2]
["TENA",0,1]
["ARCHIDONA",0,3]
["EL_CHACO",0,4]
["QUIJOS",0,7]
["CARLOS_JULIO_AROSEMENA_TOLA",0,9]
["PASTAZA.",0,1]
["MERA",0,2]
["SANTA_CLARA",0,3]
["ARAJUNO",0,4]
["DISTRITO_METROPOLITANO_DE_QUITO",0,1]
["CAYAMBE",0,2]
["MEJIA",0,3]
["PEDRO_MONCAYO",0,4]
["RUMIÑAHUI",0,5]
["SAN_MIGUEL_DE_LOS_BANCOS",0,7]
["PEDRO_VICENTE_MALDONADO",0,8]
["PUERTO_QUITO",0,9]
["AMBATO",0,1]
["BAÑOS_DE_AGUA_SANTA",0,2]
["CEVALLOS",0,3]
["MOCHA",0,4]
["PATATE",0,5]
["QUERO",0,6]
["PELILEO",0,7]
["PILLARO",0,8]
["TISALEO",0,9]
["ZAMORA",0,1]
["CHINCHIPE",0,2]
["NANGARITZA",0,3]
["YACUAMBI",0,4]
["YANTZAZA",0,5]
["EL_PANGUI",0,6]
["CENTINELA_DEL_CONDOR",0,7]
["PALANDA",0,8]
["PAQUISHA",0,9]
["SAN_CRISTOBAL",0,1]
["ISABELA",0,2]
["SANTA_CRUZ",0,3]
["LAGO_AGRIO",0,1]
["GONZALO_PIZARRO",0,2]
["PUTUMAYO",0,3]
["SHUSHUFINDI",0,4]
["SUCUMBIOS.",0,5]
["CASCALES",0,6]
["CUYABENO",0,7]
["ORELLANA.",0,1]
["AGUARICO",0,2]
["LA_JOYA_DE_LOS_SACHAS",0,3]
["LORETO",0,4]
["SANTO_DOMINGO",0,1]
["LA_CONCORDIA",0,2]
["SANTA_ELENA.",0,1]
["LA_LIBERTAD",0,2]
["SALINAS",0,3]
["LAS_GOLONDRINAS",0,1]
["EL_PIEDRERO",0,4]
["SANTA_ROSA_DE_AGUA_CLARA",0,5]
["JUVAL",0,6]
["ABDON_CALDERON",0,7]
["MATILDE_ESTHER",0,8]
[]
["DPA_DESPARR","COD1","COD2"]
["BELLAVISTA",0,1]
["CAÑARIBAMBA",0,2]
["EL BATÁN",0,3]
["EL SAGRARIO",0,4]
["EL VECINO",0,5]
["GIL RAMÍREZ DÁVALOS",0,6]
["HUAYNACÁPAC",0,7]
["MACHÁNGARA",0,8]
["MONAY",0,9]
["SAN BLAS",1,0]
["SAN SEBASTIÁN",1,1]
["SUCRE.",1,2]
["TOTORACOCHA ",1,3]
["YANUNCAY",1,4]
["HERMANO MIGUEL",1,5]
["BAÑOS",5,1]
["CUMBE",5,2]
["CHAUCHA",5,3]
["CHECA (JIDCAY)",5,4]
["CHIQUINTAD",5,5]
["LLACAO",5,6]
["MOLLETURO",5,7]
["NULTI",5,8]
["OCTAVIO CORDERO PALACIOS (STA. ROSA)",5,9]
["PACCHA",6,0]
["QUINGEO",6,1]
["RICAURTE",6,2]
["SAN JOAQUIN",6,3]
["SANTA ANA",6,4]
["SAYAUSI",6,5]
["SIDCAY",6,6]
["SININCAY",6,7]
["TARQUI",6,8]
["TURI",6,9]
["VALLE",7,0]
["VICTORIA DEL PORTETE (IRQUIS)",7,1]
[" GIRON",5,0]
["ASUNCION",5,1]
["SAN GERARDO",5,2]
[" GUALACEO",5,0]
["DANIEL CORDOVA TORAL (EL ORIENTE)",5,2]
["JADAN",5,3]
["MARIANO MORENO",5,4]
["REMIGIO CRESPO TORAL (GULAG)",5,6]
["SAN JUAN",5,7]
["ZHIDMAD",5,8]
["LUIS CORDERO VEGA",5,9]
["SIMON BOLIVAR (CAB. EN GAÑANZOL)",6,0]
["NABÓN",5,0]
["COCHAPATA",5,1]
["EL PROGRESO (CAB. EN ZHOTA)",5,2]
["LAS NIEVES (CHAYA)",5,3]
["PAUTE.",5,0]
["BULAN (JOSE VICTOR IZQUIERDO)",5,2]
["CHICAN (GUILLERMO ORTEGA)",5,3]
["EL CABO",5,4]
["GUARAINAG",5,6]
["SAN CRISTOBAL (CARLOS ORDOÑEZ LAZO)",5,9]
["TOMEBAMBA",6,1]
["DUG DUG",6,2]
["PUCARÁ",5,0]
["SAN RAFAEL DE SHARUG",5,2]
["SAN FERNANDO",5,0]
["CHUMBLIN",5,1]
["SANTA ISABEL (CHAGUARURCO)",5,0]
["ABDON CALDERON (LA UNION)",5,1]
["EL CARMEN DE PIJILI",5,2]
["ZHAGLLI (SHAGLLI )",5,3]
["SAN SALVADOR DE CAÑARIBAMBA",5,4]
["SIGSIG.",5,0]
["CUCHIL (CUTCHIL)",5,1]
["GIMA",5,2]
["GUEL",5,3]
["LUDO",5,4]
["SAN BARTOLOME",5,5]
["SAN JOSE DE RARANGA",5,6]
["SAN FELIPE DE OÑA",5,0]
["SUSUDEL",5,1]
["CHORDELEG.",5,0]
["PRINCIPAL",5,1]
["LA UNION",5,2]
["LUIS GALARZA ORELLANA (CAB. EN DELEGSOL)",5,3]
["SAN MARTIN DE PUZHIO",5,4]
["EL PAN",5,0]
["SAN VICENTE",5,3]
["SEVILLA DE ORO",5,0]
["AMALUZA",5,1]
["PALMAS",5,2]
["GUACHAPALA.",5,0]
["CAMILO PONCE ENRIQUEZ",5,0]
["ÁNGEL POLIBIO CHÁVES",0,1]
["GABRIEL IGNACIO VEINTIMILLA",0,2]
["GUANUJO",0,3]
["FACUNDO VELA",5,1]
["JULIO MORENO (CATANAHUAN GRANDE)",5,3]
["SALINAS.",5,5]
["SAN LORENZO",5,6]
["SAN SIMON (YACOTO)",5,7]
["SANTA FE (SANTA FE)",5,8]
["SIMIATUG",5,9]
["SAN LUIS DE PAMBIL",6,0]
["CHILLANES.",5,0]
["SAN JOSE DEL TAMBO (TAMBOPAMBA)",5,1]
["SAN JOSE DE CHIMBO",5,0]
["ASUNCION (ASANCOTO)",5,1]
["MAGDALENA (CHAPACOTO)",5,3]
["SAN SEBASTIAN",5,4]
["TELIMBELA",5,5]
["ECHEANDIA.",5,0]
["SAN MIGUEL",5,0]
["BALSAPAMBA",5,1]
["BILOVAN",5,2]
["REGULO DE MORA",5,3]
["SAN PABLO (SAN PABLO DE ATENAS)",5,4]
["SANTIAGO.",5,5]
["SAN VICENTE.",5,6]
["CALUMA.",5,0]
["LAS MERCEDES",0,1]
["LAS NAVES",0,2]
["AURELIO BAYAS MARTÍNEZ",0,1]
["AZOGUES.",0,2]
["BORRERO",0,3]
["SAN FRANCISCO",0,4]
["COJITAMBO",5,1]
["GUAPAN",5,3]
["JAVIER LOYOLA (CHUQUIPATA)",5,4]
["LUIS CORDERO",5,5]
["PINDILIG",5,6]
["RIVERA",5,7]
["SAN MIGUEL.",5,8]
["TADAY",6,0]
["BIBLIAN.",5,0]
["NAZON (CAB. EN PAMPA DE DOMINGUEZ)",5,1]
["SAN FRANCISCO DE SAGEO",5,2]
["TURUPAMBA",5,3]
["JERUSALEN",5,4]
["CAÑAR ",5,0]
["CHONTAMARCA",5,1]
["CHOROCOPTE",5,2]
["GENERAL MORALES (SOCARTE)",5,3]
["GUALLETURO",5,4]
["HONORATO VASQUEZ (TAMBO VIEJO)",5,5]
["INGAPIRCA",5,6]
["JUNCAL",5,7]
["SAN ANTONIO",5,8]
["ZHUD",6,1]
["VENTURA",6,2]
["DUCUR",6,3]
["LA TRONCAL",5,0]
["MANUEL J. CALLE",5,1]
["PANCHO NEGRO",5,2]
["EL TAMBO",5,0]
["DELEG.",5,0]
["SOLANO",5,1]
["SUSCAL.",5,0]
["GONZÁLEZ SUÁREZ",0,1]
["TULCÁN",0,2]
["EL CARMELO (EL PUN)",5,1]
["JULIO ANDRADE (OREJUELA)",5,3]
["MALDONADO",5,4]
["PIOTER",5,5]
["TOBAR DONOSO (LA BOCANA DE CAMUMBI)",5,6]
["TUFIÑO",5,7]
["URBINA (TAYA)",5,8]
["EL CHICAL",5,9]
["SANTA MARTHA DE CUBA",6,1]
[" BOLIVAR",5,0]
["GARCIA MORENO",5,1]
["LOS ANDES",5,2]
["MONTE OLIVO",5,3]
["SAN VICENTE DE PUSIR",5,4]
["SAN RAFAEL",5,5]
["EL ÁNGEL",0,1]
["27 DE SEPTIEMBRE",0,2]
["EL GOALTAL",5,1]
["LA LIBERTAD (ALIZO)",5,2]
["SAN ISIDRO",5,3]
["MIRA (CHONTAHUASI)",5,0]
["CONCEPCION",5,1]
["JIJON Y CAAMAÑO (CAB. EN RIO BLANCO)",5,2]
["JUAN MONTALVO (SAN IGNACIO DE QUIL)",5,3]
["GONZÁLEZ SUÁREZ.",0,1]
["SAN JOSÉ",0,2]
["CRISTOBAL COLON",5,1]
["CHITAN DE NAVARRETE",5,2]
["FERNANDEZ SALVADOR",5,3]
["LA PAZ",5,4]
["PIARTAL",5,5]
["HUACA",5,0]
["MARISCAL SUCRE",5,1]
["ELOY ALFARO  (SAN FELIPE) ",0,1]
["IGNACIO FLORES (PARQUE FLORES) ",0,2]
["JUAN MONTALVO (SAN SEBASTIÁN)",0,3]
["LA MATRIZ",0,4]
["SAN BUENAVENTURA",0,5]
["ALAQUES (ALAQUEZ)",5,1]
["BELISARIO QUEVEDO (GUANAILIN)",5,2]
["GUAITACAMA (GUAYTACAMA)",5,3]
["JOSEGUANGO BAJO",5,4]
["MULALO",5,6]
["11 DE NOVIEMBRE (ILINCHISI)",5,7]
["POALO",5,8]
["SAN JUAN DE PASTOCALLE",5,9]
["TANICUCHI",6,1]
["TOACASO",6,2]
["EL CARMEN",0,1]
["LA MANÁ ",0,2]
["EL TRIUNFO",0,3]
["GUASAGANDA (CAB. EN GUASAGANDA CENTRO)",5,1]
["PUCAYACU",5,2]
["EL CORAZON",5,0]
["MORASPUNGO",5,1]
["PINLLOPATA",5,2]
["RAMON CAMPAÑA",5,3]
["PUJILI.",5,0]
["ANGAMARCA",5,1]
["GUANGAJE",5,3]
["LA VICTORIA",5,5]
["PILALO",5,6]
["TINGO",5,7]
["ZUMBAHUA",5,8]
["SAN  MIGUEL",5,0]
["ANTONIO JOSE HOLGUIN (SANTA LUCIA)",5,1]
["CUSUBAMBA",5,2]
["MULALILLO",5,3]
["MULLIQUINDIL (SANTA ANA)",5,4]
["PANSALEO",5,5]
["SAQUISILI.",5,0]
["CANCHAGUA",5,1]
["CHANTILIN",5,2]
["COCHAPAMBA",5,3]
["SIGCHOS.",5,0]
["CHUGCHILLAN",5,1]
["ISINLIVI",5,2]
["LAS PAMPAS",5,3]
["PALO QUEMADO",5,4]
["LIZARZABURU",0,1]
["MALDONADO.",0,2]
["VELASCO",0,3]
["VELOZ",0,4]
["YARUQUÍES",0,5]
["CACHA (CAB. EN MACHANGARA)",5,1]
["CALPI",5,2]
["CUBIJIES",5,3]
["FLORES",5,4]
["LICAN",5,5]
["LICTO",5,6]
["PUNGALA",5,7]
["PUNIN",5,8]
["QUIMIAG",5,9]
["SAN JUAN.",6,0]
["SAN LUIS",6,1]
["ALAUSI.",5,0]
["ACHUPALLAS",5,1]
["GUASUNTOS",5,3]
["HUIGRA",5,4]
["MULTITUD",5,5]
["PISTISHI (NARIZ DEL DIABLO)",5,6]
["PUMALLACTA",5,7]
["SEVILLA",5,8]
["SIBAMBE",5,9]
["TIXAN",6,0]
["CAJABAMBA",0,1]
["SICALPA",0,2]
["CAÑI",5,1]
["COLUMBE",5,2]
["JUAN DE VELASCO (PANGOR)",5,3]
["SANTIAGO DE QUITO (CAB. EN SAN ANTONIO DE QUITO)",5,4]
["CHAMBO.",5,0]
["CHUNCHI.",5,0]
["CAPZOL",5,1]
["COMPUD",5,2]
["GONZOL",5,3]
["LLAGOS",5,4]
["GUAMOTE.",5,0]
["CEBADAS",5,1]
["PALMIRA",5,2]
["EL ROSARIO",0,1]
["LA MATRIZ ",0,2]
["GUANANDO",5,1]
["ILAPO",5,2]
["LA PROVIDENCIA",5,3]
["SAN ANDRES",5,4]
["SAN GERARDO DE PACAICAGUAN",5,5]
["SAN ISIDRO DE PATULU",5,6]
["SAN JOSE DEL CHAZO",5,7]
["SANTA FE DE GALAN",5,8]
["VALPARAISO",5,9]
["PALLATANGA.",5,0]
["PENIPE.",5,0]
["EL ALTAR",5,1]
["MATUS",5,2]
["PUELA",5,3]
["SAN ANTONIO DE BAYUSHIG",5,4]
["LA CANDELARIA",5,5]
["BILBAO (CAB. EN QUILLUYACU)",5,6]
["CUMANDA.",5,0]
["LA  PROVIDENCIA",0,1]
["MACHALA.",0,2]
["PUERTO BOLÍVAR",0,3]
["NUEVE DE MAYO",0,4]
["EL CAMBIO",0,5]
["EL RETIRO",5,2]
["ARENILLAS.",5,0]
["CHACRAS",5,1]
["PALMALES",5,4]
["CARCABON",5,5]
["PACCHA.",5,0]
["AYAPAMBA",5,1]
["CORDONCILLO",5,2]
["MILAGRO.",5,3]
["SAN JOSE",5,4]
["SAN JUAN DE CERRO AZUL",5,5]
["BALSAS.",5,0]
["BELLAMARIA",5,1]
["CHILLA.",5,0]
["EL GUABO",5,0]
["BARBONES (SUCRE)",5,1]
["LA IBERIA",5,2]
["TENDALES (CAB. EN PUERTO TENDALES)",5,3]
["RIO BONITO",5,4]
["ECUADOR",0,1]
["EL PARAÍSO",0,2]
["HUALTACO",0,3]
["MILTON REYES",0,4]
["UNIÓN LOJANA",0,5]
["MARCABELI.",5,0]
["EL INGENIO",5,1]
["BOLÍVAR",0,1]
["LOMA DE FRANCO",0,2]
["OCHOA LEÓN (MATRIZ)",0,3]
["TRES CERRITOS",0,4]
["BUENAVISTA",5,1]
["CASACAY",5,2]
["LA PEAÑA",5,3]
["PROGRESO",5,4]
["UZHCURRUMI",5,5]
["CAÑAQUEMADA",5,6]
["LA  MATRIZ",0,1]
["LA SUSAYA",0,2]
["PIÑAS GRANDE",0,3]
["CAPIRO (CAB. EN LA CAPILLA DE CAPIRO)",5,1]
["LA BOCANA",5,2]
["MOROMORO (CAB. EN EL VADO)",5,3]
["PIEDRAS",5,4]
["SAN ROQUE (AMBROSIO MALDONADO)",5,5]
["SARACAY",5,6]
["PORTOVELO.",5,0]
["CURTINCAPA",5,1]
["MORALES",5,2]
["SALATI",5,3]
["SANTA ROSA",0,1]
["PUERTO JELÍ",0,2]
["BALNEARIO JAMBELÍ (SATÉLITE)",0,3]
["JUMÓN (SATÉLITE)",0,4]
["NUEVO SANTA ROSA",0,5]
["BELLAVISTA.",5,1]
["JAMBELI",5,2]
["LA AVANZADA",5,3]
["SAN ANTONIO.",5,4]
["TORATA",5,5]
["VICTORIA",5,6]
["BELLAMARIA.",5,7]
["ZARUMA.",5,0]
["ABAÑIN",5,1]
["ARCAPAMBA",5,2]
["GUANAZAN",5,3]
["GUIZHAGUIÑA",5,4]
["HUERTAS",5,5]
["MALVAS",5,6]
["MULUNCAY GRANDE",5,7]
["SINSAO",5,8]
["SALVIAS",5,9]
["LA VICTORIA.",0,1]
["PLATANILLOS",0,2]
["VALLE HERMOSO",0,3]
["LA LIBERTAD",5,1]
["EL PARAISO",5,2]
["SAN ISIDRO.",5,3]
["BARTOLOMÉ RUIZ (CÉSAR FRANCO CARRIÓN) ",0,1]
["5 DE AGOSTO",0,2]
[" ESMERALDAS ",0,3]
["LUIS TELLO  (LAS PALMAS)",0,4]
["SIMÓN PLATA TORRES",0,5]
["CAMARONES (CAB. EN SAN VICENTE)",5,2]
["CORONEL CARLOS CONCHA TORRES (CAB. EN HUELE)",5,3]
["CHINCA",5,4]
["MAJUA",5,9]
["SAN MATEO",6,3]
["TABIAZO",6,5]
["TACHINA",6,6]
["VUELTA LARGA",6,8]
["VALDEZ (LIMONES)",5,0]
["ANCHAYACU",5,1]
["ATAHUALPA (CAB. EN CAMARONES)",5,2]
["BORBON",5,3]
["LA TOLA",5,4]
["LUIS VARGAS TORRES (CAB. EN PLAYA DE ORO)",5,5]
["MALDONADO ",5,6]
["PAMPANAL DE BOLIVAR",5,7]
["SAN FRANCISCO DE ONZOLE",5,8]
["SANTO DOMINGO DE ONZOLE",5,9]
["SELVA ALEGRE",6,0]
["TELEMBI",6,1]
["COLON ELOY DEL MARIA",6,2]
["SAN JOSE DE CAYAPAS",6,3]
["TIMBIRE",6,4]
["SANTA LUCIA DE LAS PEÑAS",6,5]
["MUISNE.",5,0]
[" BOLIVAR ",5,1]
["DAULE.",5,2]
["GALERA",5,3]
["QUINGUE (OLMEDO PERDOMO FRANCO)",5,4]
["SALIMA",5,5]
["SAN FRANCISCO.",5,6]
["SAN GREGORIO",5,7]
["SAN JOSE DE CHAMANGA",5,8]
["ROSA ZARATE (QUININDE)",5,0]
["CUBE",5,1]
["CHURA (CHANCAMA) (CAB. EN EL YERBERO)",5,2]
["MALIMPIA",5,3]
["VICHE",5,4]
["LA UNION.",5,5]
["SAN LORENZO.",5,0]
["ALTO TAMBO (CAB EN GUADUAL)",5,1]
["ANCON (PICHANGAL) (CAB. EN PALMA REAL)",5,2]
["CALDERON",5,3]
["CARONDELET",5,4]
["5 DE JUNIO (CAB. EN UIMBI)",5,5]
["CONCEPCION.",5,6]
["MATAJE (CAB. EN SANTANDER)",5,7]
["SAN JAVIER DE CACHAVI (CAB. EN SAN JAVIER)",5,8]
["SANTA RITA",5,9]
["TAMBILLO",6,0]
["TULULBI (CAB. EN RICAURTE)",6,1]
["URBINA",6,2]
["ATACAMES.",5,0]
["LA UNION ",5,1]
["SUA (CAB. EN LA BOCANA)",5,2]
["TONCHIGUE",5,3]
["TONSUPA",5,4]
["RIOVERDE.",5,0]
["CHONTADURO",5,1]
["CHUMUNDE",5,2]
["LAGARTO",5,3]
["MONTALVO (CAB EN HORQUETA)",5,4]
["ROCAFUERTE.",5,5]
["AYACUCHO",0,1]
["BOLÍVAR  (SAGRARIO) ",0,2]
["CARBO (CONCEPCIÓN) ",0,3]
["FEBRES CORDERO",0,4]
["GARCÍA MORENO",0,5]
["LETAMENDI",0,6]
["NUEVE DE OCTUBRE",0,7]
["OLMEDO  (SAN ALEJO) ",0,8]
["ROCA",0,9]
["ROCAFUERTE ",1,0]
["SUCRE ",1,1]
["TARQUI.",1,2]
["URDANETA.",1,3]
["XIMENA",1,4]
["PASCUALES",1,5]
["JUAN GOMEZ RENDON (PROGRESO)",5,2]
["MORRO",5,3]
["POSORJA",5,6]
["PUNA",5,7]
["TENGUEL",5,8]
["ALFREDO BAQUERIZO MORENO (JUJAN)",5,0]
["BALAO.",5,0]
["BALZAR.",5,0]
["COLIMES.",5,0]
["SAN JACINTO",5,1]
["DAULE ",0,1]
["LA AURORA (SATÉLITE)",0,2]
["BANIFE",0,3]
["EMILIANO CAICEDO MARCOS",0,4]
["MAGRO",0,5]
["PADRE JUAN BAUTISTA AGUIRRE",0,6]
["SANTA CLARA",0,7]
["VICENTE PIEDRAHITA",0,8]
["JUAN BAUTISTA AGUIRRE (LOS TINTOS)",5,2]
["LAUREL",5,3]
["LIMONAL",5,4]
["LOS LOJAS (ENRIQUE BAQUERIZO MORENO)",5,6]
["ELOY ALFARO (DURÁN)",0,1]
["EL RECREO",0,2]
["DIVINO NIÑO",0,3]
["VELASCO IBARRA (CAB. EL EMPALME)",5,0]
["GUAYAS (PUEBLO NUEVO)",5,1]
["EL ROSARIO.",5,2]
["EL  TRIUNFO",5,0]
["CAMILO ANDRADE",0,1]
["ELOY ALFARO",0,2]
["CHIRIJOS",0,3]
["CORONEL ENRIQUE VALDEZ",0,4]
["ROSA MARIA",0,5]
["JOSE MARIA VELASCO IBARRA",0,6]
["VICENTE ROCAFUERTE",0,7]
["ERNESTO SEMINARIO",0,8]
["LAS PIÑAS",0,9]
["CHOBO",5,1]
["MARISCAL SUCRE (HUAQUES)",5,3]
["ROBERTO ASTUDILLO (CAB. EN CRUCE DE VENECIA)",5,4]
["NARANJAL.",5,0]
["JESUS MARIA",5,1]
["SAN CARLOS",5,2]
["SANTA ROSA DE FLANDES",5,3]
["TAURA",5,4]
["NARANJITO.",5,0]
["PALESTINA.",5,0]
["PEDRO CARBO",5,0]
["VALLE DE LA VIRGEN",5,1]
["SABANILLA",5,2]
["SAMBORONDÓN",0,1]
["LA PUNTILLA (SATÉLITE)",0,2]
["TARIFA",5,1]
["SANTA LUCIA",5,0]
["BOCANA",0,1]
["CANDILEJOS",0,2]
["CENTRAL",0,3]
["PARAÍSO",0,4]
["SAN MATEO ",0,5]
["GENERAL VERNAZA (DOS ESTEROS)",5,1]
["LA VICTORIA (ÑAUZA)",5,2]
["JUNQUILLAL",5,3]
["SAN JACINTO DE YAGUACHI",5,0]
["GENERAL PEDRO J. MONTERO (BOLICHE)",5,3]
["YAGUACHI VIEJO (CONE)",5,5]
["VIRGEN DE FATIMA",5,6]
["GENERAL VILLAMIL (PLAYAS)",5,0]
["SIMON BOLIVAR",5,0]
["CORONEL LORENZO DE GARAICOA (PEDREGAL)",5,1]
["CORONEL MARCELINO MARIDUEÑA (SAN CARLOS)",5,0]
["LOMAS DE SARGENTILLO",5,0]
["NARCISA DE JESUS",5,0]
["GENERAL ANTONIO ELIZALDE (BUCAY)",5,0]
["ISIDRO AYORA",5,0]
["CARANQUI",0,1]
["GUAYAQUIL DE ALPACHACA",0,2]
["SAGRARIO",0,3]
["SAN  FRANCISCO",0,4]
["LA DOLOROSA DEL PRIORATO",0,5]
["AMBUQUI",5,1]
["ANGOCHAGUA",5,2]
["CAROLINA",5,3]
["LA ESPERANZA",5,4]
["LITA",5,5]
["SALINAS ",5,6]
["SAN ANTONIO ",5,7]
["ANDRADE MARÍN  (LOURDES) ",0,1]
["ATUNTAQUI",0,2]
["IMBAYA (SAN LUIS DE COBUENDO)",5,1]
["SAN FRANCISCO DE NATABUELA",5,2]
["SAN JOSE DE CHALTURA",5,3]
["SAN ROQUE",5,4]
["SAGRARIO.",0,1]
["SAN  FRANCISCO.",0,2]
["APUELA",5,1]
["GARCIA MORENO (LLURIMAGUA)",5,2]
["IMANTAG",5,3]
["PEÑAHERRERA",5,4]
["PLAZA GUTIERREZ (CALVARIO)",5,5]
["QUIROGA",5,6]
["6 DE JULIO DE CUELLAJE (CAB. EN CUELLAJE)",5,7]
["VACAS GALINDO (EL CHURO) (CAB. EN SAN MIGUEL ALTO)",5,8]
["JORDÁN",0,1]
["SAN LUIS.",0,2]
["DOCTOR MIGUEL EGAS CABEZAS (PEGUCHE)",5,1]
["EUGENIO ESPEJO (CALPAQUI)",5,2]
["GONZALEZ SUAREZ",5,3]
["PATAQUI",5,4]
["SAN JOSE DE QUICHINCHE",5,5]
["SAN JUAN DE ILUMAN",5,6]
["SAN PABLO",5,7]
["SAN RAFAEL.",5,8]
["SELVA ALEGRE (CAB. EN SAN MIGUEL DE PAMPLONA)",5,9]
["PIMAMPIRO.",5,0]
["CHUGA",5,1]
["MARIANO ACOSTA",5,2]
["SAN FRANCISCO DE SIGSIPAMBA",5,3]
["URCUQUI",5,0]
["CAHUASQUI",5,1]
["LA MERCED DE BUENOS AIRES",5,2]
["PABLO ARENAS",5,3]
["SAN  BLAS",5,4]
["TUMBABIRO",5,5]
["EL  SAGRARIO.",0,1]
["SAN  SEBASTIÁN",0,2]
[" SUCRE",0,3]
["VALLE.",0,4]
["CARIGÁN",0,5]
["PUNZARA",0,6]
["CHANTACO",5,1]
["CHUQUIRIBAMBA",5,2]
["EL CISNE",5,3]
["GUALEL",5,4]
["JIMBILLA",5,5]
["MALACATOS (VALLADOLID)",5,6]
["SAN LUCAS",5,7]
["SAN PEDRO DE VILCABAMBA",5,8]
["SANTIAGO ",5,9]
["TAQUIL (MIGUEL RIOFRIO)",6,0]
["VILCABAMBA (VICTORIA)",6,1]
["YANGANA (ARSENIO CASTILLO)",6,2]
["QUINARA",6,3]
["CARIAMANGA",0,1]
["CHILE",0,2]
["SAN  VICENTE",0,3]
["COLAISACA",5,1]
["EL LUCERO",5,2]
["UTUANA",5,3]
["SANGUILLIN",5,4]
["CATAMAYO.",0,1]
["SAN JOSÉ.",0,2]
["EL TAMBO.",5,1]
["GUAYQUICHUMA",5,2]
["SAN PEDRO DE LA BENDITA",5,3]
["ZAMBI",5,4]
["CELICA.",5,0]
["CRUZPAMBA (CAB EN CARLOS BUSTAMANTE)",5,1]
["POZUL (SAN JUAN DE POZUL)",5,5]
["SABANILLA.",5,6]
["TENIENTE MAXIMILIANO RODRIGUEZ LOAIZA",5,7]
["CHAGUARPAMBA.",5,0]
["BUENAVISTA.",5,1]
["EL ROSARIO ",5,2]
["SANTA RUFINA",5,3]
["AMARILLOS",5,4]
["AMALUZA.",5,0]
["BELLAVISTA ",5,1]
["JIMBURA",5,2]
["SANTA TERESITA",5,3]
["27 DE ABRIL (CAB. EN LA NARANJA)",5,4]
["EL INGENIO.",5,5]
["EL AIRO",5,6]
["GONZANAMA.",5,0]
["CHANGAIMINA (LA LIBERTAD)",5,1]
["NAMBACOLA",5,3]
["PURUNUMA (EGUIGUREN)",5,4]
["SACAPALCA",5,6]
["GENERAL ELOY ALFARO (SAN SEBASTIÁN) ",0,1]
["MACARÁ  (MANUEL ENRIQUE RENGEL SUQUILANDA)",0,2]
["LARAMA",5,1]
["LA  VICTORIA",5,2]
["SABIANGO (LA CAPILLA)",5,3]
["CATACOCHA",0,1]
["LOURDES",0,2]
["CANGONAMA",5,1]
["GUACHANAMA",5,2]
["LAURO GUERRERO",5,4]
["ORIANGA",5,6]
["SAN  ANTONIO",5,7]
["CASANGA",5,8]
["YAMANA",5,9]
["ALAMOR",5,0]
["CIANO",5,1]
["EL ARENAL",5,2]
["EL LIMO (MARIANA DE JESUS)",5,3]
["MERCADILLO",5,4]
["VICENTINO",5,5]
["SARAGURO.",5,0]
["EL PARAISO DE CELEN",5,1]
["EL TABLON",5,2]
["LLUZHAPA",5,3]
["MANU",5,4]
["SAN ANTONIO DE QUMBE (CUMBE)",5,5]
["SAN PABLO DE TENTA",5,6]
["SAN SEBASTIAN DE YULUC",5,7]
["SELVA ALEGRE.",5,8]
["URDANETA (PAQUISHAPA)",5,9]
["SUMAYPAMBA",6,0]
["SOZORANGA.",5,0]
["NUEVA FATIMA",5,1]
["TACAMOROS",5,2]
["ZAPOTILLO.",5,0]
["MANGAHURCO",5,1]
["GARZAREAL",5,2]
["LIMONES",5,3]
["PALETILLAS",5,4]
["BOLASPAMBA",5,5]
["CAZADEROS",5,6]
["PINDAL.",5,0]
["CHAQUINAL",5,1]
["12 DE DICIEMBRE (CAB. EN ACHIOTES)",5,2]
["MILAGROS",5,3]
["QUILANGA.",5,0]
["FUNDOCHAMBA",5,1]
["SAN ANTONIO DE LAS ARADAS (CAB. EN LAS ARADAS)",5,2]
["OLMEDO ",5,0]
["LA TINGUE",5,1]
["CLEMENTE BAQUERIZO",0,1]
["DOCTOR CAMILO PONCE ",0,2]
["BARREIRO",0,3]
["EL SALTO",0,4]
["CARACOL",5,2]
["FEBRES CORDERO (LAS JUNTAS)",5,3]
["PIMOCHA",5,4]
[" LA UNION",5,5]
["BABA.",5,0]
["GUARE",5,1]
["ISLA DE BEJUCAL",5,2]
["MONTALVO.",5,0]
["LA ESMERALDA",5,1]
["PUEBLOVIEJO.",5,0]
["PUERTO PECHICHE",5,1]
["SAN  JUAN",5,2]
["QUEVEDO.",0,1]
["SAN CAMILO",0,2]
["GUAYACÁN",0,4]
["NICOLÁS INFANTE DÍAZ",0,5]
["SAN CRISTÓBAL",0,6]
["SIETE DE OCTUBRE",0,7]
["24 DE MAYO",0,8]
["VENUS DEL RÍO QUEVEDO",0,9]
["VIVA ALFARO",1,0]
["SAN CARLOS.",5,3]
["LA ESPERANZA ",5,5]
["CATARAMA",5,0]
["RICAURTE.",5,1]
["10 DE NOVIEMBRE",0,1]
["VENTANAS.",0,2]
["ZAPOTAL",5,2]
["CHACARITA",5,3]
["LOS ANGELES",5,4]
["BALZAR DE VINCES",0,1]
["VINCES CENTRAL",0,2]
["SAN LORENZO DE VINCES",0,3]
["ANTONIO SOTOMAYOR (CAB. EN PLAYAS DE VINCES)",5,1]
["PALENQUE.",5,0]
["SAN JACINTO DE BUENA FÉ",0,1]
["7 DE AGOSTO",0,2]
["11 DE OCTUBRE",0,3]
["PATRICIA PILAR",5,1]
["VALENCIA.",0,1]
[" LA UNION ",0,2]
["LA NUEVA UNION",0,3]
["MOCACHE.",5,0]
["QUINSALOMA.",5,0]
["PORTOVIEJO.",0,1]
["12 DE MARZO",0,2]
["COLÓN",0,3]
["PICOAZÁ",0,4]
["SAN  PABLO",0,5]
["ANDRÉS DE VERA",0,6]
["FRANCISCO PACHECO",0,7]
["18 DE OCTUBRE",0,8]
["SIMÓN BOLÍVAR",0,9]
["ABDON CALDERON (SAN FRANCISCO)",5,1]
["ALHAJUELA (BAJO GRANDE)",5,2]
["CRUCITA",5,3]
["PUEBLO NUEVO",5,4]
["RIOCHICO (RIO CHICO)",5,5]
["SAN PLACIDO",5,6]
["CHIRIJOS.",5,7]
["CALCETA",5,0]
["MEMBRILLO",5,1]
["QUIROGA.",5,2]
["CHONE.",0,1]
["SANTA RITA.",0,2]
["BOYACA",5,1]
["CANUTO",5,2]
["CONVENTO",5,3]
["CHIBUNGA",5,4]
["ELOY ALFARO.",5,5]
["RICAURTE ",5,6]
[" SAN ANTONIO",5,7]
["EL  CARMEN",0,1]
["4 DE DICIEMBRE",0,2]
["WILFRIDO LOOR MOREIRA (MAICITO)",5,1]
["SAN PEDRO DE SUMA",5,2]
["FLAVIO ALFARO",5,0]
["SAN FRANCISCO DE NOVILLO (CAB. EN NOVILLO)",5,1]
["ZAPALLO",5,2]
["DOCTOR MIGUEL MORÁN LUCIO ",0,1]
["MANUEL INOCENCIO PARRALES Y GUALE",0,2]
["SAN LORENZO DE JIPIJAPA",0,3]
["AMERICA",5,1]
["EL ANEGADO (CAB. EN ELOY ALFARO)",5,2]
["JULCUY",5,3]
["LA  UNION.",5,4]
["MEMBRILLAL",5,6]
["PEDRO PABLO GOMEZ",5,7]
["PUERTO DE CAYO",5,8]
["JUNIN.",5,0]
["LOS ESTEROS",0,1]
["MANTA.",0,2]
["SAN  MATEO",0,3]
["TARQUI ",0,4]
["ELOY  ALFARO",0,5]
["SAN  LORENZO",5,1]
["SANTA MARIANITA (BOCA DE PACOCHE)",5,2]
["ANÍBAL SAN ANDRÉS",0,1]
["MONTECRISTI.",0,2]
["EL COLORADO",0,3]
["GENERAL ELOY ALFARO",0,4]
["LEONIDAS PROAÑO",0,5]
["LA PILA",5,2]
["PAJAN.",5,0]
["CAMPOZANO (LA PALMA DE PAJAN)",5,1]
["CASCOL",5,2]
["GUALE",5,3]
["LASCANO",5,4]
["PICHINCHA ",5,0]
["BARRAGANETE",5,1]
["SAN SEBASTIAN.",5,2]
[" ROCAFUERTE",5,0]
["SANTA ANA.",0,1]
["LODANA",0,2]
["AYACUCHO.",5,1]
["HONORATO VASQUEZ (CAB EN VASQUEZ)",5,2]
[" LA  UNION ",5,3]
["SAN PABLO (CAB EN PUEBLO NUEVO)",5,5]
["BAHÍA DE CARÁQUEZ",0,1]
["LEONIDAS PLAZA GUTIÉRREZ",0,2]
["CHARAPOTO",5,3]
["SAN  ISIDRO",5,7]
["TOSAGUA.",5,0]
["BACHILLERO",5,1]
["ANGEL PEDRO GILER (LA ESTANCILLA)",5,2]
[" SUCRE ",5,0]
[" BELLAVISTA",5,1]
["NOBOA",5,2]
["ARQUITECTO SIXTO DURAN BALLEN",5,3]
["PEDERNALES.",5,0]
["COJIMIES",5,1]
["DIEZ DE AGOSTO",5,2]
["ATAHUALPA.",5,3]
[" OLMEDO",5,0]
["PUERTO LOPEZ",5,0]
["MACHALILLA",5,1]
["SALANGO",5,2]
["JAMA.",5,0]
["JARAMIJO.",5,0]
["SAN VICENTE ",5,0]
["CANOA",5,1]
["MACAS",5,0]
["ALSHI (CAB EN 9 DE OCTUBRE)",5,1]
["GENERAL PROAÑO",5,3]
[" SAN ISIDRO",5,6]
["SEVILLA DON BOSCO",5,7]
["SINAI",5,8]
["ZUÑA (ZUÑAC)",6,0]
["CUCHAENTZA",6,2]
["RIO BLANCO",6,4]
["GUALAQUIZA.",0,1]
["MERCEDES MOLINA",0,2]
["AMAZONAS (ROSARIO DE CUYES)",5,1]
["BERMEJOS",5,2]
["BOMBOIZA",5,3]
["CHIGUINDA",5,4]
["EL  ROSARIO",5,5]
["NUEVA TARQUI",5,6]
["SAN MIGUEL DE CUYES",5,7]
["EL IDEAL",5,8]
["GENERAL LEONIDAS PLAZA GUTIERREZ",5,0]
["INDANZA",5,1]
["SAN ANTONIO (CAB EN SAN ANTONIO CENTRO)",5,3]
["SAN MIGUEL DE CONCHAY",5,6]
["STA SUSANA DE CHIVIAZA (CAB EN CHIVIAZA)",5,7]
["YUNGANZA (CAB EN EL ROSARIO)",5,8]
["PALORA (METZERA)",5,0]
["ARAPICOS",5,1]
["CUMANDA (CAB EN COLONIA AGRICOLA SEVILLA DEL ORO)",5,2]
["SANGAY (CAB EN NAYAMANACA)",5,4]
["16 DE AGOSTO",5,5]
["SANTIAGO DE MENDEZ",5,0]
["COPAL",5,1]
["CHUPIANZA",5,2]
["PATUCA",5,3]
["SAN LUIS DE EL ACHO (CAB EN EL ACHO)",5,4]
["TAYUZA",5,6]
["SAN FRANCISCO DE CHINIMBIMI",5,7]
["SUCUA.",5,0]
["ASUNCION.",5,1]
["HUAMBI",5,2]
["SANTA MARIANITA DE JESUS",5,5]
["HUAMBOYA.",5,0]
["CHIGUAZA",5,1]
["SAN JUAN BOSCO",5,0]
["PAN DE AZUCAR",5,1]
["SAN CARLOS DE LIMON",5,2]
["SAN JACINTO DE WAKAMBEIS",5,3]
["SANTIAGO DE PANANZA",5,4]
["TAISHA.",5,0]
["HUASAGA (CAB EN WAMPUIK)",5,1]
["MACUMA",5,2]
["TUUTINENTZA",5,3]
["PUMPUENTSA",5,4]
["LOGROÑO.",5,0]
["YAUPI",5,1]
["SHIMPIS",5,2]
["PABLO SEXTO",5,0]
[" SANTIAGO",5,0]
["SAN JOSE DE MORONA",5,1]
["TENA.",5,0]
["AHUANO",5,1]
["CHONTAPUNTA",5,3]
["PANO",5,4]
["PUERTO MISAHUALLI",5,5]
["PUERTO NAPO",5,6]
["TALAG",5,7]
["SAN JUAN DE MUYUNA",5,8]
["ARCHIDONA.",5,0]
["COTUNDO",5,2]
["SAN PABLO DE USHPAYACU",5,4]
["HATUN SUMAKU",5,6]
["EL CHACO",5,0]
["GONZALO DIAZ DE PINEDA (EL BOMBON)",5,1]
["LINARES",5,2]
["OYACACHI",5,3]
["SANTA ROSA.",5,4]
["SARDINAS",5,5]
["BAEZA",5,0]
["COSANGA",5,1]
["CUYUJA",5,2]
["PAPALLACTA",5,3]
["SAN FRANCISCO DE BORJA (VIRGILIO DAVILA)",5,4]
["SUMACO",5,6]
["CARLOS JULIO AROSEMENA TOLA",5,0]
["PUYO",5,0]
["CANELOS",5,2]
["DIEZ DE  AGOSTO",5,4]
["FATIMA",5,5]
["MONTALVO (ANDOAS)",5,6]
["POMONA",5,7]
["RIO CORRIENTES",5,8]
["RIO TIGRE",5,9]
["SARAYACU",6,1]
["SIMON BOLIVAR (CAB. EN MUSHULLACTA)",6,2]
[" TARQUI",6,3]
["TENIENTE HUGO ORTIZ",6,4]
["VERACRUZ (INDILLAMA) (CAB. EN INDILLAMA)",6,5]
[" EL TRIUNFO",6,6]
["MERA.",5,0]
["MADRE TIERRA",5,1]
["SHELL",5,2]
["SANTA  CLARA",5,0]
["SAN JOSE.",5,1]
["ARAJUNO.",5,0]
["CURARAY",5,1]
["BELISARIO QUEVEDO",0,1]
["CARCELÉN",0,2]
["CENTRO HISTÓRICO",0,3]
["COCHAPAMBA.",0,4]
["COMITÉ DEL PUEBLO",0,5]
["COTOCOLLAO",0,6]
["CHILIBULO",0,7]
["CHILLOGALLO",0,8]
["CHIMBACALLE",0,9]
["EL CONDADO",1,0]
["GUAMANÍ",1,1]
["IÑAQUITO",1,2]
["ITCHIMBIA",1,3]
["JIPIJAPA.",1,4]
["KENNEDY",1,5]
["LA ARGELIA",1,6]
["LA CONCEPCIÓN",1,7]
["LA ECUATORIANA",1,8]
["LA FERROVIARIA",1,9]
["LA LIBERTAD  ",2,0]
["LA MAGDALENA",2,1]
["LA MENA",2,2]
["MARISCAL SUCRE.",2,3]
["PONCEANO",2,4]
["PUENGASÍ",2,5]
["QUITUMBE",2,6]
["RUMIPAMBA",2,7]
["SAN BARTOLO",2,8]
["SAN ISIDRO DEL INCA",2,9]
["SAN JUAN ",3,0]
["SOLANDA",3,1]
["TURUBAMBA",3,2]
["ALANGASI",5,1]
["AMAGUAÑA",5,2]
["ATAHUALPA (HABASPAMBA)",5,3]
["CALACALI",5,4]
["CALDERON (CARAPUNGO)",5,5]
["CONOCOTO",5,6]
["CUMBAYA",5,7]
["CHAVEZPAMBA",5,8]
["CHECA (CHILPA)",5,9]
["EL QUINCHE",6,0]
["GUALEA",6,1]
["GUANGOPOLO",6,2]
["GUAYLLABAMBA",6,3]
["LA MERCED",6,4]
["LLANO CHICO",6,5]
["LLOA",6,6]
["NANEGAL",6,8]
["NANEGALITO",6,9]
["NAYON",7,0]
["NONO",7,1]
["PACTO",7,2]
["PERUCHO",7,4]
["PIFO",7,5]
["PINTAG",7,6]
["POMASQUI",7,7]
["PUELLARO",7,8]
["PUEMBO",7,9]
["SAN  ANTONIO.",8,0]
["SAN JOSE DE MINAS",8,1]
["TABABELA",8,3]
["TUMBACO",8,4]
["YARUQUI",8,5]
["ZAMBIZA",8,6]
["CAYAMBE.",0,2]
["JUAN MONTALVO",0,3]
["ASCAZUBI",5,1]
["CANGAHUA",5,2]
["OLMEDO (PESILLO)",5,3]
["OTON",5,4]
["SANTA ROSA DE CUZUBAMBA",5,5]
["SAN JOSE DE AYORA",5,6]
["MACHACHI",5,0]
["ALOAG",5,1]
["ALOASI",5,2]
["CUTUGLAHUA",5,3]
["EL CHAUPI",5,4]
["MANUEL CORNEJO ASTORGA (TANDAPI)",5,5]
["TAMBILLO.",5,6]
["UYUMBICHO",5,7]
["TABACUNDO",5,0]
["LA  ESPERANZA",5,1]
["MALCHINGUI",5,2]
["TOCACHI",5,3]
["TUPIGACHI",5,4]
["SANGOLQUÍ",0,1]
["SAN PEDRO DE TABOADA",0,2]
["SAN  RAFAEL",0,3]
["COTOGCHOA",5,1]
["RUMIPAMBA.",5,2]
["SAN MIGUEL DE LOS BANCOS",5,0]
["MINDO",5,1]
["PEDRO VICENTE MALDONADO",5,0]
["PUERTO QUITO",5,0]
["ATOCHA – FICOA",0,1]
["CELIANO MONGE",0,2]
["HUACHI CHICO",0,3]
["HUACHI LORETO",0,4]
["LA  MERCED",0,5]
["LA PENÍNSULA",0,6]
["MATRIZ",0,7]
["PISHILATA",0,8]
[" SAN FRANCISCO",0,9]
["AMBATILLO",5,1]
["ATAHUALPA (CHISALATA)",5,2]
["AUGUSTO N. MARTINEZ (MUNDUGLEO)",5,3]
["CONSTANTINO FERNANDEZ (CAB. EN CULLITAHUA)",5,4]
["HUACHI GRANDE",5,5]
["IZAMBA",5,6]
["JUAN BENIGNO VELA",5,7]
["MONTALVO ",5,8]
["PASA",5,9]
["PICAIGUA",6,0]
["PILAGUIN (PILAHUIN)",6,1]
["QUISAPINCHA (QUIZAPINCHA)",6,2]
["SAN BARTOLOME DE PINLLO",6,3]
["SAN FERNANDO (PASA SAN FERNANDO)",6,4]
["SANTA ROSA ",6,5]
["TOTORAS",6,6]
["CUNCHIBAMBA",6,7]
["UNAMUNCHO",6,8]
["BAÑOS DE AGUA SANTA",5,0]
["LLIGUA",5,1]
["RIO NEGRO",5,2]
["RIO VERDE",5,3]
["ULBA",5,4]
["CEVALLOS.",5,0]
["MOCHA.",5,0]
["PINGUILI",5,1]
["PATATE.",5,0]
["EL TRIUNFO ",5,1]
["LOS ANDES (CAB. EN POATUG)",5,2]
["SUCRE (CAB. EN SUCRE-PATATE URCU)",5,3]
["QUERO.",5,0]
["RUMIPAMBA ",5,1]
["YANAYACU- MOCHAPATA (CAB. EN YANAYACU)",5,2]
["PELILEO.",0,1]
["PELILEO GRANDE",0,2]
["BENITEZ (PACHANLICA)",5,1]
[" BOLIVAR.",5,2]
["COTALO",5,3]
["CHIQUICHA (CAB. EN CHIQUICHA GRANDE)",5,4]
["EL ROSARIO (RUMICHACA)",5,5]
["GARCIA MORENO (CHUMAQUI)",5,6]
["GUAMBALO (HUAMBALO)",5,7]
["SALASACA",5,8]
["CIUDAD NUEVA",0,1]
["PÍLLARO",0,2]
["BAQUERIZO MORENO",5,1]
["EMILIO MARIA TERAN (RUMIPAMBA)",5,2]
["MARCOS ESPINEL (CHACATA)",5,3]
["PRESIDENTE URBINA (CHAGRAPAMBA -PATZUCUL)",5,4]
["SAN ANDRES ",5,5]
["SAN JOSE DE POALO",5,6]
["SAN MIGUELITO",5,7]
["TISALEO.",5,0]
["QUINCHICOTO",5,1]
["EL LIMÓN",0,1]
["ZAMORA.",0,2]
["CUMBARATZA",5,1]
["GUADALUPE",5,2]
["IMBANA (LA VICTORIA DE IMBANA)",5,3]
["SABANILLA ",5,5]
["TIMBARA",5,6]
["SAN CARLOS DE LAS MINAS",5,8]
["ZUMBA",5,0]
["CHITO",5,1]
["EL CHORRO",5,2]
["LA CHONTA",5,4]
["PUCAPAMBA",5,6]
["SAN  ANDRES",5,9]
["GUAYZIMI",5,0]
["ZURMI",5,1]
["NUEVO PARAISO",5,2]
["28 DE MAYO (SAN JOSE DE YACUAMBI)",5,0]
["LA PAZ.",5,1]
["TUTUPALI",5,2]
["YANTZAZA (YANZATZA)",5,0]
["CHICAÑA",5,1]
["LOS ENCUENTROS",5,3]
["EL PANGUI",5,0]
["EL GUISME",5,1]
["PACHICUTZA",5,2]
["TUNDAYME",5,3]
["ZUMBI",5,0]
["TRIUNFO-DORADO",5,2]
["PANGUINTZA",5,3]
["PALANDA.",5,0]
["EL PORVENIR DEL CARMEN",5,1]
["SAN FRANCISCO DEL VERGEL",5,2]
["VALLADOLID",5,3]
["LA CANELA",5,4]
["PAQUISHA.",5,0]
[" BELLAVISTA ",5,1]
["NUEVO QUITO",5,2]
["PUERTO BAQUERIZO MORENO",5,0]
["EL PROGRESO",5,1]
["ISLA SANTA MAR═A (FLOREANA) (CAB. EN  PTO. VELASCO IBARRA)",5,2]
["PUERTO VILLAMIL",5,0]
["TOMAS DE BERLANGA (SANTO TOMAS)",5,1]
["PUERTO AYORA",5,0]
[" BELLAVISTA.",5,1]
["SANTA  ROSA",5,2]
["NUEVA LOJA",5,0]
["DURENO",5,2]
["GENERAL FARFAN",5,3]
["EL ENO",5,5]
["PACAYACU",5,6]
["JAMBELÍ",5,7]
["SANTA CECILIA",5,8]
["10 DE AGOSTO",6,0]
["LUMBAQUI",5,0]
["EL REVENTADOR",5,1]
["GONZALO PIZARRO",5,2]
["PUERTO LIBRE",5,4]
["PUERTO EL CARMEN DEL PUTUMAYO",5,0]
["PALMA ROJA",5,1]
["PUERTO BOLIVAR (PUERTO MONTUFAR)",5,2]
["PUERTO RODRIGUEZ",5,3]
["SANTA ELENA",5,4]
["SHUSHUFINDI.",5,0]
["LIMONCOCHA",5,1]
["PAÑACOCHA",5,2]
["SAN ROQUE (CAB. EN SAN VICENTE)",5,3]
["SAN PEDRO DE LOS COFANES",5,4]
["SIETE DE JULIO",5,5]
["LA BONITA",5,0]
["EL PLAYON DE SAN FRANCISCO",5,1]
["LA SOFIA",5,2]
["ROSA FLORIDA",5,3]
["SANTA BARBARA",5,4]
["EL DORADO DE CASCALES",5,0]
["SANTA ROSA DE SUCUMBIOS",5,1]
["SEVILLA.",5,2]
["TARAPOA",5,0]
["CUYABENO.",5,1]
["AGUAS NEGRAS",5,2]
["PUERTO FRANCISCO DE ORELLANA (EL COCA)",5,0]
["DAYUMA",5,1]
["TARACOA (NUEVA ESPERANZA: YUCA)",5,2]
["ALEJANDRO LABAKA",5,3]
["EL DORADO",5,4]
["EL EDEN",5,5]
["GARCIA MORENO.",5,6]
["INES ARANGO (CAB. EN WESTERN)",5,7]
["LA BELLEZA",5,8]
["NUEVO PARAISO (CAB. EN UNION )",5,9]
["SAN JOSE DE GUAYUSA",6,0]
["SAN LUIS DE ARMENIA",6,1]
["NUEVO ROCAFUERTE",5,0]
["CAPITAN AUGUSTO RIVADENEYRA",5,1]
["CONONACO",5,2]
["SANTA MARIA DE HUIRIRIMA",5,3]
["TIPUTINI",5,4]
["YASUNI",5,5]
["LA JOYA DE LOS SACHAS",5,0]
["ENOKANQUI",5,1]
["POMPEYA",5,2]
["SAN  CARLOS",5,3]
["SAN SEBASTIAN DEL COCA",5,4]
["LAGO SAN PEDRO",5,5]
[" RUMIPAMBA",5,6]
["TRES DE NOVIEMBRE",5,7]
["UNION MILAGREÑA",5,8]
["LORETO.",5,0]
["AVILA (CAB. EN HUIRUNO)",5,1]
["PUERTO MURIALDO",5,2]
["SAN JOSE DE PAYAMINO",5,3]
["SAN JOSE DE DAHUANO",5,4]
["SAN VICENTE DE HUATICOCHA",5,5]
["ABRAHAM CALAZACÓN",0,1]
["BOMBOLÍ",0,2]
["CHIGUILPE",0,3]
["RÍO TOACHI",0,4]
["RÍO VERDE",0,5]
["SANTO DOMINGO DE LOS COLORADOS",0,6]
["ZARACAY",0,7]
["ALLURIQUIN",5,1]
["PUERTO LIMON",5,2]
["LUZ DE AMERICA",5,3]
["SAN JACINTO DEL BUA",5,4]
["VALLE  HERMOSO",5,5]
["EL ESFUERZO",5,6]
["SANTA MARIA DEL TOACHI",5,7]
["LA CONCORDIA",5,0]
["MONTERREY",5,1]
["LA VILLEGAS",5,2]
["PLAN PILOTO",5,3]
["BALLENITA",0,1]
["SANTA  ELENA",0,2]
["ATAHUALPA ",5,1]
["COLONCHE",5,2]
["CHANDUY",5,3]
["MANGLARALTO",5,4]
["SIMON BOLIVAR (JULIO MORENO)",5,5]
["SAN JOSE DE ANCON",5,6]
["LA  LIBERTAD",5,0]
["CARLOS ESPINOZA LARREA",0,1]
["GENERAL ALBERTO ENRÍQUEZ GALLO",0,2]
["VICENTE  ROCAFUERTE",0,3]
[" SANTA ROSA",0,4]
["ANCONCITO",5,1]
["JOSE LUIS TAMAYO (MUEY)",5,2]
["LAS GOLONDRINAS",5,1]
["EL PIEDRERO",5,1]
["SANTA ROSA DE AGUA CLARA",5,1]
["JUVAL.",5,1]
["ABDON CALDERON",5,1]
["MATILDE ESTHER",5,1]

{"sheet":"Jerarquia","index":4,"n_rows":96,"n_cols":4,"rows_kept":96,"cut":false,"hidden":true,"merged":[[4,2,6,2],[0,0,0,1],[2,0,2,1],[16,0,16,1],[34,0,34,1],[45,0,45,1],[61,0,61,1],[88,0,88,1],[68,0,68,2],[69,0,69,1],[76,0,76,1],[82,0,82,1]]}
["JERARQUIZACIÓN DE ATRACIVOS TURÍSTICOS",null,{"$f":"SUM(C3,C17,C35,C46,C62,C70,C77,C83,C89)","v":28.6}]
[]
["ACCESIBILIDAD AL ATRACTIVO TURÍSTICO",null,{"$f":"SUM(C5:C15)","v":14}]
["CELDA","RAZÓN","VALOR"]
[2329,"Terrestre",{"$f":"Calculos!I18","v":9}]
[2330,"Acuático"]
[2331,"Aéreo"]
["D68",true,{"$f":"IF(B8=TRUE,2,0)","v":2}]
["G68",false,{"$f":"IF(B9=TRUE,1,0)","v":0}]
["J68",false,{"$f":"IF(B10=TRUE,1,0)","v":0}]
["M68",false,{"$f":"IF(B11=TRUE,1,0)","v":0}]
["S68",false,{"$f":"IF(B12=TRUE,1,0)","v":0}]
[1013,true,{"$f":"IF(B13=TRUE,3,0)","v":3}]
[1014,false,{"$f":"IF(B14=TRUE,2,0)","v":0}]
[1015,false,{"$f":"IF(B15=TRUE,1,0)","v":0}]
[]
["PLANTA TURÍSTICA Y COMPLEMENTARIOS",null,{"$f":"SUM(C19:C33)","v":8.1}]
["CELDA","RAZÓN","VALOR"]
[1119,true,{"$f":"IF(B19=TRUE,1.5,0)","v":1.5}]
[1120,true,{"$f":"IF(B20=TRUE,1.5,0)","v":1.5}]
[1121,true,1.5]
[1122,false,0]
[1123,false,0]
[null,false,0]
[null,true,1.5]
[null,false,0]
[1124,true,{"$f":"IF(B27=TRUE,0.6,0)","v":0.6}]
[1125,false,{"$f":"IF(B28=TRUE,0.6,0)","v":0}]
[1126,false,{"$f":"IF(B29=TRUE,0.6,0)","v":0}]
[1127,false,{"$f":"IF(B30=TRUE,0.6,0)","v":0}]
[1128,false,{"$f":"IF(B31=TRUE,0.6,0)","v":0}]
[1151,true,{"$f":"IF(B32=TRUE,1.5,0)","v":1.5}]
[1152,false,{"$f":"IF(B33=TRUE,1.5,0)","v":0}]
[]
["ESTADO DE CONSERVACIÓN E INTEGRACIÓN ATRACTIVO / ENTORNO",null,{"$f":"SUM(C37:C44)","v":5}]
["CELDA","RAZÓN","VALOR"]
["E116",false,{"$f":"IF(B37=TRUE,7,0)","v":0}]
["J116",false,{"$f":"IF(B38=TRUE,5,0)","v":0}]
["P116",false,{"$f":"IF(B39=TRUE,3,0)","v":0}]
["U116",false,{"$f":"IF(B40=TRUE,1,0)","v":0}]
["E128",false,{"$f":"IF(B41=TRUE,7,0)","v":0}]
["J128",true,{"$f":"IF(B42=TRUE,5,0)","v":5}]
["P128",false,{"$f":"IF(B43=TRUE,3,0)","v":0}]
["U128",false,{"$f":"IF(B44=TRUE,1,0)","v":0}]
[]
["HIGIENE Y SEGURIDAD TURÍSTICA",null,{"$f":"SUM(C48:C60)","v":1.5}]
["CELDA","RAZÓN","VALOR"]
[2307,true,{"$f":"IF(B48=TRUE,1.5,0)","v":1.5}]
[2308,false,{"$f":"IF(B49=TRUE,1.5,0)","v":0}]
[1848,false,{"$f":"IF(B50=TRUE,0.6,0)","v":0}]
[1849,false,{"$f":"IF(B51=TRUE,0.6,0)","v":0}]
[2021,false,{"$f":"IF(B52=TRUE,0.6,0)","v":0}]
[2262,false,{"$f":"IF(B53=TRUE,0.6,0)","v":0}]
[2022,false,{"$f":"IF(B54=TRUE,0.6,0)","v":0}]
[1361,false,{"$f":"IF(B55=TRUE,1.5,0)","v":0}]
[1362,false,{"$f":"IF(B56=TRUE,1.5,0)","v":0}]
[1363,false,{"$f":"IF(B57=TRUE,2,0)","v":0}]
[2089,false,{"$f":"IF(B58=TRUE,1,0)","v":0}]
[1364,false,{"$f":"IF(B59=TRUE,1,0)","v":0}]
[2140,false,{"$f":"IF(B60=TRUE,1,0)","v":0}]
[]
["POLÍTICAS Y REGULACIONES",null,{"$f":"SUM(C64:C67)","v":0}]
["CELDA","RAZÓN","VALOR"]
[2086,false,{"$f":"IF(B64=TRUE,3,0)","v":0}]
[1409,false,{"$f":"IF(B65=TRUE,3,0)","v":0}]
[2087,false,{"$f":"IF(B66=TRUE,2,0)","v":0}]
[null,false,{"$f":"IF(B67=TRUE,2,0)","v":0}]
[]
["ACTIVIDADES QUE SE PRACTICAN"]
["NATURALES",null,{"$f":"SUM(C72:C75)","v":0}]
["CELDA","RAZÓN","VALOR"]
["L196",false,{"$f":"IF(B72=TRUE,3,0)","v":0}]
["L203",false,{"$f":"IF(B73=TRUE,3,0)","v":0}]
["L206",false,{"$f":"IF(B74=TRUE,3,0)","v":0}]
[null,false,{"$f":"IF(B75=TRUE,9,0)","v":0}]
[]
["DIFUSIÓN Y MEDIOS DE PROMOCIÓN",null,{"$f":"SUM(C79:C81)","v":0}]
["CELDA","RAZÓN","VALOR"]
["E232",false,{"$f":"IF(B79=TRUE,2,0)","v":0}]
["K232",false,{"$f":"IF(B80=TRUE,2,0)","v":0}]
["P232",false,{"$f":"IF(B81=TRUE,3,0)","v":0}]
[]
["REGISTRO DE VISITANTES Y AFLUENCIA",null,{"$f":"SUM(C85:C87)","v":0}]
["CELDA","RAZÓN","VALOR"]
["I253",false,{"$f":"IF(B85=TRUE,3,0)","v":0}]
["M253",false,{"$f":"IF(B86=TRUE,2,0)","v":0}]
["P253",false,{"$f":"IF(B87=TRUE,2,0)","v":0}]
[]
["RECURSO HUMANO",null,{"$f":"SUM(C91:C93)","v":0}]
["CELDA","RAZÓN","VALOR"]
["K257",false,{"$f":"IF(B91=TRUE,2,0)","v":0}]
["D259",false,{"$f":"IF(B92=TRUE,2,0)","v":0}]
["G259",false,{"$f":"IF(B93=TRUE,1,0)","v":0}]
[]
[]
[{"$f":"CONCATENATE(Ficha_Jerarquia!B15,\", \",Ficha_Jerarquia!I15)","v":"0.434330, -77.963530"},"https://maps.google.com/?q=",{"$f":"B96&A96","v":"https://maps.google.com/?q=0.434330, -77.963530"},{"$f":"165/4","v":41.25}]

{"sheet":"Calculos","index":5,"n_rows":20,"n_cols":14,"rows_kept":20,"cut":false,"hidden":true,"merged":[[0,0,0,5],[5,0,5,8],[10,0,10,1]]}
["TERRESTRE"]
["Detalle","V. Asignado","Suma","3 Datos","2 Datos","1 Datos",null,null,null,null,"Acción","Valor","Media","Resultado"]
[{"$f":"Ficha_Jerarquia!U44","v":"Bueno"},{"$f":"IF(A3=\"Bueno\",3,IF(A3=\"Regular\",2,IF(A3=\"Malo\",1,0)))","v":3},{"$f":"B3+B4+B5","v":3},{"$f":"C3*9/9","v":3},null,null,null,null,null,null,true,{"$f":"IF(K3=TRUE,1,0)","v":1},{"$f":"SUM(L3:L5)","v":1},{"$f":"IF(M3=3,D3,IF(M3=2,E4,IF(M3=1,F5,0)))","v":9}]
[{"$f":"Ficha_Jerarquia!U45","v":0},{"$f":"IF(A4=\"Bueno\",3,IF(A4=\"Regular\",2,IF(A4=\"Malo\",1,0)))","v":0},null,null,{"$f":"C3*9/6","v":4.5},null,null,null,null,null,false,{"$f":"IF(K4=TRUE,1,0)","v":0}]
[{"$f":"Ficha_Jerarquia!U46","v":0},{"$f":"IF(A5=\"Bueno\",3,IF(A5=\"Regular\",2,IF(A5=\"Malo\",1,0)))","v":0},null,null,null,{"$f":"C3*9/3","v":9},null,null,null,null,false,{"$f":"IF(K5=TRUE,1,0)","v":0}]
["ACUÁTICO"]
["Detalle","V. Asignado","Detalle","V.Asignado","Promedio","Suma","3 Datos","2 Datos","1 Datos",null,"Acción","Valor","Media","Resultado"]
[{"$f":"Ficha_Jerarquia!M48","v":0},{"$f":"IF(A8=\"Bueno\",3,IF(A8=\"Regular\",2,IF(A8=\"Malo\",1,0)))","v":0},{"$f":"Ficha_Jerarquia!U48","v":0},{"$f":"IF(C8=\"Bueno\",3,IF(C8=\"Regular\",2,IF(C8=\"Malo\",1,0)))","v":0},{"$f":"(B8+D8)/2","v":0},{"$f":"E8+E9+E10","v":0},{"$f":"F8*9/9","v":0},null,null,null,false,{"$f":"IF(K8=TRUE,1,0)","v":0},{"$f":"SUM(L8:L10)","v":0},{"$f":"IF(M8=3,G8,IF(M8=2,H9,IF(M8=1,I10,0)))","v":0}]
[{"$f":"Ficha_Jerarquia!M49","v":0},{"$f":"IF(A9=\"Bueno\",3,IF(A9=\"Regular\",2,IF(A9=\"Malo\",1,0)))","v":0},{"$f":"Ficha_Jerarquia!U49","v":0},{"$f":"IF(C9=\"Bueno\",3,IF(C9=\"Regular\",2,IF(C9=\"Malo\",1,0)))","v":0},{"$f":"(B9+D9)/2","v":0},null,null,{"$f":"F8*9/6","v":0},null,null,false,{"$f":"IF(K9=TRUE,1,0)","v":0}]
[{"$f":"Ficha_Jerarquia!M50","v":0},{"$f":"IF(A10=\"Bueno\",3,IF(A10=\"Regular\",2,IF(A10=\"Malo\",1,0)))","v":0},{"$f":"Ficha_Jerarquia!U50","v":0},{"$f":"IF(C10=\"Bueno\",3,IF(C10=\"Regular\",2,IF(C10=\"Malo\",1,0)))","v":0},{"$f":"(B10+D10)/2","v":0},null,null,null,{"$f":"F8*9/3","v":0},null,false,{"$f":"IF(K10=TRUE,1,0)","v":0}]
["AÉREO"]
["Detalle","Datos"]
[false,{"$f":"IF(A13=TRUE,9,0)","v":0}]
[]
[]
[]
[null,null,null,"1 Dato","2 Datos","3 Datos","VALOR","MEDIA","RESULTADO"]
[true,{"$f":"IF(A18=TRUE,N3,0)","v":9},{"$f":"SUM(B18:B20)","v":9},{"$f":"C18*9/9","v":9},null,null,{"$f":"IF(A18=TRUE,1,0)","v":1},{"$f":"SUM(G18:G20)","v":1},{"$f":"IF(H18=3,F20,IF(H18=2,E19,IF(H18=1,D18,0)))","v":9}]
[false,{"$f":"IF(A19=TRUE,N8,0)","v":0},null,null,{"$f":"C18*9/18","v":4.5},null,{"$f":"IF(A19=TRUE,1,0)","v":0}]
[{"$f":"A13","v":false},{"$f":"IF(A20=TRUE,B13,0)","v":0},null,null,null,{"$f":"C18*9/27","v":3},{"$f":"IF(A20=TRUE,1,0)","v":0}]

{"sheet":"RESUMEN DE RESULTADOS","index":6,"n_rows":12,"n_cols":5,"rows_kept":12,"cut":false,"hidden":false,"merged":[[0,0,0,4],[1,0,1,1],[11,0,11,2]]}
["RESULTADOS DE LA EVALUACIÓN TÉCNICA"]
["CRITERIOS DE VALORACIÓN",null,"DESCRIPCIÓN","PONDERACIÓN","RESULTADO"]
["A","ACCESIBILIDAD y CONECTIVIDAD","Contempla el ingreso, horario al atractivo y   facilidades instaladas para personas con alguna discapacidad; además,  se  hace  referencia a  la  existencia de  vías  de acceso al sitio, con énfasis en las cualidades que condicionan la relación distancia/tiempo, así también la conectividad tecnológica.",18,{"$f":"Jerarquia!C3","v":14}]
["B","PLANTA TURÍSTICA / SERVICIOS","Registra equipamientos y  la disponibilidad de servicios en el atractivo.",18,{"$f":"Jerarquia!C17","v":8.1}]
["C","ESTADO        DE        CONSERVACIÓN        E INTEGRACIÓN SITIO / ENTORNO","Estimación de la integridad de los atributos patrimoniales físico-ambientales y socioculturales, en particular de las condiciones del sitio y su entorno.",14,{"$f":"Jerarquia!C35","v":5}]
["D","HIGIENE Y SEGURIDAD TURÍSTICA","Hace referencia a la disponibilidad de dispositivos para recolección de basura, procedencia del agua,   presencia de actos vandálicos, limpieza e iluminación del atractivo.",14,{"$f":"Jerarquia!C46","v":1.5}]
["E","POLÍTICAS Y REGULACIONES","Consideración  del  atractivo  dentro  de  la  Planificación territorial turística cantonal y cumplimiento de regulaciones para las actividades que se realizan en el atractivo.",10,{"$f":"Jerarquia!C62","v":0}]
["F","ACTIVIDADES  QUE  SE  PRACTICAN  EN  EL ATRACTIVO","Constatación  de  actividades  que  se  practican  en  el atractivo, mismas que le dan valor agregado.",9,{"$f":"Jerarquia!C70","v":0}]
["G","DIFUSIÓN DEL ATRACTIVO","Publicaciones internacionales, nacionales, monografías o medios de difusión. Declaratorias y reconocimientos. Relevancia y divulgación.",7,{"$f":"Jerarquia!C77","v":0}]
["H","REGISTRO DE VISITANTES Y AFLUENCIA","Registro   del   tipo   de   visitantes,   perfil   de   consumo, volumen intensidad de uso. Estimación de demanda potencial.",5,{"$f":"Jerarquia!C83","v":0}]
["I","RECURSOS HUMANOS","Hace  referencia  al  nivel  de  instrucción  académico  del personal que labora en el atractivo.",5,{"$f":"Jerarquia!C89","v":0}]
["TOTAL",null,null,100,{"$f":"SUM(E3:E11)","v":28.6}]

{"sheet":"ficha_Accesibilidad","index":7,"n_rows":73,"n_cols":13,"rows_kept":73,"cut":false,"hidden":false,"merged":[[72,0,74,4],[72,5,74,7],[72,8,74,12],[61,0,61,9],[62,0,69,12],[70,0,71,1],[70,2,71,4],[70,5,70,7],[70,8,70,12],[71,5,71,7],[71,8,71,12],[60,0,60,9],[49,0,49,9],[50,0,50,9],[51,0,51,9],[52,0,52,9],[53,0,53,9],[54,0,54,9],[55,0,55,9],[56,0,56,9],[57,0,57,9],[58,0,58,9],[59,0,59,9],[48,0,48,9],[37,0,37,9],[38,0,38,9],[39,0,39,9],[40,0,40,9],[41,0,41,9],[42,0,42,9],[43,0,43,9],[44,0,44,9],[45,0,45,9],[46,0,46,9],[47,0,47,9],[36,0,36,9],[25,0,25,9],[26,0,26,9],[27,0,27,9],[28,0,28,9],[29,0,29,9],[30,0,30,9],[31,0,31,9],[32,0,32,9],[33,0,33,9],[34,0,34,9],[35,0,35,9],[24,0,24,9],[13,0,13,9],[14,0,14,9],[15,0,15,9],[16,0,16,9],[17,0,17,9],[18,0,18,9],[19,0,19,9],[20,0,20,9],[21,0,21,9],[22,0,22,9],[23,0,23,9],[12,0,12,9],[0,0,3,12],[4,0,4,12],[4,18,4,23],[4,24,4,29],[5,0,5,12],[6,0,6,9],[7,0,7,9],[8,0,8,9],[9,0,9,9],[10,0,10,9],[11,0,11,9]]}
[]
[]
[]
[]
["4.- CARACTERÍSTICAS  DEL ATRACTIVO (infraestructura)"]
["ACCESIBILIDAD:"]
["General",null,null,null,null,null,null,null,null,null,"SI","NO","OBSERVACIONES"]
["Estacionamiento",null,null,null,null,null,null,null,null,null,"X"]
["Estacionamiento vehicular para personas con discapacidad",null,null,null,null,null,null,null,null,null,"X"]
["Rampas externas a desnivel"]
["Gradas externas (Ingresos)"]
["Vías de circulación peatonal"]
["Señalética Informativa",null,null,null,null,null,null,null,null,null,"X"]
["Señalética Direccional"]
["Señalética Preventiva"]
["Puertas automáticas"]
["Ascensor"]
["Recepción "]
["Puntos de concentración turística (Salones, auditorios, miradores, muelles, malecones, centros de interpretación, granjas, etc.)"]
["Cuartos de baño y aseo (Comunal o Social)"]
["Baño - Accesorio indicador libre/ocupado"]
["Discapacidad Física",null,null,null,null,null,null,null,null,null,"SI","NO","OBSERVACIONES"]
["Rampas externas de existir desnivel entre acera y acceso"]
["Pasamanos"]
["Recepción adaptada para personas con discapacidad (silla de ruedas, talla baja)"]
["Cuartos de baño adaptados (Comunal o Social) "]
["Baño - Espacio de maniobra (circunferencia libre de 1,50m) "]
["Baño - Barras de apoyo "]
["Baño - Sistema de Asistencia (botón o cordón de halar)"]
["Baño - Espejo (ubicado a 50 mm desde el borde superior del lavabo)"]
["Baño - Grifería de pulsación, palanca o sensor"]
["Baño - Lavabo sin pedestal"]
["Accesorios de limpieza y aseo (Ejm. Dispensadores de gel, papel higiénico, jabón de manos, etc.) a 800 a 1100mm desde el piso."]
["Puntos accesibles de concentración turística (que tengan rampas, pasamanos, señalética, etc. )"]
["Salvaescaleras"]
["Vías de circulación peatonal accesibles (Senderos, veredas, pasillos)"]
["Discapacidad Visual",null,null,null,null,null,null,null,null,null,"SI","NO","OBSERVACIONES"]
["Recepción adaptada para personas con discapacidad (Registros en braille, sistema JAWS, formatos accesibles, otras herramientas de apoyo al cliente.)"]
["Sensores de voz/ bucle magnético"]
["Rotulación para personas ciegas (Ejm: Braille, alto relieve, plano háptica)"]
["Pasamanos"]
["Cuartos de baño adaptados (Comunal o Social) "]
["Baño - espacio de maniobra (circunferencia libre 1,50m)"]
["Baño - Grifería de pulsación, palanca o sensor"]
["Bandas podotáctiles o contraste en piso"]
["Baño - Sistema de Asistencia (botón o cordón de halar)"]
["Puntos accesibles de concentración turística ( Información autodescriptiva, braille, \"audio\")."]
["Maquetas táctiles (3D)"]
["Vías de circulación peatonal accesibles (Senderos, veredas, pasillos) con bandas podotáctiles."]
["Discapacidad Auditiva",null,null,null,null,null,null,null,null,null,"SI","NO","OBSERVACIONES"]
["Recepción adaptada para personas con discapacidad (Registros ilustrados, intérprete de lengua de señas, personal capacitado, pantallas led, subtitulado formato accesible, otras herramientas de apoyo al cliente.)"]
["Sensores y alarmas visuales (Luces intermitentes)"]
["Rotulación para personas sordas (Visual, ilustrada)"]
["Cuartos de baño adaptados (Comunal o Social) "]
["Baño - Sistema de Asistencia (botón o cordón de halar)"]
["Puntos accesibles de concentración turística (Información gráfica /fotografías, pósters, videos). \n\n"]
["Vías de circulación peatonal accesibles (Senderos, veredas, pasillos). Rotulación , Ilustraciones."]
["Discapacidad Intelectual o Psicosocial",null,null,null,null,null,null,null,null,null,"SI","NO","OBSERVACIONES"]
["Recepción adaptada para personas con discapacidad (Personal capacitado)"]
["Accesibilidad cognitiva (señalética clara, gráfica y bien distribuida)"]
["Baño - Sistema de Asistencia (botón o cordón de halar)"]
["Puntos accesibles de concentración turística (Información gráfica, fotografías, pósters, videos, guías capacitados en discapacidades)\n"]
[" "]
[]
[]
[]
[]
[]
[]
[]
["Firma y/o Sello del encuestado",null,null,null,null,"Hora de Inicio:"]
[null,null,null,null,null,"Hora de Salida:"]
["NOMBRES DEL RESPONSABLE",null,null,null,null,"FIRMA",null,null,"_______________________________"]

{"sheet":"Validación-GAD","index":8,"n_rows":24,"n_cols":7,"rows_kept":24,"cut":false,"hidden":false,"merged":[[20,6,21,9],[16,1,16,5],[15,1,15,5],[18,1,18,5],[15,6,15,9],[16,6,16,9],[17,6,17,9],[18,6,18,9],[19,6,19,9],[23,1,25,9],[5,1,5,9],[7,1,7,9],[9,6,9,9],[9,2,9,3],[10,2,10,3],[11,2,11,3],[10,4,10,5],[11,4,11,5],[10,6,10,9],[11,6,11,9],[21,3,21,5],[20,1,20,5],[14,1,14,9],[17,1,17,5],[19,1,19,5]]}
["Nota: Se completa esta sección en el caso que el GAD no haya levantado directamente la ficha de atractivos."]
[]
[]
[]
[]
[null,"VALIDACIÓN DE FICHA  PARA EL LEVANTAMIENTO Y JERARQUIZACIÓN DE ATRACTIVOS TURÍSTICOS"]
[]
[null,"Datos del Atractivo"]
[]
[null,"Provincia:",null,null,"Nombre del Atractivo:"]
[null,"Cantón:",null,null,"Tipo:"]
[null,"Parroquia:",null,null,"Subtipo:"]
[]
[]
[null,"Validado Por:"]
[null,"Apellido y Nombre:",null,null,null,null,"Teléfono:"]
[]
[null,"Institución:",null,null,null,null,"Firma:"]
[]
[null,"Cargo:",null,null,null,null,"Fecha:"]
[]
[null,"Correo Electrónico:"]
[]
[null,"Nota: He revisado y estoy de acuerdo con la información de esta ficha y que la misma sea publicada en el Geoportal de Atractivos y/o en el sistema que la Autoridad Nacional de Turismo disponga."]